{"text_format":"1","workbook":"xlsx","n_sheets":3,"sheets":["Randos","Articles divers","Feuil3"],"not_rendered":{"charts":0,"images":0,"macros":1,"external_links":0,"defined_names":2,"comments":0,"pivot_tables":0},"unopened":[],"bounds":{"document_bytes":16777216,"sheet_cells":100000,"rows_first":2000,"rows_last":500,"rows_between":2000,"halvings":0,"cell_chars":16384,"cell_head_chars":4096},"cells_cut":0,"cells_raw":0,"read":"whole","date_system":"1900"}

{"sheet":"Randos","index":0,"n_rows":665,"n_cols":12,"rows_kept":665,"cut":false,"hidden":false,"merged":[]}
["Région","Lieux de Départ","Ref Rando","Titre","Distance KM","Dénivelé +","Difficulté","Intérêt","VTT/VAE","Durée (h)","Durée (min)"]
["Thur","Cernay",1,"BALADE AUTOUR DE CERNAY",19.5,69,"FACILE (2/6)",null,null,"5 h",300," "]
["Thur","Uffholtz",2," MOLKENRAIN ET FREUNDSTEIN",20.9,848,"ASSEZ DIFFICILE (4/6)",null,null,"5 h 30 mn",330," "]
["Doller","Bourbach le Haut",3," THANNER HUBEL ET ROSSBERG",19.3,870,"ASSEZ DIFFICILE (4/6)",null,null,"5 h 45 mn",345," "]
["Doller","Rimbach près Masevaux",4," ENTRE RUCHBERG ET FUCHSFELSEN",13.5,564,"UN PEU DIFFICILE (3/6)",null,null,"4 h 30 mn",270," "]
["Thur","Moosch",5,"MOOSCH, RIVE DROITE",15.8,732,"UN PEU DIFFICILE (3/6)",null,null,"5 h",300," "]
["Thur","Cernay",6," OSTEIN ET HIRNELESTEIN",21.9,731,"UN PEU DIFFICILE (3/6)",null,null,"6 h",360," "]
["Thur","Cernay",7," GRAND BALLON, LE GRAND DÉFI",33.9,1668,"DIFFICILE (5/6)",null,null,"9 h30 mn",570," "]
["Doller","Michelbach",9," UNE GRANDE RANDONNÉE",21.5,545,"UN PEU DIFFICILE (3/6)",null,null,"5 h 30 mn",330," "]
["Vallée Noble","Wintzfelden",10," MAGIQUE PETIT BALLON",16.3,1182,"DIFFICILE (5/6)",null,null,"6 h 15 mn",375," "]
["Vallée Noble","Orschwihr",11," PETITE ESCAPADE AU BOLLENBERG",8.1,200,"FACILE (2/6)",null,null,"2 h 15 mn",135," "]
["Sundgau","Bernwiller",12," PREMIÈRE ESCAPADE DANS LE SUNDGAU ",30,376,"UN PEU DIFFICILE (3/6)",null,null,"7 h 45 mn",465," "]
["Thur","Cernay",13," DE LA BALLASTIÈRE À LA POUDRIÈRE",20.6,106,"FACILE (2/6)",null,null,"4 h 30 mn",270," "]
["Doller","Niederbruck",14," SURPRISE À LA FENNEMATT",14.9,711,"UN PEU DIFFICILE (3/6)",null,null,"5 h 30 mn",330," "]
["Thur","Cernay",16," LES PÈLERINS NE SONT PAS DES MENTEURS",24.5,245,"UN PEU DIFFICILE (3/6)",null,null,"5 h 30 mn",330," "]
["Thur","Kruth",17,"KRUTH-WILDENSTEIN, UN LAC, UN CHÂTEAU",7.4,168,"FACILE (2/6)",null,null,"2 h 15 mn",135," "]
["Crêtes (Sud)","Markstein",18," GRANDE ESCAPADE SUR LES CRÊTES",28.1,781,"ASSEZ DIFFICILE (4/6)",null,null,"8 h",480," "]
["Thur","Thann",19," MISE EN JAMBES THANNOISE",14.7,583,"UN PEU DIFFICILE (3/6)",null,null,"4 h",240," "]
["Thur","Husseren",20," LE ROUGE-GAZON NOUS TEND SES PERCHES",19.899999999999999,1109,"DIFFICILE (5/6)",null,null,"8 h",480," "]
["Lauch","Lautenbach-Zell",21," LA RANDO DES CASCADES",12.8,607,"UN PEU DIFFICILE (3/6)",null,null,"4 h 10 mn",250," "]
["Vosges","Col de Bussang",22," ESCAPADE DANS LES VOSGES VOSGIENNES",17.399999999999999,773,"ASSEZ DIFFICILE (4/6)",null,null,"5 h 40 mn",340," "]
["TDBelfort","Giromagny",23," LE BALLON D’ALSACE, FRANCHEMENT COMTÉ ",21.5,850,"ASSEZ DIFFICILE (4/6)",null,null,"6 h 50 mn",410," "]
["Doller","Masevaux",24," LE BAERENKOPF, TÊTE DES OURS",20,909,"ASSEZ DIFFICILE (4/6)",null,null,"6 h 15 mn",375," "]
["Thur","Steinbach",25,"STEINBACH, LE CIRCUIT DES DÉCOUVERTES",13.1,481,"FACILE (2/6)",null,null,"3 h 35 mn",205," "]
["Doller","Michelbach",26," UN PETIT CIRCUIT FAMILIAL",12.1,186,"FACILE (2/6)",null,null,"3 h",180," "]
["Lauch","Guebwiller",27,"SUR LES HAUTEURS DE GUEBWILLER",15.7,571,"UN PEU DIFFICILE (3/6)",null,"VTT-VAE","4 h 10 mn",250," "]
["Thur","Cernay",28,"CERNAY, UN PETIT TOUR AUTOUR DE LA THUR","nc",0,"FACILE (2/6)",null,null,"2 h 15 mn",135," "]
["Thur","Wattwiller",29,"WATTWILLER, JE PRÉFÈRE MANGER À LA CANTINE",7.5,427,"UN PEU DIFFICILE (3/6)",null,null,"3 h",180," "]
["Doller","Soppe  le Bas",31," LE SOULTZBACH, ÇA VOUS PARLE",17.899999999999999,275,"FACILE (2/6)",null,null,"5 h",300," "]
["Thur","Uffholtz",32,"UFFHOLTZ, SUR LES HAUTEURS",13.6,549,"FACILE (2/6)",null,null,"3 h 45 mn",225," "]
["Lauch","Buhl",33," LE CIRCUIT DES COLS",13.1,660,"UN PEU DIFFICILE (3/6)",null,null,"4 h 30 mn",270," "]
["Thur","Kruth",34," LE GRAND VENTRON, AVEC LA GRANDE NEIGE",12.9,665,"UN PEU DIFFICILE (3/6)",null,null,"4 h 40 mn",280," "]
["Doller","Rimbach près Masevaux",35," NEUWEIHER ET PERCHES, LE CIRCUIT DES LACS",10.8,578,"UN PEU DIFFICILE (3/6)",null,null,"3 h 45 mn",225," "]
["Thur","Steinbach",37," MONTÉE AU REFUGE UTAN MOLKENRAIN",13.1,690,"UN PEU DIFFICILE (3/6)",null,null,"4 h",240," "]
["Thur","Kruth",38," CHALET BÉNI BENOÎT & SCHAFERT",10.4,498,"UN PEU DIFFICILE (3/6)",null,null,"4 h",240," "]
["Crêtes (Sud)","Firstacker",39," GRAND BALLON, LE PETIT CHEMIN",9.6999999999999993,488,"UN PEU DIFFICILE (3/6)",null,null,"3 h 30 mn",210," "]
["Thur","Fellering",40,"LE DRUMONT, DEPUIS FELLERING",16.100000000000001,733,"ASSEZ DIFFICILE (4/6)",null,null,"5 h 30 mn",330," "]
["Thur","Cernay",41," 1ER CIRCUIT HIVERNAL","nc",295,"FACILE (2/6)",null,null,"4 h",240," "]
["Thur","Cernay",42," 2ÈME CIRCUIT HIVERNAL","nc",540,"FACILE (2/6)",null,null,"3 h 45mn",225," "]
["Thur","Cernay",43," 3ÈME CIRCUIT HIVERNAL","nc",0,"FACILE (2/6)",null,null,"3 h 15 mn",195," "]
["Thur","Wattwiller",44," LE MOLKENRAIN EN HIVER",13.8,712,"ASSEZ DIFFICILE (4/6)",null,null,"5 h",300," "]
["Doller","Bourbach le Haut",45," ROSSBERG ET THANNER HUBEL, UN CIRCUIT HIVERNAL",14.2,752,"DIFFICILE (5/6)",null,null,"5 h",300," "]
["Doller","Masevaux",46," LACHTELWEIHER & LOCHBERG",16.5,589,"ASSEZ DIFFICILE (4/6)",null,null,"5 h",300," "]
["Thur","Mollau",47," LE CIRCUIT DES CABANES",16.100000000000001,622,"ASSEZ DIFFICILE (4/6)",null,null,"5 h 30 mn",330," "]
["Lauch","Lautenbach",48," VERS LE PETIT BALLON",13.5,737,"ASSEZ DIFFICILE (4/6)",null,null,"4 h 15 mn",255," "]
["Doller","Oberbruck",52," LAGERWALD, GRESSON ET BAERENBACH",13,536,"ASSEZ FACILE (2/6)",null,null,"5 h",300," "]
["Doller","Sentheim",53," LE COL DU SCHIRM, ENTRE FORÊTS ET ROCHERS ",13.6,424,"UN PEU DIFFICILE (3/6)",null,null,"4 h 45 mn",285," "]
["Thur","Cernay",54," COURTE EXTENSION ROMAINE",null,null,null,null,null,null,null," "]
["Thur","Cernay",54," BALADE VERS LE LUTZELHOF",10.5,0,"ASSEZ FACILE (2/6)",null,null,"2 h 30 mn",150," "]
["Thur","Vieux-Thann",55," LE TOUR DU RANGEN",6,180,"FACILE (2/6)",null,null,"2 h",120," "]
["Thur","Kruth",56," LA CHAUME DES VINTERGÉS",12.4,672,"ASSEZ DIFFICILE (4/6)",null,null,"5 h",300," "]
["Doller","Sewen",57," LE GRAND LANGENBERG",12.5,660,"ASSEZ DIFFICILE (4/6)",null,null,"4 h 45 mn",285," "]
["Lauch","Schweighouse",58," GANGOLPHE ET BANNSTEIN",7,210,"FACILE (2/6)",null,null,"2 h 15 mn",135," "]
["Sundgau","Altenach",59," LE PLAT SUNDGAU",28.2,242,"UN PEU DIFFICILE (3/6)",null,null,"6 h 45mn",405," "]
["Thur","Oderen",60," MONTÉE AU TREH",11.3,686,"UN PEU DIFFICILE (3/6)",null,null,"4 h 15 mn",255," "]
["Lauch","Sengern",61," UN TOUR AU MARKSTEIN",13.3,572,"UN PEU DIFFICILE (3/6)",null,null,"4 h 30 mn",270," "]
["TDBelfort","Giromagny",62," LES BELLES FILLES ONT LEUR PLANCHE",14.7,733,"UN PEU DIFFICILE (3/6)",null,null,"5 h 30 mn",330," "]
["Sundgau","Ferrette",63," VERS LE JURA ALSACIEN",17.2,532,"UN PEU DIFFICILE (3/6)",null,null,"5 h 30 mn",330," "]
["Doller","Masevaux",64," FUCHSFELSEN ET ROSSBERG",17,848,"ASSEZ DIFFICILE (4/6)",null,null,"5 h 30 mn",330," "]
["Lauch","Murbach",65," GROTTES ET ROCHERS",12.8,645,"UN PEU DIFFICILE (3/6)",null,null,"4 h 30 mn",270," "]
["TDBelfort","Rougement",66," LA TOURNÉE DES ÉTANGS",19,457,"UN PEU DIFFICILE (3/6)",null,null,"5 h 30 mn",330," "]
["Thur","Cernay",67," LE TOUR DE LA MONTAGNE",25.3,636,"UN PEU DIFFICILE (3/6)",null,null,"6 h",360," "]
["Thur","Cernay",68," LE GRAND BALLON, VERSION 2017",35,1520,"DIFFICILE (5/6)",null,null,"9 h",540," "]
["Thur","Willer s/Thur",69," AGAPES AU BLAUFELS",10.1,482,"ASSEZ FACILE (2/6)",null,null,"3 h",180," "]
["Vallée Noble","Wintzfelden",70," FORÊTS ET VIGNES",20.399999999999999,673,"UN PEU DIFFICILE (3/6)",null,null,"6 h",360," "]
["Thur/Doller","Col du Hundsruck",71," UN DOUBLE HUIT",11,584,"UN PEU DIFFICILE (3/6)",null,null,"3 h 15 mn",195," "]
["Thur","Cernay",72," PROFITONS DE LA THUR",23.1,75,"TRÈS FACILE (1/6)",null,null,"4 h 35 mn",275," "]
["Doller","Sewen",73," GRABER 1 & 2, FENNEMATT ET HUHFELS",11.2,550,"UN PEU DIFFICILE (3/6)",null,null,"4 h 50 mn",290," "]
["Thur","Wildenstein",74," LA RANDONNÉE DES COLS",19.7,949,"ASSEZ DIFFICILE (4/6)",null,null,"7 h",420," "]
["Lauch","Rimbach près Guebwiller",75," GLASHUTTE ET SUDEL ",8.1999999999999993,396,"FACILE (2/6)",null,null,"3 h",180," "]
["Vallée Noble","Osenbach",76," RANDONNÉE FORESTIÈRE",25.1,859,"ASSEZ DIFFICILE (4/6)",null,null,"8 h",480," "]
["Kaysersberg","Orbey",77," PETIT CIRCUIT DES IMMERLINS",5.2,57,"TRÈS FACILE (1/6)",null,null,"2 h",120," "]
["Crêtes (Sud)","Grand Ballon",78,"GRAND BALLON → MARKSTEIN",14.7,391,"UN PEU DIFFICILE (3/6)",null,null,"3 h 30 mn",210," "]
["Vosges","Col de Bramont",79," UNE VIERGE, DES CORBEAUX",11.6,463,"UN PEU DIFFICILE (3/6)",null,null,"4 h",240," "]
["Thur","Bitschwiller les Thann",80," UN PETIT TOUR EN FORÊT",10,368,"ASSEZ FACILE (2/6)",null,null,"2 h 45 mn",165," "]
["Crêtes (Sud)","Markstein",81,"LE MARKSTEIN → LA SCHLUCHT",40.4,1000,"DIFFICILE (5/6)",null,null,"10 h",600," "]
["Thur","Uffholtz",82," DE VIGNES ET DE FORÊTS",9.8000000000000007,313,"FACILE (2/6)",null,null,"3 h",180," "]
["Thur","Willer s/Thur",83," EN PISTE AUTOUR DE LA THUR ",9,116,"ASSEZ FACILE (2/6)",null,null,"2 h 10 mn",130," "]
["Plaine","Wittelsheim",84," CIRCUIT DE DÉCOUVERTE",16.5,79,"FACILE (2/6)",null,null,"3 h 45 mn",225," "]
["Vallée Munster","Schlucht",85,"LA SCHLUCHT → LE BONHOMME",32.1,1008,"DIFFICILE (5/6)",null,null,"9 h 30 mn",570," "]
["Doller","Michelbach",86," PETITE PROMENADE",9.5,141,"TRÈS FACILE (1/6)",null,null,"2 h 50 mn",170," "]
["Thur/Doller","Roderen",87," LA TOURNÉE DES CHAPELLES",13,429,"FACILE (2/6)",null,null,"4 h 20 mn",260," "]
["Crêtes","Ballon d'Alsace",88," LES ROCHES DE MORTEVILLE",20,874,"ASSEZ DIFFICILE (4/6)",null,null,"7 h 20 mn",440," "]
["Thur","Cernay",89," DÉJEUNER EN PAIX AU BAECHERKOPFHISLÀ",22.3,916,"ASSEZ DIFFICILE (4/6)",null,null,"6 h 30 mn",390," "]
["Kaysersberg","Orbey",90," LA TOURNÉE DES LACS",14.3,620,"ASSEZ DIFFICILE (4/6)",null,null,"4 h 50 mn",290," "]
["Doller","Masevaux",91," AU SAEGENKOPF",8.8000000000000007,181,"FACILE (2/6)",null,null,"2 h 45 mn",165," "]
["Crêtes","Ballon d'Alsace",92," LE CIRCUIT DES CHALETS",16.8,795,"ASSEZ DIFFICILE (4/6)",null,null,"6 h 30 mn",390," "]
["Thur","Wattwiller",93," DÉJEUNER EN PAIX AU MOLKENRAIN",11.2,411,"FACILE (2/6)",null,null,"3 h 15 mn",195," "]
["Thur","Kruth",94," DU COL D’ODEREN AU GRAND VENTRON",13.8,487,"UN PEU DIFFICILE (3/6)",null,null,"4 h 05 mn",245," "]
["Doller","Bourbach le Bas",95," DEPUIS BOURBACH-LE-HAUT",8.3000000000000007,344,"FACILE (2/6)",null,null,"2 h 40 mn",160," "]
["Thur/Doller","Rammersmatt",96," DEPUIS RAMMERSMATT",9.9,463,"FACILE (2/6)",null,null,"3 h 15 mn",195," "]
["Vosges","Col de Bussang",97," DRUMONT, TÊTE DE FELLERING ET FAIGNE DES MINONS",14.6,749,"UN PEU DIFFICILE (3/6)",null,null,"4 h 45 mn",285," "]
["Thur","Steinbach",98," ERZENBACH ET AMSELKOPF",9.6,529,"ASSEZ FACILE (2/6)",null,null,"2 h 40 mn",160," "]
["Doller","Burnhaupt le Bas",99," PONT D’ASPACH ET GUEWENHEIM",7.4,59,"TRÈS FACILE (1/6)",null,null,"1 h 50 mn",110," "]
["Crêtes","Col de la Schlucht",100," SENTIER DES ROCHES ET HIRSCHSTEINE ",11.7,594,"DIFFICILE (5/6)",null,null,"5 h",300," "]
["Vosges","Fresse s/Moselle",101," CASCADE DE LONGELIGOUTTE ET MINES DE CUIVRE",14.1,468,"FACILE (2/6)",null,null,"4 h 30 mn",270," "]
["Sundgau","Illfurth",102," BRITZGYBERG, DE L’ÂGE DU FER À LA POUDRE DES CANONS",14.5,221,"FACILE (2/6)",null,null,"4 h 30 mn",270," "]
["Vallée Munster","Boenlesgrab",103,"SUR LES PENTES DU PETIT BALLON",9.9,474,"UN PEU DIFFICILE (3/6)",null,null,"3 h 40 mn",220," "]
["Lauch","Soultz",104," UN NEZ, DEUX ROCHERS, TROIS ERMITES",11,415,"FACILE (2/6)",null,null,"3 h",180," "]
["Lauch","Guebwiller",105," PETITE VIRÉE MYSTIQUE",3.2,180,"TRÈS FACILE (1/6)",null,null,"1 h 30 mn",90," "]
["Vosges","Bussang",106," DES ROCHES ET DES CHALETS",11.8,662,"UN PEU DIFFICILE (3/6)",null,null,"4 h 30 mn",270," "]
["Vallée Munster","Stosswihr",107," MONTER AUX HIRSCHSTEINE !",14.1,680,"ASSEZ DIFFICILE (4/6)",null,null,"4 h 40 mn",280," "]
["Vosges","Fresse s/Moselle",108," CROIX DE FRESSE ET CHAPELLE DES VÉS ",14.7,525,"UN PEU DIFFICILE (3/6)",null,null,"5 h 10 mn",310," "]
["Thur","Kruth",109," LE HAUT DE FELSACH",16,790,"ASSEZ DIFFICILE (4/6)",null,null,"4 h 30 mn",270," "]
["Thur","Cernay",110," ON PASSE EN-DESSOUS !",16,67,"TRÈS FACILE (1/6)",null,null,"3 h 40 mn",220," "]
["Sundgau","Gildwiller",111," MAGNIFIQUE SUNDGAU !",23.3,350,"FACILE (2/6)",null,null,"5 h 45 mn",345," "]
["Thur","Cernay",112," LA THUR, SAUVAGE ET CIVILISÉE",7.9,41,"TRÈS FACILE (1/6)",null,null,"1 h 50 mn",110," "]
["Thur","Steinbach",113," LA COTE 425 ET LES VIGNES",8.1999999999999993,164,"TRÈS FACILE (1/6)",null,null,"2 h",120," "]
["Thur/Doller","Col du Hundsruck",114," LA VIE EN ROUGE !",13.4,563,"UN PEU DIFFICILE (3/6)",null,null,"3 h 45 mn",225," "]
["Crêtes (Sud)","Firstacker",115," NEIGE ET BROUILLARD",9.9,485,"FACILE (2/6)",null,null,"2 h 50 mn",170," "]
["Doller","Bourbach le Haut",116," UN CORBEAU, UNE GROTTE ",12,639,"UN PEU DIFFICILE (3/6)",null,null,"3 h 30 mn",210," "]
["Plaine","Mulhouse",117," ENTRE CHAMPS ET FORÊT",11,190,"FACILE (2/6)",null,null,"2 h 30 mn",150," "]
["Crêtes (Sud)","Col Amic",118," UN PETIT CIRCUIT",7.9,318,"UN PEU DIFFICILE (3/6)",null,null,"3 h 15 mn",195," "]
["Thur","Moosch",119," AU BELACKER ET AU GSANG",18.100000000000001,687,"ASSEZ DIFFICILE (4/6)",null,null,"4 h 50 mn",290," "]
["Thur","Goldbach",120," LE TOUR DU MOLKENRAIN",15,557,"UN PEU DIFFICILE (3/6)",null,null,"4 h 30 mn",270," "]
["Plaine","Mulhouse",121," GARDER LA FORME !",14.2,270,"FACILE (2/6)",null,null,"3 h 45 mn",225," "]
["Thur","Cernay",122," UNE MARCHE SPORTIVE",23.3,213,"FACILE (2/6)",null,null,"5 h",300," "]
["Thur","Steinbach",123," PETIT CIRCUIT, PETITE NEIGE",9.1999999999999993,389,"ASSEZ FACILE (2/6)",null,null,"2 h 45 mn",165," "]
["Thur","Thann",124," VERS LES PYRAMIDES",9.1999999999999993,440,"UN PEU DIFFICILE (3/6)",null,null,"2 h 40 mn",160," "]
["Thur","Willer s/Thur",125," MONTER À ALTENBACH",7.8,311,"UN PEU DIFFICILE (3/6)",null,null,"2 h 45 mn",165," "]
["Thur","Oderen",126," AU GOMMKOPF",9.3000000000000007,417,"UN PEU DIFFICILE (3/6)",null,null,"3 h 45 mn",225," "]
["Doller","Masevaux",127," LE TOUR DU BAERENKOPF",13.9,665,"UN PEU DIFFICILE (3/6)",null,null,"4 h",240," "]
["Lauch","Rimbach près Guebwiller",128," HOLZWASEN ET FIRSTACKER",12.2,527,"FACILE (2/6)",null,null,"3 h 45 mn",225," "]
["Thur","Steinbach",129," LES INÉDITS",11,477,"ASSEZ FACILE (2/6)",null,null,"3 h 30 mn",210," "]
["Thur","Willer s/Thur",131," ABRIS BLAUFELS, VOGESAPFAD ET KUPPEN ",12.9,640,"UN PEU DIFFICILE (3/6)",null,null,"4 h 15 mn",255," "]
["Sundgau","Altkirch",132," LE ‘‘OFF’’ ET LE ‘‘IN’’",15.1,236,"FACILE (2/6)",null,null,"3 h 30 mn",210," "]
["Doller","Aspach le Haut",133," UN GRAND CLASSIQUE",14,216,"FACILE (2/6)",null,null,"3 h 15 mn",195," "]
["Lauch","Lautenbach-Linthal",135," LE PETIT BALLON EN HIVER",15.8,816,"DIFFICILE (5/6)",null,null,"5 h 30 mn",330," "]
["Thur","Steinbach",136," MOLKENRAIN ET FREUNDSTEIN, EN HIVER",18,770,"ASSEZ DIFFICILE (4/6)",null,null,"5 h 15 mn",315," "]
["Plaine","Reiningue",137," AUTOUR DE L’OELENBERG",13.5,77,"FACILE (2/6)",null,null,"3 h 30 mn",210," "]
["Vallée Noble","Orschwihr",138," LE VIGNOBLE, DU BOLLENBERG À ROUFFACH",11.6,236,"FACILE (2/6)",null,null,"2 h 50 mn",170," "]
["Doller","Oberbruck",139," LES MINES ET LES CRÊTES",17,707,"UN PEU DIFFICILE (3/6)",null,null,"5 h 15 mn",315," "]
["Thur","Uffholtz",140," VERS WATTWILLER ET BERRWILLER",12.7,104,"TRÈS FACILE (1/6)",null,null,"2 h 45 mn",165," "]
["Sundgau","Aspach",141," LE SUNDGAU, TOUJOURS PLUS À L’OUEST",22.9,287,"UN PEU DIFFICILE (3/6)",null,null,"5 h 20 mn",320," "]
["Plaine","Mulhouse",142," DES PONTS ET DES PASSERELLES",13.3,78,"FACILE (2/6)",null,null,"3 h",180," "]
["TDBelfort","Suarce",143," LES RESSOURCES DU TERRITOIRE",26.3,202,"UN PEU DIFFICILE (3/6)",null,null,"6 h 30 mn",390," "]
["Plaine","Ensisheim",144," SENTIER DE L’ILL ET CANAL VAUBAN",21.4,51,"UN PEU DIFFICILE (3/6)",null,null,"4 h 30 mn",270," "]
["Lauch","Rimbach près Guebwiller",145," AU GRAND BALLON",15.5,825,"ASSEZ DIFFICILE (4/6)",null,null,"5 h 30 mn",330," "]
["Sundgau","Hirsingue",146," LE SUNDGAU AGRICOLE",17,212,"FACILE (2/6)",null,null,"3 h 50 mn",230," "]
["TDBelfort","Etueffont",147," LE MOINE ET SES SEPT CHEMINS",15.6,752,"UN PEU DIFFICILE (3/6)",null,null,"4 h 50 mn",290," "]
["Thur","Geishouse",148," UNE HISTOIRE DE CAPITAINE",14.8,690,"UN PEU DIFFICILE (3/6)",null,null,"4 h 45 mn",285," "]
["Sundgau","Gildwiller",149," LA TOURNÉE DES ÉTANGS",9.1,124,"FACILE (2/6)",null,null,"2 h 30 mn",150," "]
["Vosges","Col de Bussang",150," LES CHALETS FORESTIERS",18.8,768,"ASSEZ DIFFICILE (4/6)",null,null,"5 h 30 mn",330," "]
["Sundgau","Durlingsdorf",151," MORIMONT ET ÉBOURBETTES",17.3,574,"UN PEU DIFFICILE (3/6)",null,null,"5 h",300," "]
["Thur","Cernay",152," LE GRAND BALLON, A/R, VERSION 2018",35.1,1561,"DIFFICILE (5/6)",null,null,"8 h",480," "]
["Doller","Bourbach le Haut",153," GRILLADES NOCTURNES AU HOCHBURG ",7.8,290,"FACILE (2/6)",null,null,"1 h 50 mn",110," "]
["TDBelfort","La Chapelle s/Rougemont",154," CCPSV, PRAIRIES, FORÊTS ET ÉTANGS",14.9,89,"FACILE (2/6)",null,null,"3 h 45 mn",225," "]
["Sundgau","Walheim",155," SEMI-MARATHON SUNDGAUVIEN",24.1,405,"UN PEU DIFFICILE (3/6)",null,null,"5 h 30 mn",330," "]
["Doller","Rimbach près Masevaux",156," LAC ET COL DES PERCHES",13.1,634,"UN PEU DIFFICILE (3/6)",null,null,"3 h 30 mn",210," "]
["Thur","Storckensohn",157," AU GAZON-VERT !",12.6,704,"UN PEU DIFFICILE (3/6)",null,null,"4 h",240," "]
["Thur","Uffholtz",158," SOULTZ ET SON MOULIN",23.5,254,"UN PEU DIFFICILE (3/6)",null,null,"6 h 15 mn",375," "]
["Crêtes","Ballon d'Alsace",159," VERS LA HAUTE BERS",20.5,834,"ASSEZ DIFFICILE (4/6)",null,null,"6 h 30 mn",390," "]
["TDBelfort","Rougegoutte",160," LE CHÂTEAU AUX SEPT CHEMINS",19.8,754,"ASSEZ DIFFICILE (4/6)",null,null,"6 h 15 mn",375," "]
["Thur","Cernay",161," STEINBACH, FAÇON MONTAGNES RUSSES",9.8000000000000007,335,"UN PEU DIFFICILE (3/6)",null,null,"2 h 45 mn",165," "]
["Vosges","Saint Maurice S/Moselle",162," LE PLEIN DE NOUVEAUTÉS !",21.9,895,"ASSEZ DIFFICILE (4/6)",null,null,"6 h 45 mn",405," "]
["Lauch","Soultz",163," CE CIRCUIT A DU NEZ… ",6.4,301,"TRÈS FACILE (1/6)",null,null,"2 h",120," "]
["TDBelfort","Lagrange",164," ENTRE FORÊTS ET CHAMPS",12.2,180,"FACILE (2/6)",null,null,"3 h 10 mn",190," "]
["Sundgau","Hagenthal le Bas",165," AU LANDSKRON !",19.7,543,"UN PEU DIFFICILE (3/6)",null,null,"5 h 15 mn",315," "]
["68 Nord","Thannenkirch",166," LE MUR PAÏEN ET SES ROCHERS",21.2,733,"ASSEZ DIFFICILE (4/6)",null,null,"7 h",420," "]
["Doller","Sewen",167," LE ‘‘PETIT’’ TOUR, DEPUIS SEWEN ",20.7,868,"ASSEZ DIFFICILE (4/6)",null,null,"6 h",300," "]
["Thur","St Amarin",168," MON CIRCUIT DES CHAPELLES",12.2,550,"UN PEU DIFFICILE (3/6)",null,null,"3 h 30 mn",210," "]
["Vallée Munster","Schlucht",169," DE LA SCHLUCHT AU LAC VERT",12.8,537,"ASSEZ DIFFICILE (4/6)",null,null,"4 h 50 mn",290," "]
["Doller","Sickert",170,"LE CHALET ROGER GAUGLER À SICKERT"," 7,5",338,"UN PEU DIFFICILE (3/6)",null,null,"2 h 30 mn",150," "]
["Doller","Lachtelweyer",171,"LACHTELWEIHER, LOCHBERG, FENNEMATT",8.8000000000000007,395,"FACILE (2/6)",null,null,"2 h 45 mn",165," "]
["Thur","Malmerspach",172," MONTÉE DEPUIS MALMERSPACH",18.899999999999999,785,"UN PEU DIFFICILE (3/6)",null,null,"5 h 30 mn",330," "]
["Thur","Mollau",173," MONTÉE DEPUIS MOLLAU",15.1,742,"UN PEU DIFFICILE (3/6)",null,null,"5 h",300," "]
["Thur","Bitschwiller les Thann",174,"BITSCHWILLER, RIVE GAUCHE",11.5,482,"UN PEU DIFFICILE (3/6)",null,null,"3 h 45 mn",225," "]
["Thur","Moosch",176," NOUVEAU CIRCUIT DU HAAG",15.8,898,"UN PEU DIFFICILE (3/6)",null,null,"5 h 30 mn",330," "]
["Crêtes","Le Bonhomme",177,"LE GRAND BRÉZOUARD",15.3,632,"ASSEZ DIFFICILE (4/6)",null,null,"5 h 30 mn",330," "]
["Thur","Thann",177,"ABRI ZUBER ET ABRI BAUMANN À THANN",7.6,398,"FACILE (2/6)",null,null,"2 h 30 mn",150," "]
["Lauch","Jungholtz",178," EN FORÊT RECULÉE DE SOULTZ",10.1,482,"UN PEU DIFFICILE (3/6)",null,null,"3 h 45 mn",225," "]
["Thur","St Amarin",179," AU MARKSTEIN !",15.3,738,"UN PEU DIFFICILE (3/6)",null,null,"5 h",300," "]
["Thur","St Amarin",180," LE CIRCUIT DU BELACKER",17,813,"UN PEU DIFFICILE (3/6)",null,null,"6 h",360," "]
["Doller","Sickert",181,"LE SATTELBODEN, DEPUIS SICKERT",12.6,602,"UN PEU DIFFICILE (3/6)",null,null,"4 h 30 mn",270," "]
["Sundgau","Flaxlanden",182," LE SUNDGAU AUTOMNAL",17.899999999999999,255,"FACILE (2/6)",null,null,"4 h 15 mn",255," "]
["Lauch","Guebwiller",183," TROTTBERG ET APPENTHAL, LES MYSTÈRES…",6.8,332,"FACILE (2/6)",null,null,"2 h 15 mn",135," "]
["Vallée Munster","Breitenbach",184," LE CIRCUIT DU PETIT BALLON",14.1,838,"ASSEZ DIFFICILE (4/6)",null,null,"4 h 15 mn",255," "]
["Thur","St Amarin",185," LE CIRCUIT DES 2 ‘‘M’’",12.9,502,"UN PEU DIFFICILE (3/6)",null,null,"4 h",240," "]
["Thur","Cernay",186," LE VALLON DE L’ERZENBACH",12.9,385,"UN PEU DIFFICILE (3/6)",null,null,"3 h 20 mn",200," "]
["Thur","Moosch",187," LE TOUR DU GRAND BALLON",19.100000000000001,1065,"ASSEZ DIFFICILE (4/6)",null,null,"5 h 30 mn",330," "]
["Sundgau","Dannemarie",188," LE SUNDGAU EN AUTOMNE",18.5,171,"UN PEU DIFFICILE (3/6)",null,null,"4 h 30 mn",270," "]
["Thur","Cernay",189," UN PETIT TOUR",12.3,59,"ASSEZ FACILE (2/6)",null,null,"2 h 30 mn",150," "]
["Vallée Munster","Wintzenheim",190," LES FORÊTS DES 5 CHÂTEAUX",16.5,668,"UN PEU DIFFICILE (3/6)",null,null,"5 h 15 mn",315," "]
["Doller","Oberbruck",191," LE CIRCUIT DES GRESSON",13.1,549,"UN PEU DIFFICILE (3/6)",null,null,"4 h",240," "]
["Thur","Vieux-Thann",192," LE RANGEN, EN LONG ET EN LARGE",5.8,262,"FACILE (2/6)",null,null,"2 h",120," "]
["Thur","Cernay",193," CYCLABLES ET DE DÉFRUITEMENT, CE SONT LES PISTES",8.6,44,"TRÈS FACILE (1/6)",null,null,"1 h 50 mn",110," "]
["Thur","Thann",194," AUTOUR DU GRUMBACH",7.7,288,"FACILE (2/6)",null,null,"2 h 05 mn",125," "]
["Sundgau","Illfurth",195," LES COLLINES, L’ILL, LE CANAL",15,192,"UN PEU DIFFICILE (3/6)",null,null,"3 h 45 mn",225," "]
["Thur","Bitschwiller les Thann",196," LE TOUR DU THANNER HUBEL",14.2,764,"ASSEZ DIFFICILE (4/6)",null,null,"4 h 20 mn",260," "]
["Sundgau","Aspach",197," UN PETIT CIRCUIT",11.6,99,"FACILE (2/6)",null,null,"2 h 50 mn",170," "]
["Thur","Wattwiller",198," UN CIRCUIT VRAIMENT FACILE",4.9000000000000004,154,"TRÈS FACILE (1/6)",null,null,"1 h 30 mn",90," "]
["Plaine","Ruelisheim",199," LE CIRCUIT DES TUMULI",14.3,47,"FACILE (2/6)",null,"x","4 h",240," "]
["Thur","Steinbach",200," CIRCUIT DE MISE EN FORME, VERSION COURTE",15.2,583,"UN PEU DIFFICILE (3/6)",null,"x","3 h 30 mn",210," "]
["Thur","Steinbach",201," CIRCUIT DE MISE EN FORME, VERSION LONGUE",18.8,807,"ASSEZ DIFFICILE (4/6)",null,"x","5 h 30 mn",330," "]
["Thur/Doller","Roderen",202," CHAMPS, FORÊTS ET ÉTANGS",12.2,242,"FACILE (2/6)",null,"x","2 h 55 mn",175," "]
["Sundgau","Hirsingue",203," ÉTANGS, CASEMATES ET CHAPELLES ",14.5,210,"FACILE (2/6)",null,"x","3 h 45 mn",225," "]
["Doller","Masevaux",204," LA FORÊT DE STOECKEN, SOUS LA NEIGE",6.7,244,"FACILE (2/6)",null,null,"2 h 15 mn",135," "]
["Sundgau","Montreux-château",205," DANS LE TERRITOIRE",15,129,"UN PEU DIFFICILE (3/6)",null,"x","3 h 40 mn",220," "]
["Crêtes","Col d'Oderen",206," LE TOUR DU GRAND VENTRON, EN HIVER",16,585,"DIFFICILE (5/6)",null,null,"6 h",360," "]
["Sundgau","Luemschwiller",207," LE SUNDGAU, SA TERRE, SES ARBRES",13.1,244,"FACILE (2/6)",null,"x","3 h 30 mn",210," "]
["Doller","Kirchberg",208," UN PETIT CIRCUIT DE DÉCOUVERTE ",7.2,237,"UN PEU DIFFICILE (3/6)",null,null,"2 h 30 mn",150," "]
["TDBelfort","Bethonvillers",209," LA FORÊT EST AUSSI BELLE EN HIVER !",17.600000000000001,182,"UN PEU DIFFICILE (3/6)",null,"x","4 h 30 mn",270," "]
["Thur","Thann",210," LE PETIT CIRCUIT WALDKAPELLE",7.9,272,"UN PEU DIFFICILE (3/6)",null,null,"2 h 15 mn",135," "]
["Thur","Steinbach",211," MON CIRCUIT DU CAMP TURENNE ",9.3000000000000007,485,"UN PEU DIFFICILE (3/6)",null,null,"2 h 45 mn",165," "]
["Doller","Lauw",212," LE CIRCUIT DE L'OBERWALD",6.9,104,"FACILE (2/6)",null,"x","2 h 10 mn",130," "]
["Vallée Noble","Pfaffenheim",213," ENTRE VIGNES ET SPIRITUALITÉ ",12.5,414,"ASSEZ FACILE (2/6)",null,"x","4 h 15 mn",255," "]
["Sundgau","Altkirch",214," MARCHER SUR LA PISTE CYCLABLE ",14.8,52,"FACILE (2/6)",null,"x","3 h",180," "]
["Sundgau","Illfurth",215," LE GR 531 NOUVEAU EST ARRIVÉ !",22.9,151,"UN PEU DIFFICILE (3/6)",null,"x","5 h",300," "]
["Sundgau","Winkel",216," PIQUE-NIQUE AU COL DU NEUNEICH",15.4,564,"UN PEU DIFFICILE (3/6)",null,"x","4 h 30 mn",270," "]
["Doller","Michelbach",217," LE TOUR DU LAC",5.5,43,"TRÈS FACILE (1/6)",null,null,"1 h 30 mn",90," "]
["Doller","Masevaux",218," ENCORE LE GR 531",8.4,225,"FACILE (2/6)",null,"x","2 h 35 mn",155," "]
["Sundgau","Ferrette",219," TOUJOURS PLUS À L’EST",15,512,"UN PEU DIFFICILE (3/6)",null,"x","4 h 30 mn",270," "]
["Thur/Doller","Col du Hundsruck",220," UN TOUR EN RAQUETTES ",9.8000000000000007,483,"UN PEU DIFFICILE (3/6)",null,null,"3 h 30 mn",210," "]
["Thur","Cernay",221," PETITE PROMENADE",8.6,38,"TRÈS FACILE (1/6)",null,"x","2 h",120," "]
["Plaine","Rixheim",222," LE CIRCUIT DES 3 CHÂTEAUX !",19.2,46,"UN PEU DIFFICILE (3/6)",null,"x","4 h 30 mn",270," "]
["Sundgau","Traubach le Bas",223," CROIX ET CRUCIFIX (CIRCUIT COURT)",13.7,113,"FACILE (2/6)",null,"x","3 h",180," "]
["Sundgau","Traubach le Bas",223," CROIX ET CRUCIFIX (CIRCUIT LONG)",16.5,166,"ASSEZ FACILE (2/6)",null,"x","3 h 45 mn",225," "]
["Sundgau","Gildwiller",224," MARCHER JUSQU’À BELLEMAGNY",14,239,"ASSEZ FACILE (2/6)",null,"x","3 h 20 mn",200," "]
["Sundgau","Gildwiller",225," ENCORE LE GR 531 !",5.0999999999999996,92,"TRÈS FACILE (1/6)",null,"x","1 h 15 mn",75," "]
["Plaine","Ungersheim",226," LA TOURNÉE DES PARCS",15.1,42,"ASSEZ FACILE (2/6)",null,"x","4 h",240," "]
["Doller","Masevaux",227," MONTER AU VOGELSTEIN !",18.100000000000001,905,"ASSEZ DIFFICILE (4/6)",null,null,"5 h 30 mn",330," "]
["Doller","Dolleren",228," À LA FENNEMATT",13.5,565,"UN PEU DIFFICILE (3/6)",null,null,"4 h 30 mn",270," "]
["Thur","St Amarin",229," COL DE RIMBACH ET BELACKER",18.5,682,"UN PEU DIFFICILE (3/6)",null,null,"4 h 20 mn",260," "]
["Plaine","Merxheim",230," PLAINE, MA PLAINE",16.3,56,"ASSEZ FACILE (2/6)",null,"x","3 h 40 mn",220," "]
["Plaine","Ensisheim",231," ENTRE PLAINE ET FORÊT",16.899999999999999,32,"ASSEZ FACILE (2/6)",null,"x","3 h 45 mn",225," "]
["Doller","Lac d'Alfeld",232," OÙ SONT LES FERMES ? ",6.9,480,"UN PEU DIFFICILE (3/6)",null,null,"3 h",180," "]
["Thur","Uffholtz",233," HERRENFLUH ET SIEHLBAECHLE",8.9,400,"UN PEU DIFFICILE (3/6)",null,null,"3 h 50 mn",230," "]
["Sundgau","Kiffis",234," AUTOUR DU GLASERBERG",11.7,355,"UN PEU DIFFICILE (3/6)",null,null,"4 h 45 mn",285," "]
["Vosges","St Maurice sur Moselle",235," LA GOUTTE ET LE BALLON",14.9,660,"UN PEU DIFFICILE (3/6)",null,null,"4 h 30 mn",270," "]
["Sundgau","Bisel",236," AUTOUR DU GR 532",23.1,214,"UN PEU DIFFICILE (3/6)",null,"x","5 h 30 mn",330," "]
["Thur","Fellering",237," NOUS MONTONS AU DRUMONT ! ",16.2,798,"UN PEU DIFFICILE (3/6)",null,null,"5 h",300," "]
["Lauch","Lautenbach-Zell",238," CHEMINS ET SENTIERS VERS LE GRAND BALLON",20.5,1006,"ASSEZ DIFFICILE (4/6)",null,null,"5 h 45 mn",345," "]
["Vallée Noble","Orschwihr",239,"ORSCHWIHR :DEUX CHÂTEAUX ET DEUX CHAPELLES",10.199999999999999,261,"FACILE (2/6)",null,"x","3 h",180," "]
["Crêtes (Sud)","Hartmannswiller",240," MOLKENRAIN ET FREUNDSTEIN",7.1,301,"UN PEU DIFFICILE (3/6)",null,null,"1 h 55 mn",115," "]
["Thur","Wattwiller",241,"LE GRAND BALLON, OU LA QUÊTE DU GRAAL",26.9,1439,"DIFFICILE (5/6)",null,null,"7 h 15 mn",435," "]
["Doller","Schweighouse",242,"SCHWEIGHOUSE-THANN ",9.1999999999999993,54,"FACILE (2/6)",null,"x","2 h",120," "]
["TDBelfort","La Chapelle s/Rougemont",243,"LACHAPELLE-SOUS-ROUGEMONT",8.6,58,"FACILE (2/6)",null,"x","2 h 15 mn",135," "]
["Thur/Doller","Roderen",244," UN TOUT PETIT CIRCUIT FACILE",5.4,154,"FACILE (2/6)",null,"x","1 h 30 mn",90," "]
["Vallée Munster","Hohneck",245,"KASTELBERG ET ALTENWEIHER",11.3,475,"UN PEU DIFFICILE (3/6)",null,null,"4 h",240," "]
["Crêtes (Sud)","Molkenrain",246,"PIQUE-NIQUE CHEZ LES FREUNDSTEIN",9.1,400,"UN PEU DIFFICILE (3/6)",null,null,"4 h",240," "]
["Doller","Masevaux",247,"LACHTELWEIHER ET BAERENKOPF",20.399999999999999,795,"UN PEU DIFFICILE (3/6)",null,null,"5 h 35 mn",335," "]
["Crêtes (Sud)","Ballon d'Alsace",248,"LE GR5, JUSQU’AU COL DES PERCHES",20,670,"ASSEZ DIFFICILE (4/6)",null,null,"5 h 40 mn",340," "]
["Crêtes (Sud)","Hirtzenstein",249,"MONTÉE AU HARTMANNSWILLERKOPF",7.4,451,"UN PEU DIFFICILE (3/6)",null,null,"2 h 35 mn",155," "]
["TDBelfort","Giromagny",250,"LE TOUR DU BALLON D’ALSACE",25.8,932,"ASSEZ DIFFICILE (4/6)",null,null,"6 h 45 mn",405," "]
["Thur","Steinbach",251," L’ANNEAU BLEU DU VALLON",6.2,233,"FACILE (2/6)",null,null,"2 h 05 mn",125," "]
["Thur","Thann",252," MATINALE À LA ROCHE ALBERT",7.6,315,"FACILE (2/6)",null,null,"2 h 15 mn",135," "]
["Vosges","Bussang",253," LA CHAUME DES NEUFS BOIS",13.1,430,"UN PEU DIFFICILE (3/6)",null,null,"3 h 45 mn",225," "]
["Thur","Thann",254," PETIT CIRCUIT FORESTIER",5.8,223,"FACILE (2/6)",null,"x","1 h 35 mn",95," "]
["Thur","Mollau",255," PAR LES CHEMINS, EN FORÊT DE MOLLAU",14.8,449,"UN PEU DIFFICILE (3/6)",null,"x","3 h 45 mn",225," "]
["Doller","Rimbach près Masevaux",256," LA FORÊT DES VOLCANS",12.8,527,"UN PEU DIFFICILE (3/6)",null,null,"4 h",240," "]
["Vallée Munster","Petit Ballon",257," LE GRAND TOUR DU PETIT BALLON",12.5,588,"UN PEU DIFFICILE (3/6)",null,null,"4 h",240," "]
["Thur","Wildenstein",258," CHERCHONS LA FRAÎCHEUR ",7.8,317,"ASSEZ FACILE (2/6)",null,null,"2 h 30 mn",150," "]
["Thur","Thann",259," PETIT-DÉJEUNER AU CHÊNE WOTAN",11.4,541,"UN PEU DIFFICILE (3/6)",null,null,"3 h 15 mn",195," "]
["Thur","Thann",260," LE CIRCUIT DU HUNDSRUCK",12.9,497,"UN PEU DIFFICILE (3/6)",null,"x","3 h 45 mn",225," "]
["Sundgau","Altkirch",261," LE SUNDGAU, SANS LES COLLINES",14.5,138,"ASSEZ FACILE (2/6)",null,"x","3 h 10 mn",190," "]
["Plaine","Mulhouse",262," LE SUNDGAU, AUTOUR DU GR 532",14.3,271,"ASSEZ FACILE (2/6)",null,"x","3 h 15 mn",195," "]
["Sundgau","Waltenheim",263," LES GRANDES DÉCOUVERTES",18.100000000000001,208,"ASSEZ FACILE (2/6)",null,"x","4 h 15 mn",255," "]
["Vallée Munster","Gaschney",264," LE TOUR DU HOHNECK, LE PETIT ET LE GRAND",8.6,505,"UN PEU DIFFICILE (3/6)",null,null,"3 h",180," "]
["Vallée Munster","Metzeral",265,"FISCHBOËDLE ET SCHIESSROTHRIED",15.5,592,"ASSEZ DIFFICILE (4/6)",null,null,"4 h 15 mn",255," "]
["TDBelfort","Grosne",266," UN GRAND CIRCUIT POUR LES GRANDS CHENES",19.2,157,"UN PEU DIFFICILE (3/6)",null,"x","4 h 15 mn",255," "]
["Vallée Munster","Sondernach",267," LE GRAND TOUR DU HILSENFIRST",18.7,832,"ASSEZ DIFFICILE (4/6)",null,null,"6 h 15 mn",375," "]
["Lauch","Wuenheim",268," AUTOUR DE LA CROIX ZIMMERMANN",9.5,424,"UN PEU DIFFICILE (3/6)",null,null,"3 h 15 mn",195," "]
["Crêtes","Parking du Haut Chitelet",269," UNE NOUVELLE APPROCHE DU SENTIER DES ROCHES",6.8,256,"ASSEZ DIFFICILE (4/6)",null,null,"2 h 30 mn",150," "]
["Doller","Mortzwiller",270," LE VALLON DU SOULTZBACH",7.1,92,"ASSEZ FACILE (2/6)",null,"x","2 h",120," "]
["Vallée Munster","Mittlach",271," HERRENBERG, RAINKOPF ET ALTENWEIER",16.899999999999999,873,"ASSEZ DIFFICILE (4/6)",null,null,"5 h 30 mn",330," "]
["Vallée Kaysersberg","Kaysersberg",272," URSPRUNG, ROCHE DU TETRAS ET ST ALEXIS",17,275,"UN PEU DIFFICILE (3/6)",null,null,"5 h 30 mn",330," "]
["Sundgau","Wolschwiller",273," COMME UN PARFUM DE LSD",13.6,440,"UN PEU DIFFICILE (3/6)",null,null,"4 h 30 mn",270," "]
["Vallée Munster","Katzenthal",274," NOUS MONTONS AU GALTZ",10.6,501,"UN PEU DIFFICILE (3/6)",null,null,"3 h",180," "]
["Kaysersberg","Lapoutroie",275," TOUR  DU FAUDE, TETE DES FAUX",17.5,931,"ASSEZ DIFFICILE (4/6)",null,null,"5 h 45 mn",345," "]
["Kaysersberg","Orbey",276," DES PIERRES, DES PINS ET DES DOMINICAINES",15.2,575,"UN PEU DIFFICILE (3/6)",null,null,"4 h 30 mn",270," "]
["Kaysersberg","Orbey",277," LAC BLANC, LAC NOIR",10,404,"UN PEU DIFFICILE (3/6)",null,null,"3 h 15 mn",195," "]
["Vallée Munster","Col du Wettstein",278," LE TOUR DU LAC DU FORLET",10.5,489,"UN PEU DIFFICILE (3/6)",null,null,"3 h 30 mn",210," "]
["Kaysersberg","Aubure",279," LES 3 BANS ET LES JOLIES COLONIES DE VACANCES",12.8,462,"UN PEU DIFFICILE (3/6)",null,"x","3 h 30 mn",210," "]
["Kaysersberg","Orbey",280,"LE GRAND TOUR DU NOIRMONT",16.2,499,"UN PEU DIFFICILE (3/6)",null,null,"3 h 30 mn",255," "]
["Crêtes","Le Bonhomme",281,"LA TOURNÉE DES COLS",13.4,510,"UN PEU DIFFICILE (3/6)",null,null,"4 h 30 mn",270," "]
["Lauch","Lautenbach-Zell",282,"LAC DU BALLON ET HUSENBOURG",11.5,498,"UN PEU DIFFICILE (3/6)",null,null,"3 h 30 mn",210," "]
["Crêtes","Hohneck",283,"LES LACS VOSGIENS",17.100000000000001,732,"ASSEZ DIFFICILE (4/6)",null,null,"5 h",300," "]
["Sundgau","Illfurth",284,"LE CIRCUIT DE HEIDWILLER",12.2,158,"ASSEZ FACILE (2/6)",null,"x","2 h 45 mn",165," "]
["TDBelfort","Lepuix",285,"ÉTANG DES BELLES FILLES ET COL DE LA ROUGERIE",12.4,660,"UN PEU DIFFICILE (3/6)",null,null,"4 h 30 mn",270," "]
["TDBelfort","Plancher Les Mines",286,"L’ENDROIT DE ST-ANTOINE ",15.5,711,"UN PEU DIFFICILE (3/6)",null,null,"4 h 45 mn",285," "]
["Thur","Cernay",287,"STAFFELFELDEN PAR LA PISTE CYCLABLE ",18.399999999999999,64,"ASSEZ FACILE (2/6)",null,"x","3 h 30 mn",210," "]
["Thur","Bitschwiller les Thann",288,"PETIT CIRCUIT DU CAMP DES PYRAMIDES",9.1,430,"UN PEU DIFFICILE (3/6)",null,null,"2 h 45 mn",165," "]
["Lauch","Guebwiller",289,"HUGSTEIN ET PETERNIT",8.5,356,"UN PEU DIFFICILE (3/6)",null,null,"2 h 45 mn",165," "]
["Sundgau","Illfurth",290,"LE GRAND TOUR DU GRAND CANON",15.9,235,"UN PEU DIFFICILE (3/6)",null,"x","3 h 50 mn",230," "]
["TDBelfort","Lepuix Neuf",291," LONGER LA FRONTIÈRE SUISSE",22.4,396,"UN PEU DIFFICILE (3/6)",null,null,"5 h 45 mn",345," "]
["Sundgau","Michelbach le Haut",292,"DU CÔTÉ DE L’AÉROPORT",17.2,178,"UN PEU DIFFICILE (3/6)",null,"x","5 h 45 mn",345," "]
["Vosges","Col de Bussang",293,"DES ALLEMANDS À ST-HUBERT",7.8,301,"UN PEU DIFFICILE (3/6)",null,null,"3 h",180," "]
["Thur","Cernay",294,"ERBENHEIM, ÇA VOUS PARLE ?",10.7,35,"ASSEZ FACILE (2/6)",null,"x","3 h 40 mn",220," "]
["Thur/Doller","Roderen",295,"LE TOUR DU NEUBERG ",8.4,177,"ASSEZ FACILE (2,5/6)",null,"x","2 h",120," "]
["Lauch","Col du Boenlesgrab",296,"LE PETIT TOUR DU PETIT BALLON",7.4,395,"UN PEU DIFFICILE (3/6)",null,null,"2 h 15 mn",135," "]
["Thur","Mollau",297,"ESSENBACHKOPF ET RIMBACHKOPF",15.2,750,"ASSEZ DIFFICILE (4/6)",null,null,"4 h 30 mn",270," "]
["Thur","Cernay",298,"AU SUD, AUTOUR DE LA D 83",9,23,"ASSEZ FACILE (2/6)",null,"x","2 h",120," "]
["Thur","Schweighouse",299,"LE BAERENBACH, SANS LES OURS",7.8,34,"ASSEZ FACILE (2/6)",null,"x","1 h 45 mn",105," "]
["Plaine","Morschwiller le Bas",300,"UN GRAND CIRCUIT",21,111,"UN PEU DIFFICILE (3/6)",null,"x","4 h 45 mn",285," "]
["Doller","Wegscheid",301,"LE NOUVEAU BELVÉDÈRE DU FUCHSFELSEN",14,671,"ASSEZ DIFFICILE (4/6)",null,null,"4 h 45 mn",285," "]
["Thur","Cernay",302,"UN NOUVEAU PETIT CIRCUIT",8.6999999999999993,30,"ASSEZ FACILE (2/6)",null,"x","1 h 45 mn",105," "]
["Thur","Thann",303,"PETIT GALOP D’ESSAI",5.9,262,"ASSEZ FACILE (2/6)",null,"x","1 h 30 mn",90," "]
["Thur","Wildenstein",304,"RETOUR AU LAC DE KRUTH-WILDENSTEIN",11.4,412,"UN PEU DIFFICILE (3/6)",null,null,"3 h 30 mn",210," "]
["Thur","Thann",305,"GRILLADES NOCTURNES À L’ABRI BAUMANN ",8.9,384,"UN PEU DIFFICILE (3/6)",null,null,"2 h 30 mn",150," "]
["Thur","Urbès",306,"LE CIRCUIT DU ROUGE GAZON",11.3,759,"ASSEZ DIFFICILE (4/6)",null,null,"4 h 15 mn",255," "]
["Plaine","Rixheim",307,"LE GRAND TOUR DU PETIT AÉRODROME ",11.7,98,"ASSEZ FACILE (2/6)",null,"x","3 h",180," "]
["Vosges","Col de Bussang",308,"UN NOUVEAU CIRCUIT DU DRUMONT",11.8,595,"UN PEU DIFFICILE (3/6)",null,null,"3 h 45 mn",225," "]
["Thur","Kruth",309,"LE TREH, PAR L’ABRI DIEMUNSCH ",13.6,630,"UN PEU DIFFICILE (3/6)",null,null,"4 h",240," "]
["Sundgau","Bruebach",310,"LE SUNDGAU, COLLINES, CHAMPS ET FORÊTS",14.1,265,"ASSEZ FACILE (2/6)",null,"x","3 h 15 mn",195," "]
["Thur","Moosch",311,"LE CIRCUIT DE L’ABRI DU FAUCON CRÉCERELLE",15.3,757,"UN PEU DIFFICILE (3/6)",null,null,"4 h 25 mn",265," "]
["Vallée Noble","Orschwihr",312,"LE VIGNOBLE EN HIVER, JUSQU’AU SCHAUENBERG",21.6,499,"UN PEU DIFFICILE (3/6)",null,null,"5 h 20 mn",320," "]
["Doller","Col Du Schirm",313,"LE TOUR DU ROSSBERG ",13.7,587,"UN PEU DIFFICILE (3/6)",null,null,"4 h 15 mn",255," "]
["Lauch","Soultz",314,"LE CIRCUIT DE TOUTES LES DÉCOUVERTES",14.6,427,"UN PEU DIFFICILE (3/6)",null,null,"4 h 15 mn",255," "]
["Sundgau","Illfurth",315,"LES COLLINES DES CINQ COMMUNES",19.600000000000001,463,"UN PEU DIFFICILE (3/6)",null,"x","5 h 15 mn",315," "]
["Lauch","Lac de la Lauch",316,"LE CIRCUIT DES COLS",13.9,695,"ASSEZ DIFFICILE (4/6)",null,null,"5 h 30 mn",330," "]
["Thur","Wattwiller",317,"HWK FLANC EST, COURBES 0 ET 1",9.1999999999999993,303,"ASSEZ FACILE (2/6)",null,"x","2 h 15 mn",135," "]
["Plaine","Reiningue",318,"DU CENTRE PÉNITENTIAIRE À L’ABBAYE !",14.3,49,"ASSEZ FACILE (2/6)",null,"x","3 h 10 mn",190," "]
["Plaine","Aspach-Michelbach",319,"PAYSAGES AGRICOLES ET FORESTIERS",13.6,218,"ASSEZ FACILE (2/6)",null,"x","2 h 45 mn",165," "]
["Doller","Rimbach près Masevaux",320,"NEUWEIHER, BERS ET PERCHES ",11.5,623,"ASSEZ DIFFICILE (4/6)",null,null,"4 h 15 mn",255," "]
["Thur","Willer s/Thur",321,"L’ARBRE TOTEM DU SATTEL",12.9,630,"UN PEU DIFFICILE (3/6)",null,"x","3 h 45 mn",225," "]
["Sundgau","Dannemarie",322,"CASSE- CROÛTE À NOTRE-DAME DE BELLEFONTAINE",19.2,142,"UN PEU DIFFICILE (3/6)",null,"x","4 h 30 mn",270," "]
["Sundgau","Altenach",323,"LE GRAND TOUR DES ÉTANGS DU SUNDGAU",27.8,312,"UN PEU DIFFICILE (3/6)",null,"x","5 h 30 mn",330," "]
["Thur","Steinbach",324,"LA REPRISE EN DOUCEUR",11.5,468,"UN PEU DIFFICILE (3/6)",null,null,"3 h",180," "]
["Thur","Wattwiller",325,"LE GRAND HUIT DU MOLKENRAIN",16.8,937,"ASSEZ DIFFICILE (4/6)",null,null,"4 h 45 mn",285," "]
["Thur","Husseren",326,"LE PETIT CIRCUIT DU CHAUVELIN",6,267,"UN PEU DIFFICILE (3/6)",null,null,"2 h 10 mn",130," "]
["Thur","Kruth",327,"L’APPEL DES CRÊTES",15.8,746,"ASSEZ DIFFICILE (4/6)",null,null,"4 h 20 mn",260," "]
["Crêtes","Route des Crêtes",328,"SENTIER DES ROCHES",12.5,476,"ASSEZ DIFFICILE (4/6)",null,null,"4 h",240," "]
["Thur","Wattwiller",329,"LA CASCADE DU SIEHLBAECHLE",4.7,225,"ASSEZ FACILE (2/6)",null,"x","1 h 30 mn",90," "]
["TDBelfort","Valdoie",330,"POUR FAIRE DES KILOMÈTRES… ",18.899999999999999,127,"UN PEU DIFFICILE (3/6)",null,"x","4 h 30 mn",270," "]
["Thur/Doller","Col du Hundsruck",331,"ROSSBERG, VOGELSTEIN, FUCHSFELSEN",15.2,568,"UN PEU DIFFICILE (3/6)",null,null,"4 h 30 mn",270," "]
["Thur","Thann",332,"UN PETIT TOUR DU RANGEN",5.0999999999999996,162,"FACILE (2/6)",null,null,"1 h 30 mn",90," "]
["Vallée Munster","Orbey",333,"DU DOMAINE DES LACS AU CREUX D’ARGENT",15.9,658,"ASSEZ DIFFICILE (4/6)",null,null,"5 h",300," "]
["Thur","Thann",334,"PETIT TOUR SUR LA COLLINE DU STAUFEN",4.3,177,"FACILE (2/6)",null,null,"1 h 15 mn",75," "]
["Thur","Cernay",335,"D’UNE PISTE CYCLABLE À L’AUTRE",16.2,71,"ASSEZ FACILE (2/6)",null,"x","3 h 05 mn",185," "]
["Sundgau","Ferrette",336,"VILLAGES ET FORÊTS DU SUNDGAU",22.4,713,"ASSEZ DIFFICILE (4/6)",null,null,"6 h 15 mn",375," "]
["TDBelfort","Rougemont Le Château",337,"LE TERRITOIRE DU BAERENKOPF",19.600000000000001,717,"ASSEZ DIFFICILE (4/6)",null,null,"6 h",360," "]
["Doller","Aspach le Bas",338,"LE MICHELBACH, AUTREMENT",7.9,104,"ASSEZ FACILE (2/6)",null,"x","1 h 50 mn",115," "]
["Thur","Cernay",339,"CERNAY-UFFHOLTZ-WATTWILLER",11.4,152,"ASSEZ FACILE (2/6)",null,"x","2 h 30 mn",150," "]
["Doller","Sewen",340,"LE TOUR DU BALLON D’ALSACE",18.600000000000001,863,"ASSEZ DIFFICILE (4/6)",null,null,"5 h 30 mn",330," "]
["Thur","Willer s/Thur",341,"OSTEIN & OSTEIN",14.6,539,"UN PEU DIFFICILE (3/6)",null,null,"3 h 40 mn",220," "]
["Thur","Fellering",342,"LE TREH ET QUELQUES ABRIS",15.5,795,"ASSEZ DIFFICILE (4/6)",null,null,"5 h",300," "]
["Thur","Vieux-Thann",343,"HAÏDA A RETROUVÉ SA PLACE",5.8,246,"FACILE (2/6)",null,"x","1 h 40 mn",100," "]
["Vallée Munster","Gaschney",344,"SUR LE GR 531, MAIS PAS QUE…",18.7,620,"ASSEZ DIFFICILE (4/6)",null,null,"5 h 15 mn",315," "]
["Doller","Dolleren",345,"SCHLUMPF ET GRABER",12.1,562,"UN PEU DIFFICILE (3/6)",null,null,"4 h",240," "]
["Thur","Jungholtz",346,"ALLER-RETOUR AU GRAND BALLON, VERSION 2020",20,1099,"ASSEZ DIFFICILE (4/6)",null,null,"5 h 30 mn",330," "]
["Thur","Cernay",347,"MON CIRCUIT TURENNE ET HERRENFLUH",17.100000000000001,641,"UN PEU DIFFICILE (3/6)",null,null,"4 h 50 mn",290," "]
["Lauch","Guebwiller",348,"LE VIGNOBLE JUSQU’À ORSCHWIHR",12,85,"ASSEZ FACILE (2/6)",null,"x","3 h",180," "]
["Thur","Kruth-Wildenstein",349,"UN CIRCUIT EN 2020",12.5,534,"UN PEU DIFFICILE (3/6)",null,null,"3 h 30 mn",210," "]
["Crêtes","Col de la Schlucht",350,"LES SENTIERS DES ROCHERS",22.9,783,"DIFFICILE (5/6)",null,null,"7 h",420," "]
["Vosges","Col du Page",351,"AUTOUR DU FRÈRE JOSEPH",18.100000000000001,455,"UN PEU DIFFICILE (3/6)",null,"x","5 h",300," "]
["Thur","Col du Herrenfluh",352,"LE TOUR DU MOLKENRAIN",9.1999999999999993,387,"ASSEZ FACILE (2/6)",null,"x","3 h",180," "]
["Vosges","Travexin",353,"LA FORÊT, ENCORE LA FORÊT ! ",20.7,707,"UN PEU DIFFICILE (3/6)",null,"x","5 h 45 mn",345," "]
["Sundgau","Hagenthal le Bas",354,"LE SUNDGAU, TOUT PRÈS DE LA SUISSE",21.3,321,"UN PEU DIFFICILE (3/6)",null,"x","5 h 30 mn",330," "]
["Thur","Freundstein",355,"LA FACE CACHÉE DU MOLKENRAIN",6.5,355,"ASSEZ FACILE (2/6)",null,null,"2 h 15 mn",135," "]
["Thur","Uffholtz",356,"VIGNES ET COLLINES SOUS-VOSGIENNES ",9,200,"ASSEZ FACILE (2/6)",null,"x","2 h",120," "]
["Vallée Kaysersberg","Kaysersberg",357,"WEIBEL, CRAS ET WOLFGANG",18.399999999999999,740,"UN PEU DIFFICILE (3/6)",null,null,"5 h 45 mn",345," "]
["Thur","Wattwiller",358,"AU HARTMANNSWILLERKOPF",11.4,577,"UN PEU DIFFICILE (3/6)",null,null,"4 h",240," "]
["Thur","Cernay",359,"COMMENT ÇA VA, LA THUR?",12,87,"ASSEZ FACILE (2/6)",null,"x","3 h",180," "]
["Vosges","Col de Bramont",360,"MACHAIS, LA LANDE ET BLANCHEMER",18.7,778,"ASSEZ DIFFICILE (4/6)",null,null,"5 h 30 mn",330," "]
["Crêtes","Col de la Schlucht",361,"LAC VERT ET HIRSCHSTEINE",12.7,510,"UN PEU DIFFICILE (3/6)",null,null,"4 h",240," "]
["Doller","Lachtelweyer",362,"FENNEMATT ET BAERENLOCH ",11.5,400,"UN PEU DIFFICILE (3/6)",null,null,"3 h 45 mn",225," "]
["Crêtes (Sud)","Hirtzenstein",363,"DANS LES LIGNES FRANÇAISES",8.6,513,"UN PEU DIFFICILE (3/6)",null,null,"4 h",240," "]
["Lauch","Boenlesgrab",364,"LE TOUR DU PETIT BALLON",10.6,465,"UN PEU DIFFICILE (3/6)",null,null,"3 h 30 mn",210," "]
["Doller","Lac de Michelbach",365,"LE CIRCUIT DE LA DOLLER",12.4,102,"ASSEZ FACILE (2/6)",null,null,"3 h",180," "]
["Thur","Cernay",366,"LES CHEMINS DE DÉFRUITEMENT",16.7,61,"ASSEZ FACILE (2/6)",null,"x","3 h 30 mn",210," "]
["Sundgau","Carspach",367,"AU CŒUR DU SUNDGAU",19.100000000000001,280,"UN PEU DIFFICILE (3/6)",null,"x","4 h 45 mn",285," "]
["Sundgau","Feldbach",368,"LE SUNDGAU AGRICOLE ET RELIGIEUX",19.8,279,"UN PEU DIFFICILE (3/6)",null,"x","5 h 15 mn",315," "]
["Sundgau","Wahlbach",369,"LE SUNDGAU ET SES VILLAGES",21.8,254,"UN PEU DIFFICILE (3/6)",null,"x","4 h 30 mn",270," "]
["Thur","Geishouse",370,"LE COL DU HAAG, C’EST FACILE ! ",11.7,580,"UN PEU DIFFICILE (3/6)",null,null,"3 h 15 mn",195," "]
["Vosges","Col de Bussang",371,"LE DRUMONT",11.9,597,"UN PEU DIFFICILE (3/6)",null,null,"4 h",240," "]
["TDBelfort","Rougemont Le Château",372,"TROU DU LOUP ET TÊTE LE MOINE",16,600,"UN PEU DIFFICILE (3/6)",null,null,"4 h 30 mn",270," "]
["Thur","Thann",373,"LE CIRCUIT DE LA RIVE GAUCHE EN 3 HEURES",10.4,454,"UN PEU DIFFICILE (3/6)",null,null,"2 h 45 mn",165," "]
["Thur","Cernay",374,"MON PETIT CIRCUIT VERS VIEUX-THANN",9.1999999999999993,40,"ASSEZ FACILE (2/6)",null,"x","2 h 10 mn",130," "]
["Thur/Doller","Col du Hundsruck",375,"LE PETIT TOUR DU THANNER-HUBEL",7.3,405,"ASSEZ DIFFICILE (4/6)",null,null,"2 h 15 mn",135," "]
["Thur","Steinbach",376,"CASCADE, PASTETENPLATZ ET HIRNELESTEIN",8.6,387,"UN PEU DIFFICILE (3/6)",null,null,"2 h 20 mn",140," "]
["Thur","Cernay",377,"UN PETIT TOUR JUSQU’À VIEUX-THANN",12,97,"ASSEZ FACILE (2/6)",null,"x","2 h 30 mn",150," "]
["Lauch","Wintzfelden",378,"PLAINE DE ROUFFACH ET HIRTZENSTEIN ",13.1,784,"UN PEU DIFFICILE (3/6)",null,"x","3 h 55 mn",235," "]
["Thur","Cernay",379,"PETIT CIRCUIT VERS WITTELSHEIM",12.2,52,"ASSEZ FACILE (2/6)",null,"x","2 h 15 mn",135," "]
["Lauch","Schweighouse",380,"LE DIABLE ET SES CHAPELLES",11.7,378,"UN PEU DIFFICILE (3/6)",null,"x","3 h 30 mn",210," "]
["Sundgau","Carspach",381,"KILIANSTOLLEN ET D 680",11.2,127,"ASSEZ FACILE (2/6)",null,"x","2 h 30 mn",150," "]
["Crêtes (Sud)","Firstacker",382,"EN RAQUETTES À NEIGE, AUTOUR DU GRAND BALLON",9.6,463,"ASSEZ DIFFICILE (4/6)",null,null,"4 h",240," "]
["Thur","Cernay",383,"AVEC LES RAQUETTES, DANS LA FORÊT DE STEINBACH",8.6999999999999993,233,"UN PEU DIFFICILE (3/6)",null,null,"2 h 45 mn",165," "]
["Doller","Rimbach",384,"AU LAC DES PERCHES, RAQUETTES AUX PIEDS",7.7,434,"ASSEZ DIFFICILE (4/6)",null,null,"3 h 30 mn",210," "]
["Sundgau","Winkel",385,"AU NEUNEICH, DANS LA NEIGE",14.1,364,"UN PEU DIFFICILE (3/6)",null,null,"3 h 30 mn",210," "]
["Vallée Noble","Orschwihr",386,"UN CHEMIN DE CROIX AU BOLLENBERG !",8.1999999999999993,204,"ASSEZ FACILE (2/6)",null,"x","2 h 30 mn",150," "]
["Thur","Wattwiller",387,"BOIRE SON CAFÉ À LA CANTINE ZELLER",7.9,341,"UN PEU DIFFICILE (3/6)",null,null,"2 h 30 mn",150," "]
["Lauch","Guebwiller",388,"COL DU DREIBANNSTEIN ET CARRIÈRES DE BERGHOLTZ",8.8000000000000007,333,"UN PEU DIFFICILE (3/6)",null,null,"3 h",180," "]
["Thur","Moosch",389,"DÉJEUNER AU FAUCON CRÉCERELLE",11.5,617,"ASSEZ DIFFICILE (4/6)",null,null,"3 h 30 mn",210," "]
["Thur/Doller","Rammersmatt",390,"LE PETIT CIRCUIT DES CHAPELLES",6.9,229,"UN PEU DIFFICILE (3/6)",null,null,"2 h 15 mn",135," "]
["Doller","Niederbruck",391,"LE TOUR DES FERMES-AUBERGES",12.8,636,"ASSEZ DIFFICILE (4/6)",null,null,"4 h 15 mn",255," "]
["Thur/Doller","Michelbach",392,"LE LAC ET ASPACH-LE-BAS ",10.6,119,"ASSEZ FACILE (2/6)",null,null,"2 h 30 mn",150," "]
["Sundgau","Sondersdorf",393,"LE SUNDGAU SUBLIME ET SES CROIX",17.2,483,"ASSEZ DIFFICILE (4/6)",null,"x","5 h",300," "]
["Thur","Saint Amarin",394,"LE HAAG ET LE MOORFELD",18.2,907,"ASSEZ DIFFICILE (4/6)",null,null,"5 h 30 mn",330," "]
["Thur/Doller","Rammersmatt",395,"UN NOUVEAU VARIANT ",12.7,444,"UN PEU DIFFICILE (3/6)",null,"x","4 h",240," "]
["Thur","Steinbach",396,"ERZENBACH ET SCHLETZENBOURG",6.8,208,"ASSEZ FACILE (2/6)",null,null,"2 h 15 mn",135," "]
["Doller","Rimbach près Masevaux",397,"LE TOUR DES LACS",13,615,"UN PEU DIFFICILE (3/6)",null,null,"3 h 45 mn",225," "]
["Thur","Cernay",398,"PETITE BALADE AUTOUR DE SAINT-ANDRÉ",8.4,24,"ASSEZ FACILE (2/6)",null,"x","2 h",120," "]
["Lauch","Guebwiller",399,"LES CARRIÈRES DE BERGHOLTZ",8.5,277,"UN PEU DIFFICILE (3/6)",null,null,"2 h 30 mn",150," "]
["Sundgau","Buethwiller",400,"LES DOUCES COLLINES DU SUNDGAU",14.5,117,"ASSEZ FACILE (2/6)",null,"x","3 h 45 mn",225," "]
["Thur","Vieux-Thann",401,"WALDKAPELLE, AMSELKOPF, ETC…",8.5,313,"FACILE (2/6)",null,"x","3 h",180," "]
["Doller","Masevaux",402,"EN FORÊT COMMUNALE, SUR LE CHEMIN MAURICE CUNY",12.2,430,"UN PEU DIFFICILE (3/6)",null,"x","3 h 15 mn",195," "]
["Doller","Michelbach",403,"UN NOUVEAU CIRCUIT",9.9,121,"ASSEZ FACILE (2/6)",null,null,"2 h 30 mn",150," "]
["Sundgau","Altenach",404,"MON SEMI-MARATHON DANS LE SUNDGAU ",27.9,242,"UN PEU DIFFICILE (3/6)",null,"x","6 h",360," "]
["Doller","Oberbruck",405,"COL DE RIMBACH ET FUCHSFELSEN",17.2,634,"ASSEZ DIFFICILE (4/6)",null,null,"5 h",300," "]
["Doller","Sewen",406,"AUPRÈS DE MON ARBRE, AU SCHLUMPF-FENNEMATT",12.9,530,"UN PEU DIFFICILE (3/6)",null,null,"3 h 45 mn",225," "]
["Thur","Willer s/Thur",407,"FREUNDSTEIN ET OSTEIN",15.3,559,"UN PEU DIFFICILE (3/6)",null,"x","4 h 15mn",255," "]
["Thur/Doller","Michelbach",408,"MON CIRCUIT TOURISTIQUE",14.6,345,"ASSEZ FACILE (2/6)",null,null,"3 h 45 mn",225," "]
["Lauch","Soultz",409,"AUTOUR DE JUNGHOLTZ",10.7,345,"UN PEU DIFFICILE (3/6)",null,"x","2 h 45 mn",165," "]
["Plaine","Wittelsheim",410,"EN FORÊT DE NONNENBRUCH",12.8,45,"ASSEZ FACILE (2/6)",null,null,"2 h 45 mn",165," "]
["Thur","Thann",411,"AU COL DU HUNDSRUCK",14.6,481,"UN PEU DIFFICILE (3/6)",null,null,"3 h 30 mn",210," "]
["Doller","Aspach Le Haut",412,"VERS BOURBACH-LE-BAS",13.8,217,"ASSEZ FACILE (2/6)",null,null,"3 h",180," "]
["Doller","Schweighouse",413,"REININGUE ET OELENBERG",14.6,56,"ASSEZ FACILE (2/6)",null,"x","3 h",180," "]
["Plaine","Berrwiller",414,"CANTINE ZELLER ET REHFELSEN",12.1,591,"UN PEU DIFFICILE (3/6)",null,null,"3 h 45 mn",225]
["Thur","Col Amic",415,"NOUVEAU CIRCUIT EN FORÊT RECULÉE DE SOULTZ",14.4,697,"UN PEU DIFFICILE (3/6)",null,null,"4 h",240]
["Thur","Steinbach",416,"SOURCES ET FONTAINES",11.1,453,"UN PEU DIFFICILE (3/6)",null,null,"3 h 15 mn",195]
["Thur","Col du Herrenfluh",417,"LE TEST POUR DES CHAUSSURES NEUVES",9.6999999999999993,496,"UN PEU DIFFICILE (3/6)",null,null,"3 h",180]
["Doller","Burnhaupt le Bas",418,"DES BUNKERS, MAIS PAS QUE…",19.100000000000001,159,"ASSEZ FACILE (2/6)",null,"x","4 h 30 mn",270]
["Thur","Ranspach",419,"NOUVEAU CIRCUIT DE DÉCOUVERTE DU DENGELBERG",5.8,190,"ASSEZ FACILE (2/6)",null,null,"2 h",120]
["Doller","Bourbach le Haut",420,"LE GRAND TOUR DU ROSSBERG",18.600000000000001,808,"ASSEZ DIFFICILE (4/6)",null,null,"5 h",300]
["Sundgau","Hagenbach",421,"CIRCUITS DES MOISSONS ET DE MARGUERITE",18.2,152,"UN PEU DIFFICILE (3/6)",null,"x","4 h 30 mn",270]
["Thur","Oderen",422,"LE CIRCUIT DU FELSACH",14.3,707,"ASSEZ DIFFICILE (4/6)",null,null,"4 h 45 mn",285]
["Sundgau","Feldbach",423,"LA TOURNÉE DES VILLAGES",18.899999999999999,369,"UN PEU DIFFICILE (3/6)",null,"x","4 h 30 mn",270]
["Crêtes","Col de la Schlucht",424,"SUR LE SENTIER DES ROCHES, VERSION 2021",9.8000000000000007,432,"ASSEZ DIFFICILE (4/6)",null,null,"3 h 15 mn",195]
["Thur","Husseren",425,"CHAUVELIN ET HUSELBERG",10,454,"UN PEU DIFFICILE (3/6)",null,null,"3 h",180]
["Sundgau","Flaxlanden",426,"BALADE VERS BRUEBACH",7.4,119,"TRÈS FACILE (1/6)",null,"x","2 h",120]
["Doller","Oberbruck",427,"BALADE SUR LES HAUTEURS",4.5,203,"ASSEZ FACILE (2/6)",null,null,"1 h 45 mn",105]
["Doller","Lauw",428,"BALADE DANS L’OBERWALD",5.9,66,"TRÈS FACILE (1/6)",null,"x","1 h 30 mn",90]
["Crêtes (Sud)","Markstein",429,"BALADE SUR LES CHAUMES ET AUTOUR DU TREHKOPF ",7.4,188,"ASSEZ FACILE (2/6)",null,"x","2 h 15 mn",135]
["Thur","Col du Herrenfluh",430,"BALADE AUTOUR DU MOLKENRAIN",7.5,315,"UN PEU DIFFICILE (3/6)",null,null,"2 h 15 mn",135]
["Thur","Thann",431,"BALADE À LA ROCHE ALBERT",8.8000000000000007,354,"UN PEU DIFFICILE (3/6)",null,null,"2 h 45 mn",165]
["Sundgau","Luemschwiller",432,"BALADE VERS STEINBRUNN",11.7,238,"ASSEZ FACILE (2/6)",null,"x","3 h 15 mn",195]
["Thur","Storckensohn",433,"CIRCUIT DU GAZON VERT",10.6,560,"UN PEU DIFFICILE (3/6)",null,null,"3 h 30 mn",210]
["Sundgau","Ligsdorf",434,"LE GRAND TOUR DU GLASERBERG",16.600000000000001,623,"UN PEU DIFFICILE (3/6)",null,null,"5 h 30 mn",330]
["Sundgau","Ballersdorf",435,"LE CIRCUIT DU VIADUC",6.1,83,"TRÈS FACILE (1/6)",null,"x","1 h 45 mn",105]
["Sundgau","Liebsdorf",436,"LE CIRCUIT DU PLAN D’EAU ",9.5,187,"ASSEZ FACILE (2/6)",null,"x","2 h 30 mn",150]
["Thur","Moosch",437,"LA VUE DE GEISHOUSE",10,472,"UN PEU DIFFICILE (3/6)",null,null,"3 h",180]
["Vallée Noble","Orschwihr",438,"LE BOLLENBERG, SANS MYSTÈRE",7.8,157,"ASSEZ FACILE (2/6)",null,"x","2 h 15 mn",135]
["Thur","Kruth-Wildenstein",439,"LE TOUR DU LAC, VERSION 2021",8.5,394,"UN PEU DIFFICILE (3/6)",null,null,"3 h",180]
["Crêtes","Col de la Schlucht",440,"HIRSCHSTEINE ET LAC VERT ",12.5,501,"UN PEU DIFFICILE (3/6)",null,null,"4 h",240]
["Sundgau","Ferrette",441,"LE CIRCUIT DES BELVÉDÈRES",12.8,437,"UN PEU DIFFICILE (3/6)",null,null,"5 h",300]
["Plaine","Bollwiller",442,"DE LA PLAINE AU VIGNOBLE ",9.3000000000000007,93,"ASSEZ FACILE (2/6)",null,"x","2 h 15 mn",135]
["Thur","Thann",443,"LE GRAND CIRCUIT DU BELACKER ",27.5,1004,"ASSEZ DIFFICILE (4/6)",null,null,"7 h",420]
["Vallée Kaysersberg","Kaysersberg",444,"FORÊTS ET CHAPELLES",11,444,"UN PEU DIFFICILE (3/6)",null,"x","3 h",180]
["Thur","Moosch",445,"MOOSCH-LE-GRAND-BALLON-ET-LE-STORKENKOPF","23,/8",1203,"DIFFICILE (5/6)",null,null,"8h",480]
["Vallée de Masevaux","Sentheim",446,"LA DOLLER ET LA GÉOLOGIE ",11.2,108,"ASSEZ FACILE (2/6)",null,null,"3h",180]
["Sundgau - Bernwiller","Ammertzwiller",447,"AMMERTZWILLER : LE CIRCUIT DE LA MÉMOIRE ",10.5,183,{"$f":"$G$440","v":"ASSEZ FACILE (2/6)"},null,"x","2h30",150]
["Vallée Doller","Rimbach près Masevaux",448,"RIMBACH-PRÈS-MASEVAUX : PERCHES ET NEUWEIHER ",12.7,685,{"$f":"$G$437","v":"ASSEZ DIFFICILE (4/6)"},null,null,"4h15",255]
["Altkirch","Carspach",449,"CARSPACH : CIRCUIT ST-GLÜCKER ",10.8,200,{"$f":"$G$441","v":"ASSEZ FACILE (2/6)"},null,"x","2h45",165]
["Vallée de Masevaux","Sentheim",450,"SENTHEIM : CIRCUIT DE LA CHAPELLE DES MINEURS",7.5,132,"ASSEZ FACILE (2/6)",null,null,"2h",120]
["Grand Ballon","Grand Ballon",451,"GRAND BALLON : LE CIRCUIT DES SOMMETS",16.3,649,{"$f":"$G$437","v":"ASSEZ DIFFICILE (4/6)"},null,null,"5h",300]
[{"$f":"$A$423","v":"Crêtes (Sud)"},"Markstein",452,"LE MARKSTEIN : LE CIRCUIT DU LAC DE LA LAUCH",13.4,477,"UN PEU DIFFICILE (3/6)",null,null,"3h45",225]
["Lauch-Guebwiller","Lautenbach-Zell",453,"LAUTENBACH : LE CHAUDRON DU DIABLE",7,275,"ASSEZ FACILE(2,5/6)",null,null,"2h15",135]
["Vallée de Masevaux","Lac de Lachtelweiher ",454,"KIRCHBERG : LOCHBERG, WISSGRUT ET FENNEMATT ",17.3,660,{"$f":"$G$437","v":"ASSEZ DIFFICILE (4/6)"},null,null,"5h",300]
["Vallée de Masevaux","Mortzwiller",455,"MORTZWILLER : CIRCUIT DU HAUT-SOULTZBACH ",7.3,78,"ASSEZ FACILE (2/6)",null,"x","2h",120]
["Sundgau (Hirsingue)","Bettendorf",456,"BETTENDORF : AUTOUR DE LA VOIE ROMAINE ",18.3,257,"UN PEU DIFFICILE (3/6)",null,"x","4h30",270]
["Région Mulhouse","Galfingue",457,"GALFINGUE : CIRCUIT INTERCOMMUNAL",9.9,68,"ASSEZ FACILE (2,5/6)",null,"x","2h30",150]
["Route des Crêtes","Au pied du Hohneck",458,"LE HOHNECK : FRANKENTHAL, SCHIESSROTHRIED,WORMSPEL ",11.7,630,"ASSEZ DIFFICILE (4/6)",null,null,"4h",240]
["Territoire-de-Belfort","Granvillars",459,"GRANDVILLARS : UNE PROMENADE ET UN PEU D’HISTOIRE",7.2,73,"TRES FACILE (1/6)",null,"x",2,120]
["Lautenbach/Linthal","Col de Boenlesgrab",460,"LINTHAL : LE GRAND TOUR DU PETIT BALLON ",15.3,679,"ASSEZ DIFFICILE (4/6)",null,null,5,300]
[" Ballon d’Alsace","Col du Ballon d’Alsace",461,"BALLON D’ALSACE : DÉJEUNER EN PAIX À ‘‘LA PETITE CHAUME’’",15.5,732,"ASSEZ DIFFICILE (4/6)",null,null,5,300]
["Thur/Doller","Col du Hundsruck",462,"COL DU HUNDSRUCK : LE PETIT ‘8’ DU THANNER HUBEL",7.6,389,"UN PEU DIFFICILE (3/6)",null,null,"2h15",135]
["Vallée de Masevaux","Masevaux",463,"LE SENTIER HISTORIQUE DU MONTORI ",11,499,"UN PEU DIFFICILE (3/6)",null,null,"3h30",210]
["Vallée de Masevaux","Wegscheid",464,"CIRCUIT DU BELVÈRE DU FUCHSFELSEN",14.3,748,"DIFFICILE (5/6)",null,null,"5h30",330]
["Soultz-Guebwiller","Hartmannswiller",465,"OLLWILLER ET WUENHEIM",5.7,85,"FACILE (2/6)",null,null,"1h45",105]
["Thann-St Amarin","Saint-Amarin",466,"MONTER AU BELACKER",14.8,731,"UN PEU DIFFICILE (3/6)",null,null,"4h30",270]
["Vallée de Thann","Rammersmatt",467,"RAMMERSMATT : LA TOURNÉE DES POPOTES",7.3,288,"ASSEZ FACILE(2,5/6)",null,null,"2h15",135]
["Route des CRÊTES","Au pied du Hohneck",468,"LE HOHNECK : GASCHNEY ET FRANKENTHAL",14.6,554,"UN PEU DIFFICILE (3/6)",null,null,"4h30",270]
["Vallée Munster","Eglise Wihr au Val",469,"WIHR-AU-VAL : CROIX DE WIHR ET WALBACH",13.8,611,"UN PEU DIFFICILE (3/6)",null,null,"4h10",250]
["Col de Bussang","Parking Source Moselle",470,"COL DE BUSSANG : LE DRUMONT ET LA HUTTE",13,545,"UN PEU DIFFICILE (3/6)",null,null,"3h45",225]
["Thur","Geishouse",471,"GEISHOUSE : UN FAUCON POUR LA FÊTE DES PÈRES",7.8,363,"UN PEU DIFFICILE (3/6)",null,null,"3h",180]
["Territoire de Belfort","Place Turennne-Fontaine",472,"FONTAINE : QUE D’EAU DANS CE TERRITOIRE !",12.9,136,"ASSEZ FACILE(2,5/6)",null,"xx","3h",180]
["Thur","Geishouse",473," MON CHEMIN DE CROIX AU HAAG",10.7,519,"UN PEU DIFFICILE (3/6)",null,null,"3h30",210]
["Région Altkirch","Carspach",474,"CARSPACH : UN PETIT CIRCUIT DANS MON CHER SUNDGAU ",13.2,247,"ASSEZ FACILE(2,5/6)",null,"xx","3h15",195]
["Vallée Masevaux","Sewen",475," LA ‘‘PETITE CHAUME’’ ENNEIGÉE",14.7,611,"DIFFICILE (5/6)",null,null,"5h15",315]
["Vallée Guebwiller","Markstein",476,"AUTOUR DU MARKSTEIN, EN RAQUETTES À NEIGE",7.7,167,"UN PEU DIFFICILE (3/6)",null,null,"2h15",135]
["Vallée Masevaux","Lachtelweiher Kirchberg",477,"RAQUETTES AU LACHTELWEIHER : LOCHBERG ET FENNEMATT",8.1999999999999993,298,"UN PEU DIFFICILE (3/6)",null,null,"3h",180]
["Thur","Willer s/Thur",478,"LES GRILLADES NOCTURNES DE LA NOUVELLE ANNÉE AU BLAUFELS",9.8000000000000007,444,"ASSEZ FACILE (2,5/6)",null,null,"3h30",210]
["Mulhouse","Riedisheim",479,"HABSHEIM ET RIXHEIM",12.2,172,"FACILE (2/6)",null,"xx","2H 30",150]
["Thur","Steinbach",480,"LE TOUR DU WOLFSKOPF EN HIVER",11.7,527,"UN PEU DIFFICILE (3/6)",null,null,"3h 30",210," "]
["Doller","Burnhaupt le Bas",481,"A 36 ET GR 531",11.7,151,"FACILE (2/6)",null,"xx","2h 30",150," "]
["Altkirch","Altkirch",482,"LE GRAND TOUR DU SCHWEIGHOF",13.4,189,"ASSEZ FACILE (2,5/6)",null,"xx","3h",180," "]
["Vallée Masevaux","Rimbach",483,"J’AI TESTÉ LES CRAMPONS ANTIDÉRAPANTS",10.199999999999999,417,"UN PEU DIFFICILE (3/6)",null,null,"3H 15",195," "]
["Vallée Masevaux","Rimbach",484,"LE CIRCUIT DE HAUTE BERS",12,604,"ASSEZ DIFFICILE (4/6)",null,null,"4h",240," "]
["Thur","Willer s/Thur",485,"AU VOGESAPFAD-HISLÀ",7.3,351,"UN PEU DIFFICILE (3/6)",null,null,"2h30",150," "]
["Sundgau","Hirsingue",486,"HIRSINGUE : ENTRE L’ILL ET LE FELDBACH",16.600000000000001,218,"ASSEZ FACILE (2,5/6)",null,"xx","3h45",225," "]
["Thur/Doller","Col du Hundsruck",487,"COL DU HUNDSRUCK : RENCONTRE AVEC LA NEIGE",7.1,403,"UN PEU DIFFICILE (3/6)",null,null,"2h",120," "]
["Bussang/St Maurice","Col de Bussang",488,"COL DE BUSSANG : CHAUME DES NEUFS BOIS",13.4,460,"ASSEZ DIFFICILE (4/6)",null,null,"4h30",270," "]
["Thur","Urbès",489,"URBÈS : AU GUSTIBERG ! ",12,556,"ASSEZ DIFFICILE (4/6)",null,null,"4h",240," "]
["Thur","Vieux-Thann",490,"DRACHENFELS ET RANGEN",3.8,79,"FACILE (2/6)",null,"xx","1h15",75," "]
["Vallée Guebwiller","Guebwiller",491,"ORSCHWIHR, ENTRE VIGNES & FORÊTS",13.1,337,"ASSEZ FACILE (2,5/6)",null,"xx","3h30",210," "]
["Sundgau","Feldbach",492,"LE CIRCUIT DE L'ÉCUREUIL",9.8000000000000007,84,"FACILE (2/6)",null,"xx","2h30",150," "]
["Vallée Masevaux","Col du Schirm",493,"COL DU SCHIRM : LE TOUR DU ROSSBERG",13.5,550,"UN PEU DIFFICILE (3/6)",null,null,"4h",240," "]
["Vallée Guebwiller","Linthal",494,"LINTHAL : AU PETIT BALLON",12.9,786,"ASSEZ DIFFICILE (4/6)",null,null,"4h15",255," "]
["Vallée Saint-Amarin","Ranspach",495,"RANSPACH : DEUX ABRIS, UNE CASCADE",9.5,443,"ASSEZ FACILE (2,5/6)",null,null,"2h40",160," "]
["Altkirch","Altkirch",496,"SUR LE CHEMIN DE SAINT-MORAND",8.6,114,"FACILE (2/6)",null,"xx","2h15",135," "]
["Vallée de Thann","Michelbach",497,"LAC DE MICHELBACH : LA TOURNÉE DES VILLAGES  4 H - 2,5/6",17.3,331,"ASSEZ FACILE (2,5/6)",null,"xx","4h",240," "]
["Doller","Lac d'Alfeld",498,"LAC D’ALFELD : NOUVEAU CIRCUIT DE LA PETITE CHAUME",9.6,592,"ASSEZ DIFFICILE (4/6)",null,null,"3h30",210," "]
["Vallée Munster","Stosswihr",499,"STOSSWIHR : MON CIRCUIT DES CASCADES (R 499) - 10,1 KM - D+ 479 M - 3 H - 3/6",10.1,479,"UN PEU DIFFICILE (3/6)",null,null,"3h",180]
["Thur","Urbès",500,"AU GAZON VERT",11.9,597,"ASSEZ DIFFICILE (4/6)",null,null,"3h45",225]
["Territoire de Belfort","Lamadeleine-Val-des-Anges",501,"LAMADELEINE-VAL-DES-ANGES",14.4,620,"ASSEZ DIFFICILE (4/6)",null,null,"4h30",270]
["Thur","Bitschwiller-lès-Thann",502,"CASSE-CROÛTE À LA TRIADE",13,612,"UN PEU DIFFICILE (3/6)",null,null,"3h30",210]
["Thur","Storckensohn",503,"STORCKENSOHN : NOUVELLE PROMENADE CIRCULAIRE",7.9,305,"ASSEZ FACILE (2,5/6)",null,null,"3h",180]
["Crêtes","Hohneck",504,"LE HOHNECK : SENTIER DES ROCHES, VERSION 2022",16.8,834,"DIFFICILE (5/6)",null,null,"6h",360]
["Thur/Doller","col du Hundsruck",505,"COL DU HUNDSRUCK : LE CIRCUIT DU BELACKER",13.9,581,"UN PEU DIFFICILE (3/6)",null,null,"3h45",225]
["Porte de Belfort","Valdieu",506,"VALDIEU LUTRAN : MON FESTIVAL DE MONTREUX",17,98,"ASSEZ FACILE (2,5/6)","**",null,"4h30",270]
["Bussang","Col de Bussang",507,"DRUMONT ET FAIGNE DES MINONS",13,726,"UN PEU DIFFICILE (3/6)",null,"N","4h30",270]
["Vallée Doller","Oberbruck",508,"OBERBRUCK : BAERENBACH, ISENBACH, GRESSON",13.2,528,"UN PEU DIFFICILE (3/6)",null,"N","4h15",255]
["Thur","Vieux-Thann",509,"VIEUX-THANN : UNE PETITE PROMENADE",3.2,42,"TRES FACILE (1/6)","**",null,"0h45",45]
["Thur","Vieux-Thann",510,"VIEUX-THANN : WALDKAPELLE ET RANGEN",8.6999999999999993,291,"ASSEZ FACILE (2,5/6)",null,"N","2h15",135]
["Thur","Moosch",511,"BUBALAFELS ET BLAUFELS",10.199999999999999,425,"ASSEZ FACILE (2,5/6)",null,"N","2h45",165]
["Plaine d'Alsace","Ensisheim",512,"RUELISHEIM ET BATTENHEIM",16.8,37,"ASSEZ FACILE (2,5/6)","**",null,"3h50",230]
["Thur","Geishouse",513,"GEISHOUSE : DOUBLE TEST AU FAUCON CRÉCERELLE",6.1,267,"ASSEZ FACILE (2,5/6)","**","N","2h15",135]
["Grand Ballon","Firstacker",514,"FIRSTACKER : GLASHUTTE ET JUDENHUT",8.6999999999999993,431,"UN PEU DIFFICILE (3/6)","***","N","2h30",150]
["Doller","Lac d'Alfeld",515,"LAC D’ALFELD : COL DES CHARBONNIERS & PETITE CHAUME",12,630,"ASSEZ DIFFICILE (4/6)","***","N","4h",240]
["Vallée de Thann","Leimbach",516,"LEIMBACH : FRAÎCHEUR FORESTIÈRE",8.4,312,"ASSEZ FACILE (2,5/6)","***","O","2h45",165]
["Vallée Guebwiller","Linthal",517,"LE GRAND BALLON ET SES DEUX LACS",19.600000000000001,795,"ASSEZ DIFFICILE (4/6)","***","N","5h45",345]
["Thur/Doller","Col du Hundsruck",518,"COL DU HUNDSRUCK : LA MATINALE SANS SOLEIL",10.5,460,"ASSEZ FACILE (2,5/6)","***","N","3h",180]
["Thur","Moosch",519,"LE CIRCUIT DES 4 COLLINES",16.2,591,"UN PEU DIFFICILE (3/6)","***","N","5h30",330]
["Vallée Saint-Amarin","Malmerspach",520,"LE TOUR DU VALLON",7.7,397,"ASSEZ FACILE (2,5/6)","**","N","2h15",135]
["Lauch","Lautenbach",521,"LE PETIT BALLON ET SON TÉLÉPHÉRIQUE",13.4,640,"UN PEU DIFFICILE (3/6)","***","N","4h30",270]
["Route des Crêtes","Dreieck",522,"DREIECK : LE CIRCUIT DES 4 LACS",18,635,"uN PEU DIFFICILE (3/6)","***","N","6h",360]
["Vallée Munster","Breitenbach",523,"LE TOUR DE L’ILIENKOPF",16.7,735,"UN PEU DIFFICILE (3/6)",null,"N","5h30",330]
[" Ballon d’Alsace","Col du Ballon d’Alsace",524,"BALLON D’ALSACE : LE TOUR DU BALLON",13,380,"UN PEU DIFFICILE (3/6)","***","N","5h",300]
["Doller","Lac de Michelbach",525,"MICHELBACH : LA BALADE DU LAC",6.8,54,"TRES FACILE (1/6)","***","N","1h45",105]
["Thur/Doller","Roderen",526,"RODEREN : BOURBACH-LE-BAS ET RAMMERSMATT",11.4,339,"ASSEZ FACILE (2,5/6)","***","VTT s/r","3h15",195]
["Lauch","Lac de la Lauch",527,"LAC DE LA LAUCH : KLINTZKOPF ET LAUCHENKOPF",15,817,"ASSEZ DIFFICILE (4/6)","***","N",5,300]
["Crêtes","Col d'Oderen",528,"COL D’ODEREN : LA MONTÉE AU GRAND VENTRON",13.6,481,"UN PEU DIFFICILE (3/6)","***","N","4h",240]
["Bussang/St Maurice","Col de Bussang",529,"COL DE BUSSANG : AU ROUGE GAZON",17.5,535,"UN PEU DIFFICILE (3/6)","***","N","4h45",285]
["Thur","Willer s/Thur",530,"WILLER-SUR-THUR : LE CIRCUIT DU BLAUFELS",11.1,481,"ASSEZ FACILE (2,5/6)","***","N","3h",180]
["Crêtes","Route des Crêtes",531,"FONTAINE DE LA DUCHESSE : LE CIRCUIT DES TROIS LACS",13.5,690,"ASSEZ DIFFICILE (4/6)","***","NN","4h30",270]
["Thur/Doller","Col du Hundsruck",532,"COL DU HUNDSRUCK : THANNER HUBEL & ROSSBERG",14.6,585,"UN PEU DIFFICILE (3/6)","***","N","4h",240]
["Thur","Kruth-Wildenstein",533,"KRUTH : LE TOUR DU LAC, VERSION 2022",8.5,340,"ASSEZ FACILE (2,5/6)","***","N","2h30",150]
["Ballon d'Alsace","Col du Ballon d’Alsace",534,"BALLON D’ALSACE : LA BALADE DES POINTS DE VUE",11.8,422,"UN PEU DIFFICILE (3/6)","***","N","4h",240]
["Thur","Vieux-Thann",535,"VIEUX-THANN : CASSE-CROÛTE AU REHBRUNNEL",11,487,"ASSEZ FACILE (2,5/6)","***","N","3h30",210]
["Crêtes","chaume du Reichberg",536,"PLAINFAING : L’ÉTANG DES DAMES",14.6,706,"ASSEZ DIFFICILE (4/6)","***","N","6h",360]
["Jura alsacien","Hippoltskirch",537,"HIPPOLTSKIRCH : CASSE-CROÛTE AU NEUNEICH",16,555,"UN PEU DIFFICILE (3/6)","***","N","5h",300]
["Thur","Ranspach",538,"RANSPACH : MALAKOFF ET DENGELBERG",5.5,192,"ASSEZ FACILE (2,5/6)","***","N","2h",120]
["Plaine - contreforts","Turckheim",539,"PETIT ET GRAND HOHNACK",16.3,741,"ASSEZ DIFFICILE (4/6)","***","N","5h15",315]
["Crêtes","Hohneck",540,"RENDEZ-VOUS AVEC LES CHAMOIS",18.8,887,"DIFFICILE (5/6)","***","N","6h",360]
["Vallée de Masevaux","Wegscheid",541,"WEGSCHEID : PETIT CIRCUIT DE VISITE",6,179,"ASSEZ FACILE (2,5/6)","**","N","2h",120]
["Thur","Uffholtz",542,"UFFHOLTZ : COL DU HERRENFLUH ET MOLKENRAIN",14.8,641,"UN PEU DIFFICILE (3/6)","***","N","4h15",255]
["Vallée de Masevaux","Masevaux",543,"MASEVAUX : LE CIRCUIT DU GRAMBAECHLE",6.5,160,"ASSEZ FACILE (2,5/6)","***","VTT s/r","2h",120]
["Route des Crêtes","Markstein",544,"BREITFIRST : AU HILSENFIRST !",12.8,396,"UN PEU DIFFICILE (3/6)","***","N","4h",240]
["Plaine d'Alsace","Raedersheim",545,"RAEDERSHEIM : LA PLAINE ET LE MAÏS",8.5,24,"FACILE (2/6)","**","VTT-VAE","2h",120]
["Doller","Rimbach près Masevaux",546,"RIMBACH-PRÈS-MASEVAUX : LACS DES PERCHES ET DES NEUWEIHER",15.9,735,"ASSEZ DIFFICILE (4/6)","***","N","5h30",330]
["Thur","Jungholtz",547,"JUNGHOLTZ : THIERENBACH ET STE-ANNE",5.9,205,"ASSEZ FACILE (2,5/6)","**","VTT-VAE","1h45",105]
["Doller","Kirchberg",548,"LACHTELWEIHER : SOMMERSEITE ET GRABER",8.4,306,"UN PEU DIFFICILE (3/6)","***","N","2h30",150]
["Thur","Thann",549,"THANN : MON CIRCUIT DES WEIERLE",11.5,435,"ASSEZ FACILE (2,5/6)","***","VTT","3h15",195]
["Route des Crêtes","Firstacker",550,"FIRSTACKER : AUTOUR DU GRAND BALLON",14.9,693,"UN PEU DIFFICILE (3/6)","***","N","4h30",270]
["Doller","Niederbruck",551,"NIEDERBRUCK : LE CIRCUIT DU TRIEBELSKOPF",5.6,326,"ASSEZ FACILE (2,5/6)","***","N","2h",120]
["Thur","Geishouse",552,"GEISHOUSE : OBERER SATTEL ET FAUCON CRÉCERELLE",13.8,566,"ASSEZ DIFFICILE (4/6)","***","N","4h45",285]
["Thur","Cernay",553,"CERNAY : UFFHOLTZ ET WATTWILLER",9.1,124,"FACILE (2/6)","***","VTT-VAE","2h15",135]
["Lauch","Sengern",554,"SENGERN : CASCADE DU SEEBACH ET GUSTIBERG",11.6,589,"UN PEU DIFFICILE (3/6)","***","N","3h30",210]
["Vallée Masevaux","Masevaux",555,"MASEVAUX : UN POILU ET UN CORBEAU",14.1,690,"UN PEU DIFFICILE (3/6)","***","N","4 h 15",255]
["Thur","Oderen",556,"ODEREN : UHUFELS, GOMMKOPF, TREH",12.2,675,"UN PEU DIFFICILE (3/6)","***","N","4 h",240]
["Vallée Guebwiller","Col de Boenlesgrab",557,"BOENLESGRAB : LE PETIT BALLON VERS WASSERBOURG",14.4,581,"UN PEU DIFFICILE (3/6)","***","N","4 h 30 mn",270]
["Doller","Sickert",558,"SICKERT : SATTELBODEN ET FUCHSFELSEN",16,746,"UN PEU DIFFICILE (3/6)","***","N","4 h 45 mn",285]
["Lauch","Soultz",559,"SOULTZ : NEZ, ROCHER ET ORATOIRE",8.4,280,"ASSEZ FACILE (2,5/6)","***","VTT","2 h 30",150]
["Sundgau","Ferrette",560,"FERRETTE : LE JURA DU SUNDGAU",11.8,479,"UN PEU DIFFICILE (3/6)","***","N","4h",240]
["Thur","Bitschwiller-lès-Thann",561,"BITSCHWILLER-LÈS-THANN : LE BON PLAN !",13.1,561,"UN PEU DIFFICILE (3/6)","***","N","3h45",225]
["Bussang","Col de Bussang",562,"COL DE BUSSANG : DRUMONT ET TÊTE DE FELLERING",12.7,686,"UN PEU DIFFICILE (3/6)","***","N","4h",240]
["Doller","Dolleren",563,"DOLLEREN : ABRIS GRABER ET SOMMERSEITE",11.8,564,"UN PEU DIFFICILE (3/6)","***","N","4h",240]
["Thur","Steinbach",564,"STEINBACH : LE CIRCUIT DES CHAPELLES",12.4,438,"ASSEZ FACILE (2,5/6)","***","N","4h",240]
["Doller","Sewen",565,"SEWEN : ALFELD, WASSERFALL ET SCHAHLING HUTTE",9.8000000000000007,565,"UN PEU DIFFICILE (3/6)","***","N","3h",180]
["Thur","Malmerspach",566,"MALMERSPACH : LE CIRCUIT DES SENTIERS",8.6999999999999993,442,"UN PEU DIFFICILE (3/6)","***","N","3h",180]
["Thur/Doller","Col du Hundsruck",567,"COL DU HUNDSRUCK : LE CIRCUIT DU PETIT ‘‘8’’",6.8,268,"ASSEZ FACILE (2,5/6)","***","N","2 h",120]
["Lauch","Lautenbach-Zell",568,"LAUTENBACH-ZELL : MON PETIT CIRCUIT FORESTIER",8.1999999999999993,295,"ASSEZ FACILE (2,5/6)","***","VTT s/r","2h45",165]
["Lauch","Lac de la Lauch",569,"LAC DE LA LAUCH : LE CIRCUIT DU MARKSTEIN",10.8,354,"UN PEU DIFFICILE (3/6)","***","N","3 h 30",210]
["Thur","Moosch",570,"MOOSCH : DIRECTION ALTE LAEGER",10.3,500,"ASSEZ FACILE (2,5/6)","***","N","3 h",180]
["Doller","Sewen",571,"LAC D’ALFELD : GRESSON, PETITE CHAUME, BOEDELEN",13.3,626,"ASSEZ DIFFICILE (4/6)","***","N","5 h ",300]
["Sundgau","Rouffach",572,"ROUFFACH ET SES COLLINES",11.68,258,"ASSEZ FACILE (2,5/6)","***","VTT-VAE","4h",240]
["Thur","Geishouse",573,"GEISHOUSE : SATTEL, HAAG ET FAUCON",11,480,"ASSEZ DIFFICILE (4/6)","***","N","4h15",255]
["Thur","Thann",574,"THANN : COL DU GRUMBACH ET ROCHE ALBERT",8.73,343,"ASSEZ FACILE (2,5/6)","**","N","2h30",150]
["Thur/Doller","Col du Hundsruck",575,"COL DU HUNDSRUCK : EN MARCHE VERS LA SAGESSE",6.12,348,"UN PEU DIFFICILE (3/6)","***","N","2h15",135]
["Thur","Steinbach",576,"STEINBACH : BAECHERKOPFHISLÀ, CAMP TURENNE",12.5,515,"UN PEU DIFFICILE (3/6)","***","N","3h45",225]
["Soultz-Guebwiller","Hartmannswiller",577,"HARTMANNSWILLER : LA PLAINE ET LE VIGNOBLE",6.2,53,"FACILE (2/6)","***","VTT-VAE","1H30",90]
["Doller","Burnhaupt le Bas",578,"BURNHAUPT-LE-BAS : SEMI-MARATHON DU SUNDGAU",17.899999999999999,98,"UN PEU DIFFICILE (3/6)","***","VTT-VAE","4h20",260]
["Thur/Doller","Roderen",579,"RODEREN : CIRCUIT DU MICHELBACH",12.8,259,"ASSEZ FACILE (2,5/6)","***","VTT","3h15",195]
["Thur","Vieux-Thann",580,"VIEUX-THANN : CROIX DU RANGEN ET CHAPELLE ST-URBAIN",6.2,187,"FACILE (2/6)","***","N","2h",120]
["Thur","Kruth-Wildenstein",581,"KRUTH-WILDENSTEIN : SCHAFERT, HUS ET NEUFELD",12.8,672,"ASSEZ DIFFICILE (4/6)","***","N","4h30",270]
["Lauch","Guebwiller",582,"GUEBWILLER : TROTTBERG, BUHL ET HUGSTEIN",6,231,"ASSEZ FACILE (2/6)","***","VTT-VAE","2h",120]
["Thur","Col Amic",583,"COL AMIC : GOLDBACH, SATTELFELS, GOLDENMATT",17,731,"ASSEZ DIFFICILE (4/6)","***","N","5h",300]
["Doller","Oberbruck",584,"OBERBRUCK : LE TOUR DU VILLAGE",7,216,"FACILE (2/6)","***","N","2h30",150]
["Thur","Kruth-Wildenstein",585,"LAC DE KRUTH WILDENSTEIN : LE CIRCUIT DES CHALETS",13.54,570,"UN PEU DIFFICILE (3/6)","***","N","5h",300]
["Thur","Oderen",586,"ODEREN : LE TOUR DU BERGENBACH",10.8,547,"UN PEU DIFFICILE (3/6)","***","N","4h",240]
["Vallée Noble","Soultzmatt",587,"SOULTZMATT : QUE C’EST BEAU !",12.19,301,"ASSEZ FACILE (2,5/6)","***","N","3h30",210]
["Doller","Schweighouse",588,"SCHWEIGHOUSE-THANN : LE GRAND CIRCUIT",24.3,138,"UN PEU DIFFICILE (3/6)","***","VTT-VAE","5h30",330]
["Thur","Fellering",589,"FELLERING : LE PARADIS DU RAMMERSBACH",9.6,346,"ASSEZ FACILE (2,5/6)","***","N","3h",180]
["Doller","Niederbruck",590,"NIEDERBRUCK : LE CIRCUIT DES HÊTRES",14.2,687,"ASSEZ DIFFICILE (4/6)","***","N","5h",300]
["Vallée Noble","Orschwihr",591,"ORSCHWIHR : RETOUR AU BOLLENBERG",9.6,200,"FACILE (2/6)","***","VTT-VAE","2h30",150]
["Plaine","Heimsbrunn",592,"HEIMSBRUNN : CIRCUIT INTERCOMMUNAL",9.8000000000000007,70,"FACILE (2/6)","***","VTT","2h30",150]
["Plaine","Gueberschwihr",593,"GUEBERSCHWIHR : MON CIRCUIT DE DÉCOUVERTE",12.6,407,"ASSEZ FACILE (2,5/6)","***","VTT","4h",240]
["Plaine","Hochstatt",594,"HOCHSTATT : PROMENADE CIRCULAIRE",7.4,125,"FACILE (2/6)","**","VTT","2h",120]
["Plaine","Didenheim",595,"DIDENHEIM : LE CIRCUIT ‘‘UNIVERSITÉ’’",10.8,192,"FACILE (2/6)","***","VTT","3h",180]
["Thur","Willer s/Thur",596,"WILLER-SUR-THUR : BLAUFELS, ROSSBERG, VOGESAPFADHISLÀ",14.5,737,"UN PEU DIFFICILE (3/6)","***","N","4h",240]
["Sundgau","Balschwiller",597,"BALSCHWILLER : CIRCUIT DU PÈLERIN",7.3,131,"FACILE (2/6)","***","VTT-VAE","2h15",135]
["Sundgau","Luemschwiller",598,"LUEMSCHWILLER : BRITZGYBERG ET ALTENBERG",9.6999999999999993,218,"FACILE (2/6)","***","N","2h30",150]
["Lauch","Rimbach-près-Guebwiller",599,"RIMBACH-PRÈS-GUEBWILLER : JUDENHUT & FIRSTACKER",11.2,479,"UN PEU DIFFICILE (3/6)","***","N","3h30",210]
["Thur","Cernay",600,"CERNAY : LE CIRCUIT DU 7È ANNIVERSAIRE",21.9,77,"UN PEU DIFFICILE (3/6)","***","VTT-VAE","5h15",315]
["Thur","Soppe-le-Haut",601,"SOPPE-LE-HAUT : LE CIRCUIT DU SOULTZBACH",7.4,126,"FACILE (2/6)","**","VTT-VAE","2h",120]
["Vallée Munster","Gaschney",602,"LE GASCHNEY : FRANKENTHAL ET HOHNECK",8.9,426,"ASSEZ DIFFICILE (4/6)","***","N","3h15",195]
["Thur","Steinbach",603,"STEINBACH : SILBERTHAL ET ERZENBACH",8,245,"ASSEZ FACILE (2,5/6)","***","N","2h45",164]
["Plaine","Colmar",604,"COLMAR : LAUCH ET VIEILLE THUR",15.4,31,"ASSEZ FACILE (2,5/6)","**","VTT-VAE","3h45",225]
["Thur","Vieux-Thann",605,"VIEUX-THANN : RANGEN ET DRACHENFELS",4.7,78,"FACILE (2/6)","***","VTT-VAE","1h30",90]
["Crêtes (sud)","Grand Ballon",606,"ROUTE DES CRÊTES : GRAND BALLON ET STORKENKOPF",11.3,503,"UN PEU DIFFICILE (3/6)","***","N","4h",240]
["Thur","Col Amic",607,"COL AMIC : UNE CHAPELLE ET DEUX CHÂTEAUX",5,196,"ASSEZ FACILE (2,5/6)","***","N","1h30",90]
["Ballon d'Alsace","St-Maurice-s/Moselle",608,"ST-MAURICE-SUR-MOSELLE : ROUGE GAZON ET GAZONS VERTS",13.2,651,"ASSEZ DIFFICILE (4/6)","***","N","5h",300]
["Sundgau","Heidwiller",609,"HEIDWILLER : BUCKENBERG ET HAULENWALD",7.2,173,"FACILE (2/6)","***","N","2h",120]
["Thur","Husseren-Wesserling",610,"HUSSEREN-WESSERLING : CHAUVELIN ET HUSELBERG",7.4,329,"ASSEZ FACILE (2,5/6)","***","N","2h30",150]
["Thur","Saint-Amarin",611,"SAINT-AMARIN : NOUVEAU CIRCUIT DES 3 CHAPELLES",11.7,542,"UN PEU DIFFICILE (3/6)","***","N","4h",240]
["Thur","Moosch",612,"MOOSCH : KOLABIWALD ET BUBALAFELS",6.6,257,"ASSEZ FACILE (2,5/6)","***","N","2h",120]
["Thur","Geishouse",613,"GEISHOUSE : FORÊTS ET PAYSAGES",11,411,"UN PEU DIFFICILE (3/6)","***","N","3h30",210]
["Thur","Saint-Amarin",614,"SAINT-AMARIN : AU DREIMARKSTEIN ! ",9,391,"ASSEZ FACILE (2,5/6)","**","N","2h30",150]
["Thur","Mitzach",615,"MITZACH : CIRCUIT DE DÉCOUVERTE",8.1999999999999993,223,"ASSEZ FACILE (2,5/6)","***","N","2h30",150]
["Thur","Moosch",616,"MOOSCH : GSANG ET BELACKER",14.7,598,"UN PEU DIFFICILE (3/6)","***","N","4h30",270]
["Crêtes","Col de la Schlucht",617,"LA SCHLUCHT : SENTIERS DES ROCHES ET DES HIRSCHSTEINE",14.3,619,"ASSEZ DIFFICILE (4/6)","***","N","5h30",330]
["Doller","Burnhaupt le Bas",618,"BURNHAUPT-LE-BAS : BALADE DANS LE SUNDGAU",13.8,77,"ASSEZ FACILE (2,5/6)","***","VTT-VAE","3h45",225]
["Lauch","Lac de la Lauch",619,"LAC DE LA LAUCH : SUR LES HAUTEURS",15.6,479,"UN PEU DIFFICILE (3/6)","***","N","4h30",270]
["Sundgau","Liebsdorf",620,"LIEBSDORF : MORIMONT ET ÉBOURBETTES",16.100000000000001,513,"UN PEU DIFFICILE (3/6)","***","N","5h30",330]
["Ballon d'Alsace","Ballon d'Alsace",621,"BALLON D’ALSACE : LE TOUT NOUVEAU CIRCUIT DE LA PETITE CHAUMES",11.6,687,"ASSEZ DIFFICILE (4/6)","***","N","5h",300]
["Doller","Lac d'Alfeld",622,"LAC D’ALFELD : LE CIRCUIT DES FERMES DISPARUES",7.7,477,"UN PEU DIFFICILE (3/6)","***","N","3h",180]
["Doller","Rimbach-près-Masevaux",623,"RIMBACH-PRÈS-MASEVAUX",14.5,620,"UN PEU DIFFICILE (3/6)","***","N","4h45",285]
["Plaine","Bollwiller",624,"BOLLWILLER : CIRCUIT DU PETIT PRINCE",8,20,"FACILE (2/6)","**","VTT-VAE","2h",120]
["Sundgau","Hagenbach",625,"HAGENBACH : CANAL ET HASENBERG",10.7,96,"FACILE (2/6)","***","VTT-VAE","2h45",165]
["Sundgau","Hindlingen",626,"HINDLINGEN : CHAPELLES, FORÊTS ET ÉTANGS",19.3,269,"UN PEU DIFFICILE (3/6)","***","VTT-VAE","5h",300]
["Lauch","Buhl",627,"BUHL : NOUVELLE TOURNÉE DES COLS",13.5,663,"UN PEU DIFFICILE (3/6)","**","N","4h30",270]
["Doller","Bourbach le Haut",628,"BOURBACH-LE-HAUT : QUEL RÉGAL !",9.6999999999999993,398,"ASSEZ FACILE (2,5/6)","***","N","3h15",195]
["Thur","Kruth",629,"KRUTH : HELL ET SCHAFERT",19.5,698,"UN PEU DIFFICILE (3/6)","***","N","6h30",390]
["Thur","Mollau",630,"MOLLAU : COLS DES PERCHES ET DE RIMBACH",15.3,784,"UN PEU DIFFICILE (3/6)","***","N","5h30",330]
["Doller","Bourbach le Haut",631,"PETITE NOCTURNE AU COL DU HUNDSRUCK",7.2,396,"ASSEZ FACILE (2,5/6)","***","N","2h",120]
["Sundgau","Hirtzbach",632,"HIRTZBACH : LE ‘IN’ ET LE ‘OFF’",8.1,134,"FACILE (2/6)","***","VTT-VAE","3h",180]
["Sundgau","Altenach",633,"ALTENACH : LA GRANDE TRAVERSÉE DU SUNDGAU",27.1,173,"UN PEU DIFFICILE (3/6)","***","VTT-VAE","6h15",375]
["Sundgau","Lucelle",634,"LUCELLE : LE LAC ET LA GRANDE NATURE",11.4,301,"ASSEZ FACILE (2,5/6)","***","N","3h30",210]
["Doller","Lutterbach",635,"LUTTERBACH : EN FORÊT !",9.4,40,"FACILE (2/6)","***","VTT-VAE","2h30",150]
["Crêtes","Hohneck",636,"LE HOHNECK : TOUR DU SOMMET ET DU LAC DE LA LANDE",14,478,"UN PEU DIFFICILE (3/6)","***","N","5h",300]
["Thur","Willer s/Thur",637,"WILLER-SUR-THUR : TRIADE ET OSTEIN",9.5,318,"ASSEZ FACILE (2,5/6)","***","VTT-VAE","3h",180]
["Thur/Doller","Rammersmatt",638,"RAMMERSMATT : ALLER-RETOUR AU HOCHBURG",8.8000000000000007,290,"ASSEZ FACILE (2,5/6)","***","VTT-VAE","3h30",210]
["Thur","Geishouse",639,"GEISHOUSE : UN SOMMET ET DES ABRIS",15.4,652,"ASSEZ DIFFICILE (4/6)","***","N","5h15",315]
["Doller","Kirchberg",640,"LACHTELWEIHER : LOCHBERG, GRABER, SOMMERSEITE",8.5,290,"ASSEZ FACILE (2,5/6)","***","N","2h45",165]
["Thur","Kruth-Wildenstein",641,"KRUTH-WILDENSTEIN : UN LAC, UN CHÂTEAU",11.3,288,"ASSEZ FACILE (2,5/6)","***","N","3h30",210]
["Vallée de Masevaux","Wegscheid",642,"WEGSCHEID : STAHLBERG, FUCHSFELSEN",17.5,715,"ASSEZ DIFFICILE (4/6)","***","N","5h30",330]
["Thur","Urbès",643,"URBÈS : AU DRUMONT ! ",16.2,809,"ASSEZ DIFFICILE (4/6)","***","N","5h30",330]
["Doller","Michelbach",644,"MICHELBACH : LE LAC ET SA FORÊT",7.1,74,"FACILE (2/6)","***","N","2h",120]
["Bussang/St Maurice","Bussang",645,"COL DE BUSSANG : LA CHAUME DES NEUFS BOIS",13.6,475,"UN PEU DIFFICILE (3/6)","***","N","4h30",270]
["Lauch","Lac de la Lauch",646,"LAC DE LA LAUCH : AVEC LE LAC DU BALLON",12.2,482,"UN PEU DIFFICILE (3/6)","***","N","4h30",270]
["Thur","Kruth",647,"KRUTH : DEUX CHALETS ET UNE PASSERELLE",11,337,"ASSEZ FACILE (2,5/6)","***","N","3h45",225]
["Lauch","Wuenheim",648,"WUENHEIM : VIGNES ET FORÊT",8.6,156,"FACILE (2/6)","**","VTT-VAE","2h45",165]
["Ballon d'Alsace","Ballon d'Alsace",649,"COL DU BALLON D’ALSACE : SERVANCE ET PRESLES",16.600000000000001,802,"ASSEZ DIFFICILE (4/6)","***","N","5h20",320]
["Plaine","Spechbach-le-bas",650,"SPECHBACH-LE-BAS : LE LONG DU CANAL !",18.899999999999999,82,"ASSEZ FACILE (2,5/6)","**","VTT-VAE","4h15",255]
["Thur","Vieux-Thann",651,"VIEUX-THANN : WALDKAPELLE ET SAINT-URBAIN",10.6,425,"UN PEU DIFFICILE (3/6)","***","N","3h30",210]
["Thur","Thann",652,"THANN : CIRCUIT DU CAMP TURENNE",12.8,566,"UN PEU DIFFICILE (3/6)","***","N","3h45",225]
["Sundgau","Rouffach",653,"ROUFFACH : PROMENADE AU NORD",9.9,21,"FACILE (2/6)","**","VTT-VAE","2h30",150]
["Plaine","Bollwiller",654,"BOLLWILLER : CIRCUIT DE LA POTASSE",15.1,37,"ASSEZ FACILE (2,5/6)","***","VTT-VAE","4h30",270]
["Thur","Geishouse",655,"GEISHOUSE : AU GRAND BALLON !",11.7,649,"UN PEU DIFFICILE (3/6)","***","N","4h",240]
["Doller","Lac d'Alfeld",656,"SEWEN : DU LAC D’ALFELD À LA PETITE CHAUME",9.1999999999999993,512,"ASSEZ DIFFICILE (4/6)","***","N","5h",300]
["Thur/Doller","Col du Hundsruck",657,"COL DU HUNDSRUCK : ROSSBERG, VOGELSTEIN & THANNER HUBEL",11.6,535,"ASSEZ DIFFICILE (4/6)","***","N","4h30",270]
["Thur","Vieux-Thann",658,"VIEUX-THANN : LA THUR JUSQU’À CERNAY",7.5,42,"FACILE (2/6)","**","VTT-VAE","1h45",105]
["Thur/Doller","Rammersmatt",659,"RAMMERSMATT : GRILLADES NOCTURNES À L’ABRI BAUMANN",7.4,283,"UN PEU DIFFICILE (3/6)","***","N","2h45",185]
["Thur/Doller","Col du Hundsruck",660,"COL DU HUNDSRUCK : WEIERLÉ ET MARTISPLATZ",6.4,287,"UN PEU DIFFICILE (3/6)","***","N","2h20",140]
["Thur","Vieux-Thann",661,"VIEUX-THANN : BAECHERKOPFHISLÀ ET CAMP TURENNE",13.8,598,"UN PEU DIFFICILE (3/6)","***","N","4h45",285]
["Plaine d'Alsace","Ungersheim",662,"UNGERSHEIM, RÉGUISHEIM, MERXHEIM : LES CLOCHERS ROMANS",16.8,65,"UN PEU DIFFICILE (3/6)","***","VTT-VAE","4h30",270]
["Thur","Thann",663,"THANN : MON NOUVEAU PETIT RANGEN",4.3,136,"FACILE (2/6)","***","N","1h30",90]
["Lauch","Lautenbach",664,"LAUTENBACH-BOENLESGRAB : NOUVEAU TOUR DU PETIT BALLON",11.9,504,"UN PEU DIFFICILE (3/6)","***","N","3h45",225]
["Doller","Niederbruck",665,"NIEDERBRUCK : ABRIS GRABER ET SOMMERSEITE",16.2,708,"UN PEU DIFFICILE (3/6)","***","N","5h30",330]
["Doller","Rimbach-près-Masevaux",666,"RIMBACH-PRÈS-MASEVAUX : MONTER AUX NEUWEIHER",8.3000000000000007,269,"ASSEZ FACILE (2,5/6)","***","N","2h30",210]
["Thur","Uffholtz",667,"UFFHOLTZ : VIGNES ET FORÊTS",11.6,181,"FACILE (2/6)","***","VTT-VAE","3h",180]
["Lauch","Guebwiller",668,"GUEBWILLER : DREIBANNSTEIN ET CARRIÈRES DE BERGHOLTZ",8.8000000000000007,309,"ASSEZ FACILE (2,5/6)","***","N","3h",180]
["Thur","Ungersheim",669,"PULVERSHEIM : LA THUR, D’UNGERSHEIM À ENSISHEIM",15.4,36,"ASSEZ FACILE (2,5/6)","***","VTT-VAE","3h30",210]
["Thur","Bitschwiller-lès-Thann",670,"BITSCHWILLER-LÈS-THANN : AU MOLKENRAIN !",18,783,"UN PEU DIFFICILE (3/6)","***","N","5h30",330]
["Thur","Thann",671,"THANN : VUES ZUBER ET STAUFEN",11.8,430,"ASSEZ FACILE (2,5/6)","***","VTT-VAE","3h15",195]

{"sheet":"Articles divers","index":1,"n_rows":112,"n_cols":9,"rows_kept":112,"cut":false,"hidden":false,"merged":[]}
["Région","Lieux de Départ","Ref article","Titre","Distance KM","Dénivelé +","Difficulté","Durée (H)","Durée (Mn)"]
[null,null,"2016/04","LE HERRENFLUH (1/3)"]
[null,null,"2016/04","LE HERRENFLUH (2/3)"]
[null,null,"2016/04","LE HERRENFLUH (3/3)"]
[null,null,"2016/04","ALERTE !"]
[null,null,"2016/05","LA BAECHERKOPFHISLA"]
[null,null,"2016/05","LA CHAPELLE DU FREUNDSTEIN"]
[null,null,"2016/06","GARE AUX TIQUES"]
[null,null,"2016/06","ABRI VOGESAPFADHISLA"]
[null,null,"2016/06","ABRI DU BLAUFELS"]
[null,null,"2016/06","MISERE AU REHBRUNNEL"]
[null,null,"2016/06","LA SOURCE DE LA LAUCH"]
[null,null,"2016/07","L'ABRI DU HOCHBURG"]
[null,null,"2016/07","LE CHÂTEAU DE FREUNDSTEIN"]
["Vallée Munster","Col de la Schlucht","2016/08","LE SENTIER DES ROCHES",9.6999999999999993,404,"ASSEZ DIFFICILE (4/6)","3 à 4 h 00"]
[null,null,"2016/08","UNE SOURCE EN PLEIN NA'THUR"]
[null,null,"2016/08","LA DOLLER, UNE EAU QUI COULE DE SOURCE !"]
[null,null,"2016/10","RANDONNEE : L'EQUIPEMENT DE BASE"]
[null,null,"2016/11","RANDONNEURS CHERCHENT ABRIS POUR L'HIVER"]
[null,null,"2016/11","L'ABRI FAUCON CRECERELLE"]
[null,null,"2016/12","RANDONNEE : L'EQUIPEMENT D'HIVER"]
[null,"Staffelfelden","2017/01","STAFFELFELDEN : FERME DE LA BUSSIERE (AUSSI APPELEE LA BUSSIERE OU BUSSIERE)"]
[null,null,"2017/01","LES GRILLADES DE LA NOUVELLE ANNEE"]
[null,null,"2017/02","LISTING DE MES 50 PREMIERES RANDONNEES "]
[null,"Cernay","2017/02","CERNAY : EXTENSION PERIURBAINE"]
[null,"Cernay","2017/02","CERNAY : PROMENADE URBAINE"]
[null,null,"2017/02","DES ABRIS POUR L'HIVER : 1ERE LISTE COMPLEMENTAIRE"]
["Lauch","Guebwiller","2017/03","GUEBWILLER : PROMENADE URBAINE 1/2"]
["Lauch","Guebwiller","2017/03","GUEBWILLER : PROMENADE URBAINE 2/2"]
[null,null,"2017/04","BON ANNIVERSAIRE !!!"]
[null,null,"2017/04","ALIMENTATION : UNE RATION DE COMBAT !"]
["Lauch","Guebwiller","2017/04","GUEBWILLER : LE VIGNOBLE",3.5,80,"AUCUNE","1 h 30",90]
[null,null,"2017/05","C'EST LA FÊTE : ENCORE !?!"]
[null,null,"2017/09","LISTING DE MES 100 PREMIERES RANDONNEES ET DE TOUT LE RESTE"]
[null,null,"2017/11","SAISON 2017 LE TEMPS DES STATISTIQUES"]
[null,null,"2018/01","KRUTH : LE CHALET \"S'STRASS HIESEL\""]
[null,null,"2018/02","MOUNTAINWILDERNESS LA MONTAGNE SANS VOITURE"]
[null,"Cernay","2018/02","CERNAY : UNE NOUVELLE PROMENADE URBAINE",6.4,29,"AUCUNE","1 h 45",75]
[null,null,"2018/02","ET HOP !"]
[null,null,"2018/03","MALADIE DE LYME : EN ALSACE UN NOMBRE DE CAS 2 FOIS SUPERIEUR A LA MOYENNE NATIONALE"]
[null,null,"2018/03","QUESTION DE DENIVELE POSITIF"]
[null,null,"2018/04","VOICI NOTRE DEUXIEME ANNIVERSAIRE"]
[null,null,"2018/05","LA PECHE ET LES ROCHES"]
[null,"Soultz","2018/07","SOULTZ : CIRCUIT DE DECOUVERTE",null,null,null,"1 h 30 à 2 h 00"]
[null,null,"2018/07","50 000 VISITEURS"]
[null,null,"2018/07","LEVER DE SOLEIL AU GRAND BALLON"]
[null,null,"2018/09","UN BANDEAU, DES INFOS"]
[null,null,"2018/09","LE CAMP TURENNE"]
[null,null,"2018/09","QUOI DE NEUF ?"]
[null,null,"2018/09","AOUT 2018, LE MOIS DES RECORDS"]
[null,null,"2018/10","RENOUVELER SON EQUIPEMENT"]
[null,"Cernay","2018/10","CERNAY : UNE NOUVELLE PROMENADE",4.3,32,"TRES FACILE (1/6)","1 h 10 à 2 h 00"]
[null,null,"2019/01","TOP 6 DES ABRIS L-T-D : 1/6 CHALET GAUGLER, LE PLUS BEAU"]
[null,null,"2019/01","TOP 6 DES ABRIS L-T-D : 2/6 ABRI HOCHBURG, L'UN DES MIEUX SITUES"]
[null,null,"2019/01","TOP 6 DES ABRIS L-T-D : 3/6 ABRI FAUCON CRECERELLE, L'UN DES MIEUX SITUES"]
[null,null,"2019/01","ALIMENTATION : UNE RATION DE COMBAT !"]
[null,null,"2019/01","LTD RANDO 68 : BILAN DE L'ANNEE 2018"]
[null,null,"2019/02","TOP 6 DES ABRIS L-T-D : 4/6 ABRI BAECHERKOPFHISLA, LE PLUS CHALEUREUX"]
[null,null,"2019/02","TOP 6 DES ABRIS L-T-D : 5/6 ABRI MUNSTERAECKERLE, LE PLUS MIMI"]
[null,null,"2019/02","TOP 6 DES ABRIS L-T-D : 6/6 ABRI S'STRASS HIESEL, LE PLUS GLAMOUR"]
[null,null,"2019/02","LE GRAND SAUT"]
[null,null,"2019/02","LE CAPDES 200 ABONNES EST PASSE"]
[null,null,"2019/02","OVERBLOG A REPONDU"]
[null,null,"2019/02","PETIT BUG SUR LE BLOG"]
[null,null,"2019/02","JUSTE UNE PRECISION TECHNIQUE"]
["Thur","Urbes","2019/02","URBES : MES ERREURS DANS LA NEIGE"]
[null,null,"2019/03","OOPS"]
[null,null,"2019/03","BON ANNIVERSAIRE MON PETIT"]
[null,null,"2019/05","JUSTE UNE INFORMATION"]
[null,null,"2019/06","NOUVELLES FRAICHES SUR LE BLOG"]
[null,null,"2019/07","PREMIERE MISE A JOUR EXCEL"]
[null,null,"2019/07","RECAPITULATIF DES 250 RANDONNEES"]
["Thur","Bussang","2019/07","AU DEPART DU COL DE BUSSANG"]
[null,null,"2019/08","POUR BIEN COMMENCER LA RANDONNEE : QUELQUES CONSEILS ET 2 CIRCUITS ADAPTES"]
["Vallée Munster",null,"2019/09","LES RANDONNEES DE LA VALLEE DE MUNSTER"]
[null,null,"2019/09","TROISIEME MISE A JOUR EXCEL"]
[null,null,"2019/08","DEUXIEME MISE A JOUR EXCEL"]
["VIEUX-THANN",null,"2022/04","LA TRAVERSÉE 1/2"]
["VIEUX-THANN",null,"2022/04","VIEUX-THANN (2/2) : LE CENTRE-VILLE, MAIS PAS QUE…"]
[null,null,"2022/04","\"LTD RANDO 68\" A 6 ANS : BON ANNIVERSAIRE !"]
[null,null,"2022/06","UN MOIS DE JUIN EN DEMI-TEINTE"]
["THANN",null,"2022/07","THANN : PROMENADE HISTORIQUE"]
["THANN",null,"2022/08","THANN : LE CHÂTEAU DE L’ENGELBOURG"]
[null,null,"2022/10","TOUT SAVOIR SUR LTD RANDO 68 !"]
[null,null,"2022/12","L’HIVER ARRIVE !..."]
[null,null,"2022/12","À PROPOS DE LA FENNEMATT"]
[null,null,"2022-12-22","« LTD RANDO 68 » REVUE DE L’ANNÉE 2022 : 1/4"]
[null,null,"2022-12-25","« LTD RANDO 68 » REVUE DE L’ANNÉE 2022 : 2/4"]
[null,null,"2022-12-28","« LTD RANDO 68 » REVUE DE L’ANNÉE 2022 : 3/4"]
[null,null,"2022-12-30","« LTD RANDO 68 » REVUE DE L’ANNÉE 2022 : 4/4"]
[null,null,"2023-01-02","« LTD RANDO 68 » : BILAN 2022"]
[null,null,"2023-01-02","COL DU HUNDSRUCK : LES GRILLADES DE LA NOUVELLE ANNÉE"]
["ALTKIRCH",null,"2023-01-06","LA MAISON GILARDONI À ALTKIRCH"]
[null,null,"2023-03-27","LE CLUB VOSGIEN VEUT DÉBALISER DES SENTIERS POUR LAISSER PLUS DE PLACE À LA NATURE"]
[null,null,"2023-04-01","FERMES AUBERGES ET VACHES VOSGIENNES"]
["Grand Ballon",null,"2023-04-13","L’HISTOIRE DU CHALET-HÔTEL DU GRAND-BALLON"]
[null,null,"2023-04-23","LE GR5 ENTRE LA FERME DU GRAND BALLON ET LE COL DU BALLON"]
["THANN",null,"2023-05-12","THANN : À L’ENGELBOURG, LA SORCIÈRE A BON PIED BON ŒIL !",2.2999999999999998,80]
["VIEUX-THANN",null,"2023-05-21","VIEUX -THANN : UNE LIAISON DANGEREUSE ?",3.6,9,"TRES FACILE (1/6)","1h",60]
["Rouge-Gazon",null,"2023-06-09","COL DES PERCHES : UN VRAI CADEAU DE NOȄL !"]
["Thur",null,"2023-06-16","SAINT-AMARIN : LE SENTIER DU STOCKENBERG",3.9,183,"FACILE (2/6)","2h",120]
["Thur",null,"2023-06-24","WILLER-SUR-THUR : CIRCUIT DE L’OBERFELD",4.8,243,"Assez facile (2,5/6)","1h30",90]
["Thur",null,"2023-07-01","RANDONNÉES & DÉCOUVERTES EN VALLÉE DE THANN / SAINT-AMARIN"]
["Thur","Steinbach","2023-08-23","PASSERELLE DE L’ERZENBACH : ON PASSE !"]
[null,null,"2023-10-02","SIMON SIMONIN : LES RANDONNÉES ET LES SCIES"]
[null,null,"2023-12-22","VERSANT MONTAGNE : LES VOSGES NE SONT PAS DES MONTAGNES ANODINES EN HIVER"]
[null,null,"2024-01-01","RANDONNÉES 2023 : LE BILAN"]
[null,null,"2024-02-03","ERMENSBACH-NEUWEIHER : NOUVELLES DU RIFIFI G.F.F.W.K."]
[null,null,"2024-02-08","FERMETURE DU SENTIER DE RANDONNÉE « DISQUE BLEU »"]
[null,null,"2024-02-14","RAPPEL IMPORTANT : MOBILISONS-NOUS !!!"]
[null,"Ermensbach","2024-02-16","DEMAIN SAMEDI 17 FÉVRIER 2024 : RENDEZ-VOUS À ERMENSBACH"]
[null,"Ermensbach","2024-02-18","ERMENSBACH : LES PHOTOS DU RASSEMBLEMENT"]

{"sheet":"Feuil3","index":2,"n_rows":470,"n_cols":3,"rows_kept":470,"cut":false,"hidden":false,"merged":[]}
[{"$f":"AdrHyperlien(Randos!C2)","v":"http://ltd-rando68.over-blog.com/2016/04/r-01-balade-autour-de-cernay.html"},null,"Fn+Alt+F11 > Insertion > Module > Coller la fonction > Alt+Q"]
[{"$f":"AdrHyperlien(Randos!C3)","v":"http://ltd-rando68.over-blog.com/2016/05/r-02-molkenrain-et-freundstein.html"}]
[{"$f":"AdrHyperlien(Randos!C4)","v":"http://ltd-rando68.over-blog.com/2016/05/r-03-thanner-hubel-et-rossberg.html"},null,"Function AdrHyperlien(cell As Range)"]
[{"$f":"AdrHyperlien(Randos!C5)","v":"http://ltd-rando68.over-blog.com/2016/05/r-04-entre-ruchberg-et-fuchsfelsen.html"},null,"AdrHyperlien = cell.Hyperlinks(1).Address"]
[{"$f":"AdrHyperlien(Randos!C6)","v":"http://ltd-rando68.over-blog.com/2016/06/r05-moosch-rive-droite.html"},null,"End Function"]
[{"$f":"AdrHyperlien(Randos!C7)","v":"http://ltd-rando68.over-blog.com/2016/06/r06-ostein-et-hirnelestein.html"}]
[{"$f":"AdrHyperlien(Randos!C8)","v":"http://ltd-rando68.over-blog.com/2016/06/r-07-grand-ballon-le-grand-defi.html"},null,"=AdrHyperlien( )"]
[{"$f":"AdrHyperlien(Randos!C9)","v":"http://ltd-rando68.over-blog.com/2016/07/r-09-partir-du-michelbach.html"}]
[{"$f":"AdrHyperlien(Randos!C10)","v":"http://ltd-rando68.over-blog.com/2016/07/r-10-magique-petit-ballon.html"}]
[{"$f":"AdrHyperlien(Randos!C11)","v":"http://ltd-rando68.over-blog.com/2016/07/r-11-petite-escapade-au-bollenberg.html"}]
[{"$f":"AdrHyperlien(Randos!C12)","v":"http://ltd-rando68.over-blog.com/2016/07/r-12-premiere-escapade-dans-le-sundgau.html"}]
[{"$f":"AdrHyperlien(Randos!C13)","v":"http://ltd-rando68.over-blog.com/2016/07/r13-de-la-ballastiere-a-la-poudriere.html"}]
[{"$f":"AdrHyperlien(Randos!C14)","v":"http://ltd-rando68.over-blog.com/2016/07/r14-surprise-a-la-fennematt.html"}]
[{"$f":"AdrHyperlien(Randos!C15)","v":"http://ltd-rando68.over-blog.com/2016/08/r16-les-pelerins-ne-sont-pas-des-menteurs.html"}]
[{"$f":"AdrHyperlien(Randos!C16)","v":"http://ltd-rando68.over-blog.com/2016/08/r-17-kruth-wildenstein-un-lac-un-chateau.html"}]
[{"$f":"AdrHyperlien(Randos!C17)","v":"http://ltd-rando68.over-blog.com/2016/08/r-17-escapade-sur-les-cretes.html"}]
[{"$f":"AdrHyperlien(Randos!C18)","v":"http://ltd-rando68.over-blog.com/2016/09/r-19-mise-en-jambes-thannoise.html"}]
[{"$f":"AdrHyperlien(Randos!C19)","v":"http://ltd-rando68.over-blog.com/2016/09/r-20-le-rouge-gazon-nous-tend-ses-perches.html"}]
[{"$f":"AdrHyperlien(Randos!C20)","v":"http://ltd-rando68.over-blog.com/2016/09/r-21-la-rando-des-cascades.html"}]
[{"$f":"AdrHyperlien(Randos!C21)","v":"http://ltd-rando68.over-blog.com/2016/09/r-22-escapade-dans-les-vosges-vosgiennes.html"}]
[{"$f":"AdrHyperlien(Randos!C22)","v":"http://ltd-rando68.over-blog.com/2016/10/r-23-le-ballon-d-alsace-franchement-comte.html"}]
[{"$f":"AdrHyperlien(Randos!C23)","v":"http://ltd-rando68.over-blog.com/2016/10/r-24-le-baerenkopf-tete-des-ours.html"}]
[{"$f":"AdrHyperlien(Randos!C24)","v":"http://ltd-rando68.over-blog.com/2016/10/steinbach-le-circuit-des-decouvertes-r-25.html"}]
[{"$f":"AdrHyperlien(Randos!C25)","v":"http://ltd-rando68.over-blog.com/2016/10/lac-de-michelbach-un-petit-circuit-familial-r-26.html"}]
[{"$f":"AdrHyperlien(Randos!C26)","v":"http://ltd-rando68.over-blog.com/2016/10/sur-les-hauteurs-de-guebwiller-r-27.html"}]
[{"$f":"AdrHyperlien(Randos!C27)","v":"http://ltd-rando68.over-blog.com/2016/10/cernay-un-petit-tour-autour-de-la-thur-r-28.html"}]
[{"$f":"AdrHyperlien(Randos!C28)","v":"http://ltd-rando68.over-blog.com/2016/10/wattwiller-je-prefere-manger-a-la-cantine-r-29.html"}]
[{"$f":"AdrHyperlien(Randos!C29)","v":"http://ltd-rando68.over-blog.com/2016/10/le-soultzbach-ca-vous-parle-r-31.html"}]
[{"$f":"AdrHyperlien(Randos!C30)","v":"http://ltd-rando68.over-blog.com/2016/11/uffholtz-sur-les-hauteurs-r-32.html"}]
[{"$f":"AdrHyperlien(Randos!C31)","v":"http://ltd-rando68.over-blog.com/2016/11/buhl-le-circuit-des-cols-r-33.html"}]
[{"$f":"AdrHyperlien(Randos!C32)","v":"http://ltd-rando68.over-blog.com/2016/11/le-grand-ventron-avec-la-grande-neige-r-34.html"}]
[{"$f":"AdrHyperlien(Randos!C33)","v":"http://ltd-rando68.over-blog.com/2016/11/rimbach-neuweiher-et-perches-le-circuit-des-lacs-r-35.html"}]
[{"$f":"AdrHyperlien(Randos!C34)","v":"http://ltd-rando68.over-blog.com/2016/12/steinbach-montee-au-refuge-utan-molkenrain-r-37.html"}]
[{"$f":"AdrHyperlien(Randos!C35)","v":"http://ltd-rando68.over-blog.com/2016/12/kruth-chalet-beni-benoit-schafert-r-38.html"}]
[{"$f":"AdrHyperlien(Randos!C36)","v":"http://ltd-rando68.over-blog.com/2016/12/grand-ballon-le-petit-chemin-r-39.html"}]
[{"$f":"AdrHyperlien(Randos!C37)","v":"http://ltd-rando68.over-blog.com/2016/12/le-drumont-depuis-fellering-r-40.html"}]
[{"$f":"AdrHyperlien(Randos!C38)","v":"http://ltd-rando68.over-blog.com/2017/01/cernay-1er-circuit-hivernal-r-41.html"}]
[{"$f":"AdrHyperlien(Randos!C39)","v":"http://ltd-rando68.over-blog.com/2017/01/cernay-2eme-circuit-hivernal-r-42.html"}]
[{"$f":"AdrHyperlien(Randos!C40)","v":"http://ltd-rando68.over-blog.com/2017/01/cernay-3eme-circuit-hivernal-r-43.html"}]
[{"$f":"AdrHyperlien(Randos!C41)","v":"http://ltd-rando68.over-blog.com/2017/01/wattwiller-le-molkenrain-en-hiver-r-44.html"}]
[{"$f":"AdrHyperlien(Randos!C42)","v":"http://ltd-rando68.over-blog.com/2017/01/rossberg-et-thanner-hubel-un-beau-circuit-hivernal-r-45.html"}]
[{"$f":"AdrHyperlien(Randos!C43)","v":"http://ltd-rando68.over-blog.com/2017/01/masevaux-lachtelweiher-lochberg-r-46.html"}]
[{"$f":"AdrHyperlien(Randos!C44)","v":"http://ltd-rando68.over-blog.com/2017/01/mollau-le-circuit-des-cabanes-r-47.html"}]
[{"$f":"AdrHyperlien(Randos!C45)","v":"http://ltd-rando68.over-blog.com/2017/02/lautenbach-et-linthal-vers-le-petit-ballon-r-48.html"}]
[{"$f":"AdrHyperlien(Randos!C46)","v":"http://ltd-rando68.over-blog.com/2017/02/oberbruck-lagerwald-gresson-et-baerenbach-r-52.html"}]
[{"$f":"AdrHyperlien(Randos!C47)","v":"http://ltd-rando68.over-blog.com/2017/02/sentheim-le-col-du-schirm-entre-forets-et-rochers-r-53.html"}]
[{"$f":"AdrHyperlien(Randos!C48)","v":"http://ltd-rando68.over-blog.com/2017/03/cernay-courte-extension-romaine-r-54-bis.html"}]
[{"$f":"AdrHyperlien(Randos!C49)","v":"http://ltd-rando68.over-blog.com/2017/03/cernay-balade-vers-le-lutzelhof-r-54.html"}]
[{"$f":"AdrHyperlien(Randos!C50)","v":"http://ltd-rando68.over-blog.com/2017/03/vieux-thann-le-tour-du-rangen-r-55.html"}]
[{"$f":"AdrHyperlien(Randos!C51)","v":"http://ltd-rando68.over-blog.com/2017/03/kruth-la-chaume-des-vinterges-r-56.html"}]
[{"$f":"AdrHyperlien(Randos!C52)","v":"http://ltd-rando68.over-blog.com/2017/03/sewen-le-grand-langenberg-r-57.html"}]
[{"$f":"AdrHyperlien(Randos!C53)","v":"http://ltd-rando68.over-blog.com/2017/03/schweighouse-gangolphe-et-bannstein-r-58.html"}]
[{"$f":"AdrHyperlien(Randos!C54)","v":"http://ltd-rando68.over-blog.com/2017/03/altenach-le-plat-sundgau-r-59.html"}]
[{"$f":"AdrHyperlien(Randos!C55)","v":"http://ltd-rando68.over-blog.com/2017/04/oderen-montee-au-treh-r-60.html"}]
[{"$f":"AdrHyperlien(Randos!C56)","v":"http://ltd-rando68.over-blog.com/2017/04/sengern-un-tour-au-markstein-r-61.html"}]
[{"$f":"AdrHyperlien(Randos!C57)","v":"http://ltd-rando68.over-blog.com/2017/04/giromagny-les-belles-filles-ont-leur-planche-r-62.html"}]
[{"$f":"AdrHyperlien(Randos!C58)","v":"http://ltd-rando68.over-blog.com/2017/04/ferrette-vers-le-jura-alsacien-r-63.html"}]
[{"$f":"AdrHyperlien(Randos!C59)","v":"http://ltd-rando68.over-blog.com/2017/04/masevaux-fuchsfelsen-et-rossberg-r-64.html"}]
[{"$f":"AdrHyperlien(Randos!C60)","v":"http://ltd-rando68.over-blog.com/2017/04/murbach-grottes-et-rochers-r-65.html"}]
[{"$f":"AdrHyperlien(Randos!C61)","v":"http://ltd-rando68.over-blog.com/2017/04/rougemont-la-tournee-des-etangs-r-66.html"}]
[{"$f":"AdrHyperlien(Randos!C62)","v":"http://ltd-rando68.over-blog.com/2017/05/cernay-le-tour-de-la-montagne-r-67.html"}]
[{"$f":"AdrHyperlien(Randos!C63)","v":"http://ltd-rando68.over-blog.com/2017/05/cernay-le-grand-ballon-version-2017-r-68.html"}]
[{"$f":"AdrHyperlien(Randos!C64)","v":"http://ltd-rando68.over-blog.com/2017/05/willer-sur-thur-agapes-au-blaufels-r-69.html"}]
[{"$f":"AdrHyperlien(Randos!C65)","v":"http://ltd-rando68.over-blog.com/2017/05/wintzfelden-forets-et-vignes-r-70.html"}]
[{"$f":"AdrHyperlien(Randos!C66)","v":"http://ltd-rando68.over-blog.com/2017/05/hundsruck-col-du-un-double-huit-r-71.html"}]
[{"$f":"AdrHyperlien(Randos!C67)","v":"http://ltd-rando68.over-blog.com/2017/06/cernay-profitons-de-la-thur-r-72.html"}]
[{"$f":"AdrHyperlien(Randos!C68)","v":"http://ltd-rando68.over-blog.com/2017/06/sewen-graber-1-2-fennematt-et-huhfels-r-73.html"}]
[{"$f":"AdrHyperlien(Randos!C69)","v":"http://ltd-rando68.over-blog.com/2017/06/wildenstein-la-randonnee-des-cols-r-74.html"}]
[{"$f":"AdrHyperlien(Randos!C70)","v":"http://ltd-rando68.over-blog.com/2017/06/rimbach-pres-guebwiller-glashutte-et-sudel-r-75.html"}]
[{"$f":"AdrHyperlien(Randos!C71)","v":"http://ltd-rando68.over-blog.com/2017/06/osenbach-randonnee-forestiere-r-76.html"}]
[{"$f":"AdrHyperlien(Randos!C72)","v":"http://ltd-rando68.over-blog.com/2017/06/orbey-calvaire-petit-circuit-des-immerlins-r-77.html"}]
[{"$f":"AdrHyperlien(Randos!C73)","v":"http://ltd-rando68.over-blog.com/2017/06/grand-ballon-markstein-r-78.html"}]
[{"$f":"AdrHyperlien(Randos!C74)","v":"http://ltd-rando68.over-blog.com/2017/06/col-de-bramont-une-vierge-des-corbeaux-r-79.html"}]
[{"$f":"AdrHyperlien(Randos!C75)","v":"http://ltd-rando68.over-blog.com/2017/07/bitschwiller-les-thann-un-petit-tour-en-foret-r-80.html"}]
[{"$f":"AdrHyperlien(Randos!C76)","v":"http://ltd-rando68.over-blog.com/2017/07/le-markstein-la-schlucht-r-81.html"}]
[{"$f":"AdrHyperlien(Randos!C77)","v":"http://ltd-rando68.over-blog.com/2017/07/uffholtz-de-vignes-et-de-forets-r-82.html"}]
[{"$f":"AdrHyperlien(Randos!C78)","v":"http://ltd-rando68.over-blog.com/2017/07/willer-sur-thur-en-piste-autour-de-la-thur-r-83.html"}]
[{"$f":"AdrHyperlien(Randos!C79)","v":"http://ltd-rando68.over-blog.com/2017/07/wittelsheim-circuit-de-decouverte-r-84.html"}]
[{"$f":"AdrHyperlien(Randos!C80)","v":"http://ltd-rando68.over-blog.com/2017/07/la-schlucht-le-bonhomme-r-85.html"}]
[{"$f":"AdrHyperlien(Randos!C81)","v":"http://ltd-rando68.over-blog.com/2017/08/michelbach-petite-promenade-r-86.html"}]
[{"$f":"AdrHyperlien(Randos!C82)","v":"http://ltd-rando68.over-blog.com/2017/08/roderen-la-tournee-des-chapelles-r-87.html"}]
[{"$f":"AdrHyperlien(Randos!C83)","v":"http://ltd-rando68.over-blog.com/2017/08/ballon-d-alsace-les-roches-de-morteville-r-88.html"}]
[{"$f":"AdrHyperlien(Randos!C84)","v":"http://ltd-rando68.over-blog.com/2017/08/cernay-dejeuner-en-paix-au-baecherkopfhisla-r-89.html"}]
[{"$f":"AdrHyperlien(Randos!C85)","v":"http://ltd-rando68.over-blog.com/2017/08/orbey-la-tournee-des-lacs-r-90.html"}]
[{"$f":"AdrHyperlien(Randos!C86)","v":"http://ltd-rando68.over-blog.com/2017/08/masevaux-au-saegenkopf-r-91.html"}]
[{"$f":"AdrHyperlien(Randos!C87)","v":"http://ltd-rando68.over-blog.com/2017/08/ballon-d-alsace-et-ballon-de-servance-le-circuit-des-chalets-r-92.html"}]
[{"$f":"AdrHyperlien(Randos!C88)","v":"http://ltd-rando68.over-blog.com/2017/08/wattwiller-dejeuner-en-paix-au-molkenrain-r-93.html"}]
[{"$f":"AdrHyperlien(Randos!C89)","v":"http://ltd-rando68.over-blog.com/2017/08/kruth-du-col-d-oderen-au-grand-ventron-r-94.html"}]
[{"$f":"AdrHyperlien(Randos!C90)","v":"http://ltd-rando68.over-blog.com/2017/09/dejeuner-en-paix-au-hochburg-part-1-depuis-bourbach-le-haut-r-95.html"}]
[{"$f":"AdrHyperlien(Randos!C91)","v":"http://ltd-rando68.over-blog.com/2017/09/dejeuner-en-paix-au-hochburg-part-2-depuis-rammersmatt-r-96.html"}]
[{"$f":"AdrHyperlien(Randos!C92)","v":"http://ltd-rando68.over-blog.com/2017/09/col-de-bussang-drumont-tete-de-fellering-et-faigne-des-minons-r-97.html"}]
[{"$f":"AdrHyperlien(Randos!C93)","v":"http://ltd-rando68.over-blog.com/2017/09/steinbach-erzenbach-et-amselkopf-r-98.html"}]
[{"$f":"AdrHyperlien(Randos!C94)","v":"http://ltd-rando68.over-blog.com/2017/09/burnhaupt-le-haut-pont-d-aspach-et-guewenheim-r-99.html"}]
[{"$f":"AdrHyperlien(Randos!C95)","v":"http://ltd-rando68.over-blog.com/2017/09/col-de-la-schlucht-sentier-des-roches-et-hirschsteine-r-100.html"}]
[{"$f":"AdrHyperlien(Randos!C96)","v":"http://ltd-rando68.over-blog.com/2017/09/fresse-sur-moselle-cascade-de-longeligoutte-et-mines-de-cuivre-r-101.html"}]
[{"$f":"AdrHyperlien(Randos!C97)","v":"http://ltd-rando68.over-blog.com/2017/09/illfurth-britzgyberg-de-l-age-du-fer-a-la-poudre-des-canons-r-102.html"}]
[{"$f":"AdrHyperlien(Randos!C98)","v":"http://ltd-rando68.over-blog.com/2017/10/sur-les-pentes-du-petit-ballon-r-103.html"}]
[{"$f":"AdrHyperlien(Randos!C99)","v":"http://ltd-rando68.over-blog.com/2017/10/soultz-un-nez-deux-rochers-trois-ermites-r-104.html"}]
[{"$f":"AdrHyperlien(Randos!C100)","v":"http://ltd-rando68.over-blog.com/2017/10/guebwiller-petite-viree-mystique-r105.html"}]
[{"$f":"AdrHyperlien(Randos!C101)","v":"http://ltd-rando68.over-blog.com/2017/10/bussang-des-roches-et-des-chalets-r106.html"}]
[{"$f":"AdrHyperlien(Randos!C102)","v":"http://ltd-rando68.over-blog.com/2017/10/stosswihr-monter-aux-hirschsteine-r107.html"}]
[{"$f":"AdrHyperlien(Randos!C103)","v":"http://ltd-rando68.over-blog.com/2017/10/fresse-sur-moselle-croix-de-fresse-et-chapelle-des-ves-r108.html"}]
[{"$f":"AdrHyperlien(Randos!C104)","v":"http://ltd-rando68.over-blog.com/2017/10/kruth-le-haut-de-felsach-r109.html"}]
[{"$f":"AdrHyperlien(Randos!C105)","v":"http://ltd-rando68.over-blog.com/2017/10/cernay-on-passe-en-dessous-r110.html"}]
[{"$f":"AdrHyperlien(Randos!C106)","v":"http://ltd-rando68.over-blog.com/2017/10/gildwiller-sur-le-mont-magnifique-sundgau-r111.html"}]
[{"$f":"AdrHyperlien(Randos!C107)","v":"http://ltd-rando68.over-blog.com/2017/11/cernay-la-thur-sauvage-et-civilisee-r112.html"}]
[{"$f":"AdrHyperlien(Randos!C108)","v":"http://ltd-rando68.over-blog.com/2017/11/steinbach-la-cote-425-et-les-vignes-r113.html"}]
[{"$f":"AdrHyperlien(Randos!C109)","v":"http://ltd-rando68.over-blog.com/2017/11/col-du-hundsruck-la-vie-en-rouge-r114.html"}]
[{"$f":"AdrHyperlien(Randos!C110)","v":"http://ltd-rando68.over-blog.com/2017/11/le-tour-du-grand-ballon-neige-et-brouillard-r115.html"}]
[{"$f":"AdrHyperlien(Randos!C111)","v":"http://ltd-rando68.over-blog.com/2017/11/autour-du-thanner-hubel-un-corbeau-une-grotte-r116.html"}]
[{"$f":"AdrHyperlien(Randos!C112)","v":"http://ltd-rando68.over-blog.com/2017/11/mulhouse-dornach-entre-champs-et-foret-r117.html"}]
[{"$f":"AdrHyperlien(Randos!C113)","v":"http://ltd-rando68.over-blog.com/2017/11/col-amic-un-petit-circuit-r118.html"}]
[{"$f":"AdrHyperlien(Randos!C114)","v":"http://ltd-rando68.over-blog.com/2017/11/moosch-au-belacker-et-au-gsang-r119.html"}]
[{"$f":"AdrHyperlien(Randos!C115)","v":"http://ltd-rando68.over-blog.com/2017/12/goldbach-le-tour-du-molkenrain-r120.html"}]
[{"$f":"AdrHyperlien(Randos!C116)","v":"http://ltd-rando68.over-blog.com/2017/12/mulhouse-garder-la-forme-r121.html"}]
[{"$f":"AdrHyperlien(Randos!C117)","v":"http://ltd-rando68.over-blog.com/2017/12/cernay-une-marche-sportive-r122.html"}]
[{"$f":"AdrHyperlien(Randos!C118)","v":"http://ltd-rando68.over-blog.com/2017/12/steinbach-petit-circuit-petite-neige-r123.html"}]
[{"$f":"AdrHyperlien(Randos!C119)","v":"http://ltd-rando68.over-blog.com/2018/01/thann-vers-les-pyramides-r-124.html"}]
[{"$f":"AdrHyperlien(Randos!C120)","v":"http://ltd-rando68.over-blog.com/2018/01/willer-sur-thur-monter-a-altenbach-r-125.html"}]
[{"$f":"AdrHyperlien(Randos!C121)","v":"http://ltd-rando68.over-blog.com/2018/01/oderen-au-gommkopf-r-126.html"}]
[{"$f":"AdrHyperlien(Randos!C122)","v":"http://ltd-rando68.over-blog.com/2018/01/masevaux-le-tour-du-baerenkopf-r-127.html"}]
[{"$f":"AdrHyperlien(Randos!C123)","v":"http://ltd-rando68.over-blog.com/2018/01/rimbach-pres-guebwiller-holzwasen-et-firstacker-r-128.html"}]
[{"$f":"AdrHyperlien(Randos!C124)","v":"http://ltd-rando68.over-blog.com/2018/01/steinbach-les-inedits-r-129.html"}]
[{"$f":"AdrHyperlien(Randos!C125)","v":"http://ltd-rando68.over-blog.com/2018/02/willer-sur-thur-abris-blaufels-vogesapfad-et-kuppen-r-131.html"}]
[{"$f":"AdrHyperlien(Randos!C126)","v":"http://ltd-rando68.over-blog.com/2018/02/altkirch-le-off-et-le-in-r-132.html"}]
[{"$f":"AdrHyperlien(Randos!C127)","v":"http://ltd-rando68.over-blog.com/2018/02/aspach-le-haut-un-grand-classique-r-133.html"}]
[{"$f":"AdrHyperlien(Randos!C128)","v":"http://ltd-rando68.over-blog.com/2018/02/lautenbach-linthal-le-petit-ballon-en-hiver-r-135.html"}]
[{"$f":"AdrHyperlien(Randos!C129)","v":"http://ltd-rando68.over-blog.com/2018/03/steinbach-molkenrain-et-freundstein-en-hiver.html"}]
[{"$f":"AdrHyperlien(Randos!C130)","v":"http://ltd-rando68.over-blog.com/2018/03/reiningue-autour-de-l-oelenberg-r-137.html"}]
[{"$f":"AdrHyperlien(Randos!C131)","v":"http://ltd-rando68.over-blog.com/2018/03/orschwihr-le-vignoble-du-bollenberg-a-rouffach-r-138.html"}]
[{"$f":"AdrHyperlien(Randos!C132)","v":"http://ltd-rando68.over-blog.com/2018/03/oberbruck-les-mines-et-les-cretes-r-139.html"}]
[{"$f":"AdrHyperlien(Randos!C133)","v":"http://ltd-rando68.over-blog.com/2018/03/uffholtz-vers-wattwiller-et-berrwiller-r-140.html"}]
[{"$f":"AdrHyperlien(Randos!C134)","v":"http://ltd-rando68.over-blog.com/2018/03/aspach-le-sundgau-toujours-plus-a-l-ouest-r-141.html"}]
[{"$f":"AdrHyperlien(Randos!C135)","v":"http://ltd-rando68.over-blog.com/2018/03/mulhouse-des-ponts-et-des-passerelles-r-142.html"}]
[{"$f":"AdrHyperlien(Randos!C136)","v":"http://ltd-rando68.over-blog.com/2018/04/suarce-les-ressources-du-territoire-r-143.html"}]
[{"$f":"AdrHyperlien(Randos!C137)","v":"http://ltd-rando68.over-blog.com/2018/04/ensisheim-sentier-de-l-ill-et-canal-vauban-r-144.html"}]
[{"$f":"AdrHyperlien(Randos!C138)","v":"http://ltd-rando68.over-blog.com/2018/04/rimbach-pres-guebwiller-au-grand-ballon-r-145.html"}]
[{"$f":"AdrHyperlien(Randos!C139)","v":"http://ltd-rando68.over-blog.com/2018/04/hirsingue-le-sundgau-agricole-r-146.html"}]
[{"$f":"AdrHyperlien(Randos!C140)","v":"http://ltd-rando68.over-blog.com/2018/04/etueffont-le-moine-et-ses-sept-chemins-r-147.html"}]
[{"$f":"AdrHyperlien(Randos!C141)","v":"http://ltd-rando68.over-blog.com/2018/04/geishouse-une-histoire-de-capitaine-r-148.html"}]
[{"$f":"AdrHyperlien(Randos!C142)","v":"http://ltd-rando68.over-blog.com/2018/04/gildwiller-la-tournee-des-etangs-r-149.html"}]
[{"$f":"AdrHyperlien(Randos!C143)","v":"http://ltd-rando68.over-blog.com/2018/05/col-de-bussang-les-chalets-forestiers-r-150.html"}]
[{"$f":"AdrHyperlien(Randos!C144)","v":"http://ltd-rando68.over-blog.com/2018/05/durlinsdorf-morimont-et-ebourbettes-r-151.html"}]
[{"$f":"AdrHyperlien(Randos!C145)","v":"http://ltd-rando68.over-blog.com/2018/05/cernay-le-grand-ballon-a/r-version-2018-r-152.html"}]
[{"$f":"AdrHyperlien(Randos!C146)","v":"http://ltd-rando68.over-blog.com/2018/05/bourbach-le-haut-grillades-nocturnes-au-hochburg-r-153.html"}]
[{"$f":"AdrHyperlien(Randos!C147)","v":"http://ltd-rando68.over-blog.com/2018/05/lachapelle-sous-rougemont-ccpsv-prairies-forets-et-etangs-r-154.html"}]
[{"$f":"AdrHyperlien(Randos!C148)","v":"http://ltd-rando68.over-blog.com/2018/05/walheim-semi-marathon-sungauvien-r-155.htmlhttps/www.facebook.com/profile.php-id-100016589404094"}]
[{"$f":"AdrHyperlien(Randos!C149)","v":"http://ltd-rando68.over-blog.com/2018/06/rimbach-pres-masevaux-lac-et-col-des-perches-r-156.html"}]
[{"$f":"AdrHyperlien(Randos!C150)","v":"http://ltd-rando68.over-blog.com/2018/06/storckensohn-au-gazon-vert-r-157.html"}]
[{"$f":"AdrHyperlien(Randos!C151)","v":"http://ltd-rando68.over-blog.com/2018/06/uffholtz-soultz-et-son-moulin-r-158.html"}]
[{"$f":"AdrHyperlien(Randos!C152)","v":"http://ltd-rando68.over-blog.com/2018/06/ballon-d-alsace-vers-la-haute-bers-r-159.html"}]
[{"$f":"AdrHyperlien(Randos!C153)","v":"http://ltd-rando68.over-blog.com/2018/06/rougegoutte-le-chateau-aux-sept-chemins-r-160.html"}]
[{"$f":"AdrHyperlien(Randos!C154)","v":"http://ltd-rando68.over-blog.com/2018/06/cernay-steinbach-facon-montagnes-russes-r-161.html"}]
[{"$f":"AdrHyperlien(Randos!C155)","v":"http://ltd-rando68.over-blog.com/2018/06/saint-maurice-sur-moselle-le-plein-de-nouveautes-r-162.html"}]
[{"$f":"AdrHyperlien(Randos!C156)","v":"http://ltd-rando68.over-blog.com/2018/07/soultz-ce-circuit-a-du-nez-r-163.html"}]
[{"$f":"AdrHyperlien(Randos!C157)","v":"http://ltd-rando68.over-blog.com/2018/07/lagrange-90-entre-forets-et-champs-r-164.html"}]
[{"$f":"AdrHyperlien(Randos!C158)","v":"http://ltd-rando68.over-blog.com/2018/07/hagenthal-le-bas-au-landskron-r-165.html"}]
[{"$f":"AdrHyperlien(Randos!C159)","v":"http://ltd-rando68.over-blog.com/2018/07/thannenkirch-le-mur-paien-et-ses-rochers-r-166.html"}]
[{"$f":"AdrHyperlien(Randos!C160)","v":"http://ltd-rando68.over-blog.com/2018/07/haute-vallee-de-masevaux-le-petit-tour-depuis-sewen-r-167.html"}]
[{"$f":"AdrHyperlien(Randos!C161)","v":"http://ltd-rando68.over-blog.com/2018/08/saint-amarin-mon-circuit-des-chapelles-r-168.html"}]
[{"$f":"AdrHyperlien(Randos!C162)","v":"http://ltd-rando68.over-blog.com/2018/08/hirschsteine-de-la-schlucht-au-lac-vert-r-169.html"}]
[{"$f":"AdrHyperlien(Randos!C163)","v":"http://ltd-rando68.over-blog.com/2018/08/le-chalet-roger-gaugler-a-sickert-r-170.html"}]
[{"$f":"AdrHyperlien(Randos!C164)","v":"http://ltd-rando68.over-blog.com/2018/08/lachtelweiher-lochberg-fennematt-r-171.html"}]
[{"$f":"AdrHyperlien(Randos!C165)","v":"http://ltd-rando68.over-blog.com/2018/08/belacker-rossberg-sur-le-gr-5-montee-depuis-malmerspach-r-172.html"}]
[{"$f":"AdrHyperlien(Randos!C166)","v":"http://ltd-rando68.over-blog.com/2018/08/col-de-rimbach-col-des-perches-sur-le-gr-5-montee-depuis-mollau-r-173.html"}]
[{"$f":"AdrHyperlien(Randos!C167)","v":"http://ltd-rando68.over-blog.com/2018/09/bitschwiller-rive-gauche-r-174.html"}]
[{"$f":"AdrHyperlien(Randos!C168)","v":"http://ltd-rando68.over-blog.com/2018/09/moosch-nouveau-circuit-du-haag-r-176.html"}]
[{"$f":"AdrHyperlien(Randos!C169)","v":"http://ltd-rando68.over-blog.com/2018/09/le-grand-brezouard-r-177.html"}]
[{"$f":"AdrHyperlien(Randos!C170)","v":"http://ltd-rando68.over-blog.com/2018/09/abri-zuber-et-abri-baumann-a-thann-r-175.html"}]
[{"$f":"AdrHyperlien(Randos!C171)","v":"http://ltd-rando68.over-blog.com/2018/09/jungholtz-en-foret-reculee-de-soultz-r-178.html"}]
[{"$f":"AdrHyperlien(Randos!C172)","v":"http://ltd-rando68.over-blog.com/2018/10/st-amarin-et-ranspach-au-markstein-r-179.html"}]
[{"$f":"AdrHyperlien(Randos!C173)","v":"http://ltd-rando68.over-blog.com/2018/10/st-amarin-le-circuit-du-belacker-r-180.html"}]
[{"$f":"AdrHyperlien(Randos!C174)","v":"http://ltd-rando68.over-blog.com/2018/10/le-sattelboden-depuis-sickert-r-181.html"}]
[{"$f":"AdrHyperlien(Randos!C175)","v":"http://ltd-rando68.over-blog.com/2018/10/flaxlanden-le-sundgau-automnal-r-182.html"}]
[{"$f":"AdrHyperlien(Randos!C176)","v":"http://ltd-rando68.over-blog.com/2018/10/guebwiller-buhl-trottberg-et-appenthal-les-mysteres-r-183.html"}]
[{"$f":"AdrHyperlien(Randos!C177)","v":"http://ltd-rando68.over-blog.com/2018/10/breitenbach-haut-rhin-le-circuit-du-petit-ballon-r-184.html"}]
[{"$f":"AdrHyperlien(Randos!C178)","v":"http://ltd-rando68.over-blog.com/2018/10/saint-amarin-le-circuit-des-2-m-r-185.html"}]
[{"$f":"AdrHyperlien(Randos!C179)","v":"http://ltd-rando68.over-blog.com/2018/11/cernay-le-vallon-de-l-erzenbach-r-186.html"}]
[{"$f":"AdrHyperlien(Randos!C180)","v":"http://ltd-rando68.over-blog.com/2018/11/moosch-et-st-amarin-le-tour-du-grand-ballon-r-187.html"}]
[{"$f":"AdrHyperlien(Randos!C181)","v":"http://ltd-rando68.over-blog.com/2018/11/dannemarie-le-sundgau-en-automne-r-188.html"}]
[{"$f":"AdrHyperlien(Randos!C182)","v":"http://ltd-rando68.over-blog.com/2018/11/cernay-wittelsheim-un-petit-tour-r-189.html"}]
[{"$f":"AdrHyperlien(Randos!C183)","v":"http://ltd-rando68.over-blog.com/2018/11/wintzenheim-les-forets-des-5-chateaux-r-190.html"}]
[{"$f":"AdrHyperlien(Randos!C184)","v":"http://ltd-rando68.over-blog.com/2018/11/oberbruck-le-circuit-des-gresson-r-191.html"}]
[{"$f":"AdrHyperlien(Randos!C185)","v":"http://ltd-rando68.over-blog.com/2018/11/vieux-thann-le-rangen-en-long-et-en-large-r-192.html"}]
[{"$f":"AdrHyperlien(Randos!C186)","v":"http://ltd-rando68.over-blog.com/2018/11/cernay-cyclables-et-de-defruitement-ce-sont-les-pistes-r-193.html"}]
[{"$f":"AdrHyperlien(Randos!C187)","v":"http://ltd-rando68.over-blog.com/2018/11/thann-autour-du-grumbach-r-194.html"}]
[{"$f":"AdrHyperlien(Randos!C188)","v":"http://ltd-rando68.over-blog.com/2018/12/illfurth-les-collines-l-ill-le-canal-r-195.html"}]
[{"$f":"AdrHyperlien(Randos!C189)","v":"http://ltd-rando68.over-blog.com/2018/12/bitschwiller-les-thann-le-tour-du-thanner-hubel-r-196.html"}]
[{"$f":"AdrHyperlien(Randos!C190)","v":"http://ltd-rando68.over-blog.com/2018/12/aspach-carspach-altkirch-un-petit-circuit-r-197.html"}]
[{"$f":"AdrHyperlien(Randos!C191)","v":"http://ltd-rando68.over-blog.com/2018/12/wattwiller-un-circuit-vraiment-facile-r-198.html"}]
[{"$f":"AdrHyperlien(Randos!C192)","v":"http://ltd-rando68.over-blog.com/2018/12/ruelisheim-le-circuit-des-tumuli-r-199.html"}]
[{"$f":"AdrHyperlien(Randos!C193)","v":"http://ltd-rando68.over-blog.com/2018/12/steinbach-circuit-de-mise-en-forme-version-courte-r-200.html"}]
[{"$f":"AdrHyperlien(Randos!C194)","v":"http://ltd-rando68.over-blog.com/2018/12/steinbach-circuit-de-mise-en-forme-version-longue-r-201.html"}]
[{"$f":"AdrHyperlien(Randos!C195)","v":"http://ltd-rando68.over-blog.com/2019/01/roderen-champs-forets-et-etangs-r-202.html"}]
[{"$f":"AdrHyperlien(Randos!C196)","v":"http://ltd-rando68.over-blog.com/2019/01/hirsingue-etangs-casemates-et-chapelles-r-203.html"}]
[{"$f":"AdrHyperlien(Randos!C197)","v":"http://ltd-rando68.over-blog.com/2019/01/masevaux-la-foret-de-stoecken-sous-la-neige-r-204.html"}]
[{"$f":"AdrHyperlien(Randos!C198)","v":"http://ltd-rando68.over-blog.com/2019/01/montreux-chateau-dans-le-territoire-r-205.html"}]
[{"$f":"AdrHyperlien(Randos!C199)","v":"http://ltd-rando68.over-blog.com/2019/01/col-d-oderen-le-tour-du-grand-ventron-en-hiver-r-206.html"}]
[{"$f":"AdrHyperlien(Randos!C200)","v":"http://ltd-rando68.over-blog.com/2019/01/luemschwiller-le-sundgau-sa-terre-ses-arbres-r-207.html"}]
[{"$f":"AdrHyperlien(Randos!C201)","v":"http://ltd-rando68.over-blog.com/2019/01/kirchberg-un-petit-circuit-de-decouverte-r-208.html"}]
[{"$f":"AdrHyperlien(Randos!C202)","v":"http://ltd-rando68.over-blog.com/2019/01/bethonvilliers-la-foret-est-aussi-belle-en-hiver-r-209.html"}]
[{"$f":"AdrHyperlien(Randos!C203)","v":"http://ltd-rando68.over-blog.com/2019/01/thann-le-petit-circuit-waldkapelle-r-210.html"}]
[{"$f":"AdrHyperlien(Randos!C204)","v":"http://ltd-rando68.over-blog.com/2019/01/steinbach-mon-circuit-du-camp-turenne-r-211.html"}]
[{"$f":"AdrHyperlien(Randos!C205)","v":"http://ltd-rando68.over-blog.com/2019/02/lauw-le-circuit-de-l-oberwald-r-212.html"}]
[{"$f":"AdrHyperlien(Randos!C206)","v":"http://ltd-rando68.over-blog.com/2019/02/pfaffenheim-entre-vignes-et-spiritualite-r-213.html"}]
[{"$f":"AdrHyperlien(Randos!C207)","v":"http://ltd-rando68.over-blog.com/2019/02/altkirch-marcher-sur-la-piste-cyclable-r-214.html"}]
[{"$f":"AdrHyperlien(Randos!C208)","v":"http://ltd-rando68.over-blog.com/2019/02/illfurth-le-gr-531-nouveau-est-arrive-r-215.html"}]
[{"$f":"AdrHyperlien(Randos!C209)","v":"http://ltd-rando68.over-blog.com/2019/02/winkel-pique-nique-au-col-du-neuneich-r-216.html"}]
[{"$f":"AdrHyperlien(Randos!C210)","v":"http://ltd-rando68.over-blog.com/2019/02/michelbach-le-tour-du-lac-r-217.html"}]
[{"$f":"AdrHyperlien(Randos!C211)","v":"http://ltd-rando68.over-blog.com/2019/02/masevaux-encore-le-gr-531-r-218.html"}]
[{"$f":"AdrHyperlien(Randos!C212)","v":"http://ltd-rando68.over-blog.com/2019/02/ferrette-toujours-plus-a-l-est-r-219.html"}]
[{"$f":"AdrHyperlien(Randos!C213)","v":"http://ltd-rando68.over-blog.com/2019/02/col-du-hundsruck-un-tour-en-raquettes-r-220.html"}]
[{"$f":"AdrHyperlien(Randos!C214)","v":"http://ltd-rando68.over-blog.com/2019/03/cernay-petite-promenade-r-221.html"}]
[{"$f":"AdrHyperlien(Randos!C215)","v":"http://ltd-rando68.over-blog.com/2019/03/rixheim-le-circuit-des-3-chateaux-r-222.html"}]
[{"$f":"AdrHyperlien(Randos!C216)","v":"http://ltd-rando68.over-blog.com/2019/03/traubach-le-bas-croix-et-crucifix-r-223.html"}]
[{"$f":"AdrHyperlien(Randos!C217)","v":"http://ltd-rando68.over-blog.com/2019/03/traubach-le-bas-croix-et-crucifix-r-223.html"}]
[{"$f":"AdrHyperlien(Randos!C218)","v":"http://ltd-rando68.over-blog.com/2019/03/gildwiller-marcher-jusqu-a-bellemagny-r-224.html"}]
[{"$f":"AdrHyperlien(Randos!C219)","v":"http://ltd-rando68.over-blog.com/2019/03/gildwiller-encore-le-gr-531-r-225.html"}]
[{"$f":"AdrHyperlien(Randos!C220)","v":"http://ltd-rando68.over-blog.com/2019/03/ungersheim-la-tournee-des-parcs-r-226.html"}]
[{"$f":"AdrHyperlien(Randos!C221)","v":"http://ltd-rando68.over-blog.com/2019/03/masevaux-monter-au-vogelstein-r-227.html"}]
[{"$f":"AdrHyperlien(Randos!C222)","v":"http://ltd-rando68.over-blog.com/2019/03/dolleren-a-la-fennematt-r-228.html"}]
[{"$f":"AdrHyperlien(Randos!C223)","v":"http://ltd-rando68.over-blog.com/2019/03/st-amarin-col-de-rimbach-et-belacker-r-229.html"}]
[{"$f":"AdrHyperlien(Randos!C224)","v":"http://ltd-rando68.over-blog.com/2019/04/merxheim-plaine-ma-plaine-r-230.html"}]
[{"$f":"AdrHyperlien(Randos!C225)","v":"http://ltd-rando68.over-blog.com/2019/04/ensisheim-entre-plaine-et-foret-r-231.html"}]
[{"$f":"AdrHyperlien(Randos!C226)","v":"http://ltd-rando68.over-blog.com/2019/04/lac-d-alfeld-ou-sont-les-fermes-r-232.html"}]
[{"$f":"AdrHyperlien(Randos!C227)","v":"http://ltd-rando68.over-blog.com/2019/04/uffholtz-herrenfluh-et-siehlbaechle-r-233.html"}]
[{"$f":"AdrHyperlien(Randos!C228)","v":"http://ltd-rando68.over-blog.com/2019/04/kiffis-autour-du-glaserberg-r-234.html"}]
[{"$f":"AdrHyperlien(Randos!C229)","v":"http://ltd-rando68.over-blog.com/2019/04/st-maurice-sur-moselle-la-goutte-et-le-ballon-r-235.html"}]
[{"$f":"AdrHyperlien(Randos!C230)","v":"http://ltd-rando68.over-blog.com/2019/04/bisel-autour-du-gr-532-r-236.html"}]
[{"$f":"AdrHyperlien(Randos!C231)","v":"http://ltd-rando68.over-blog.com/2019/05/fellering-nous-montons-au-drumont-r-237.html"}]
[{"$f":"AdrHyperlien(Randos!C232)","v":"http://ltd-rando68.over-blog.com/2019/05/lautenbach-zell-chemins-et-sentiers-vers-le-grand-ballon-r-238.html"}]
[{"$f":"AdrHyperlien(Randos!C233)","v":"http://ltd-rando68.over-blog.com/2019/05/orschwihr-deux-chateaux-et-deux-chapelles-r-239.html"}]
[{"$f":"AdrHyperlien(Randos!C234)","v":"http://ltd-rando68.over-blog.com/2019/05/hartmannswillerkopf-molkenrain-et-freundstein-r-240.html"}]
[{"$f":"AdrHyperlien(Randos!C235)","v":"http://ltd-rando68.over-blog.com/2019/05/wattwiller-le-grand-ballon-ou-la-quete-du-graal-r-241.html"}]
[{"$f":"AdrHyperlien(Randos!C236)","v":"http://ltd-rando68.over-blog.com/2019/05/schweighouse-thann-un-petit-circuit-facile-r-242.html"}]
[{"$f":"AdrHyperlien(Randos!C237)","v":"http://ltd-rando68.over-blog.com/2019/06/lachapelle-sous-rougemont-90-un-petit-circuit-facile-r-243.html"}]
[{"$f":"AdrHyperlien(Randos!C238)","v":"http://ltd-rando68.over-blog.com/2019/06/roderen-un-tout-petit-circuit-facile-r-244.html"}]
[{"$f":"AdrHyperlien(Randos!C239)","v":"http://ltd-rando68.over-blog.com/2019/06/route-des-cretes-kastelberg-et-altenweiher-r-245.html"}]
[{"$f":"AdrHyperlien(Randos!C240)","v":"http://ltd-rando68.over-blog.com/2019/06/molkenrain-pique-nique-chez-les-freundstein-r-246.html"}]
[{"$f":"AdrHyperlien(Randos!C241)","v":"http://ltd-rando68.over-blog.com/2019/06/masevaux-lachtelweiher-et-baerenkopf-r-247.html"}]
[{"$f":"AdrHyperlien(Randos!C242)","v":"http://ltd-rando68.over-blog.com/2019/06/ballon-d-alsace-le-gr5-jusqu-au-col-des-perches-r-248.html"}]
[{"$f":"AdrHyperlien(Randos!C243)","v":"http://ltd-rando68.over-blog.com/2019/06/wattwiller-hirtzenstein-montee-au-hartmannswillerkopf-r-249.html"}]
[{"$f":"AdrHyperlien(Randos!C244)","v":"http://ltd-rando68.over-blog.com/2019/06/giromagny-le-tour-du-ballon-d-alsace-r-250.html"}]
[{"$f":"AdrHyperlien(Randos!C245)","v":"http://ltd-rando68.over-blog.com/2019/06/steinbach-l-anneau-bleu-du-vallon-r-251.html"}]
[{"$f":"AdrHyperlien(Randos!C246)","v":"http://ltd-rando68.over-blog.com/2019/06/thann-matinale-a-la-roche-albert-r-252.html"}]
[{"$f":"AdrHyperlien(Randos!C247)","v":"http://ltd-rando68.over-blog.com/2019/07/col-de-bussang-la-chaume-des-neufs-bois-r-253.html"}]
[{"$f":"AdrHyperlien(Randos!C248)","v":"http://ltd-rando68.over-blog.com/2019/07/thann-petit-circuit-forestier-r-254.html"}]
[{"$f":"AdrHyperlien(Randos!C249)","v":"http://ltd-rando68.over-blog.com/2019/07/husseren-wesserling-par-les-chemins-en-foret-de-mollau-r-255.html"}]
[{"$f":"AdrHyperlien(Randos!C250)","v":"http://ltd-rando68.over-blog.com/2019/07/rimbach-pres-masevaux-la-foret-des-volcans-r-256.html"}]
[{"$f":"AdrHyperlien(Randos!C251)","v":"http://ltd-rando68.over-blog.com/2019/07/col-de-boenlesgrab-le-grand-tour-du-petit-ballon-r-257.html"}]
[{"$f":"AdrHyperlien(Randos!C252)","v":"http://ltd-rando68.over-blog.com/2019/07/lac-de-kruth-wildenstein-cherchons-la-fraicheur-r-258.html"}]
[{"$f":"AdrHyperlien(Randos!C253)","v":"http://ltd-rando68.over-blog.com/2019/07/thann-petit-dejeuner-au-chene-wotan-r-259.html"}]
[{"$f":"AdrHyperlien(Randos!C254)","v":"http://ltd-rando68.over-blog.com/2019/07/thann-le-circuit-du-hundsruck-r-260.html"}]
[{"$f":"AdrHyperlien(Randos!C255)","v":"http://ltd-rando68.over-blog.com/2019/08/altkirch-le-sundgau-sans-les-collines-r-261.html"}]
[{"$f":"AdrHyperlien(Randos!C256)","v":"http://ltd-rando68.over-blog.com/2019/08/mulhouse-le-sundgau-autour-du-gr-532-r-262.html"}]
[{"$f":"AdrHyperlien(Randos!C257)","v":"http://ltd-rando68.over-blog.com/2019/08/waltenheim-les-grandes-decouvertes-r-263.html"}]
[{"$f":"AdrHyperlien(Randos!C258)","v":"http://ltd-rando68.over-blog.com/2019/08/gaschney-le-tour-du-hohneck-le-petit-et-le-grand-r-264.html"}]
[{"$f":"AdrHyperlien(Randos!C259)","v":"http://ltd-rando68.over-blog.com/2019/08/metzeral-fischboedle-et-schiessrothried-r-265.html"}]
[{"$f":"AdrHyperlien(Randos!C260)","v":"http://ltd-rando68.over-blog.com/2019/08/grosne-un-grand-circuit-pour-les-grands-chenes-r-266.html"}]
[{"$f":"AdrHyperlien(Randos!C261)","v":"http://ltd-rando68.over-blog.com/2019/08/sondernach-le-grand-tour-du-hilsenfirst-r-267.html"}]
[{"$f":"AdrHyperlien(Randos!C262)","v":"http://ltd-rando68.over-blog.com/2019/08/wuenheim-autour-de-la-croix-zimmermann-r-268.html"}]
[{"$f":"AdrHyperlien(Randos!C263)","v":"http://ltd-rando68.over-blog.com/2019/08/les-trois-fours-une-nouvelle-approche-du-sentier-des-roches-r-269.html"}]
[{"$f":"AdrHyperlien(Randos!C264)","v":"http://ltd-rando68.over-blog.com/2019/08/mortzwiller-le-vallon-du-soultzbach-r-270.html"}]
[{"$f":"AdrHyperlien(Randos!C265)","v":"http://ltd-rando68.over-blog.com/2019/09/mittlach-herrenberg-rainkopf-et-altenweiher-r-271.html"}]
[{"$f":"AdrHyperlien(Randos!C266)","v":"http://ltd-rando68.over-blog.com/2019/09/kayserberg-ursprung-roche-du-tetras-et-st-alexis-r-272.html"}]
[{"$f":"AdrHyperlien(Randos!C267)","v":"http://ltd-rando68.over-blog.com/2019/09/wolschwiller-comme-un-parfum-de-lsd-r-273.html"}]
[{"$f":"AdrHyperlien(Randos!C268)","v":"http://ltd-rando68.over-blog.com/2019/09/katzenthal-nous-montons-au-galtz-r-274.html"}]
[{"$f":"AdrHyperlien(Randos!C269)","v":"http://ltd-rando68.over-blog.com/2019/09/lapoutroie-tour-du-faude-tete-des-faux-r-275.html"}]
[{"$f":"AdrHyperlien(Randos!C270)","v":"http://ltd-rando68.over-blog.com/2019/09/orbey-des-pierres-des-pins-et-des-dominicaines-r-276.html"}]
[{"$f":"AdrHyperlien(Randos!C271)","v":"http://ltd-rando68.over-blog.com/2019/09/orbey-lac-blanc-lac-noir-r-277.html"}]
[{"$f":"AdrHyperlien(Randos!C272)","v":"http://ltd-rando68.over-blog.com/2019/09/col-du-wettstein-le-tour-du-lac-du-forlet-r-278.html"}]
[{"$f":"AdrHyperlien(Randos!C273)","v":"http://ltd-rando68.over-blog.com/2019/09/aubure-les-trois-bans-et-les-jolies-colonies-de-vacances-r-279.html"}]
[{"$f":"AdrHyperlien(Randos!C274)","v":"http://ltd-rando68.over-blog.com/2019/09/orbey-le-grand-tour-du-noirmont-r-280-16-2-km-499-m-d-4-h-15-mn-3/6.html?utm_source=_ob_email&utm_medium=_ob_notification&utm_campaign=_ob_pushmail"}]
[{"$f":"AdrHyperlien(Randos!C275)","v":"http://ltd-rando68.over-blog.com/2019/10/le-bonhomme-la-tournee-des-cols-r-281-13-4-km-d-510-m-4-h-30-3/6.html?utm_source=_ob_email&utm_medium=_ob_notification&utm_campaign=_ob_pushmail"}]
[{"$f":"AdrHyperlien(Randos!C276)","v":"http://ltd-rando68.over-blog.com/2019/10/lautenbachzell-lac-du-ballon-et-husenbourg-r-282-11-5-km-d-498-m-3-h-30-3/6.html?utm_source=_ob_email&utm_medium=_ob_notification&utm_campaign=_ob_pushmail"}]
[{"$f":"AdrHyperlien(Randos!C277)","v":"http://ltd-rando68.over-blog.com/2019/10/route-des-cretes-hohneck-les-lacs-vosgiens-r-283-17-1-km-d-732-m-5-h-15-4/6.html?utm_source=_ob_email&utm_medium=_ob_notification&utm_campaign=_ob_pushmail"}]
[{"$f":"AdrHyperlien(Randos!C278)","v":"http://ltd-rando68.over-blog.com/2019/10/illfurth-le-circuit-de-heidwiller-r-284-12-2-km-d-158-m-2h45-2/6.html?utm_source=_ob_email&utm_medium=_ob_notification&utm_campaign=_ob_pushmail"}]
[{"$f":"AdrHyperlien(Randos!C279)","v":"http://ltd-rando68.over-blog.com/2019/10/lepuix-etang-des-belles-filles-et-col-de-la-rougerie-r-285-12-4-km-d-660-m-4h30-3/6.html?utm_source=_ob_email&utm_medium=_ob_notification&utm_campaign=_ob_pushmail"}]
[{"$f":"AdrHyperlien(Randos!C280)","v":"http://ltd-rando68.over-blog.com/2019/10/plancher-les-mines-l-endroit-de-st-antoine-r-286-15-5-km-d-711-m-4h45-3/6.html?utm_source=_ob_email&utm_medium=_ob_notification&utm_campaign=_ob_pushmail"}]
[{"$f":"AdrHyperlien(Randos!C281)","v":"http://ltd-rando68.over-blog.com/2019/11/cernay-staffelfelden-par-la-piste-cyclable-r-287-18-4-km-d-64-m-3h30-2/6.html?utm_source=_ob_email&utm_medium=_ob_notification&utm_campaign=_ob_pushmail"}]
[{"$f":"AdrHyperlien(Randos!C282)","v":"http://ltd-rando68.over-blog.com/2019/11/bitschwiller-les-thann-petit-circuit-du-camp-des-pyramides-r-288-9-1-km-d-430-m-2h45-3/6.html?utm_source=_ob_email&utm_medium=_ob_notification&utm_campaign=_ob_pushmail"}]
[{"$f":"AdrHyperlien(Randos!C283)","v":"http://ltd-rando68.over-blog.com/2019/11/guebwiller-hugstein-et-peternit-r-289-8-5-km-d-356-2h45-3/6.html?utm_source=_ob_email&utm_medium=_ob_notification&utm_campaign=_ob_pushmail"}]
[{"$f":"AdrHyperlien(Randos!C284)","v":"http://ltd-rando68.over-blog.com/2019/11/illfurth-le-grand-tour-du-grand-canon-r-290-15-9-km-d-235-3-h-50-mn-3/6.html?utm_source=_ob_email&utm_medium=_ob_notification&utm_campaign=_ob_pushmail"}]
[{"$f":"AdrHyperlien(Randos!C285)","v":"http://ltd-rando68.over-blog.com/2019/11/lepuix-neuf-longer-la-frontiere-suisse-r-291-22-4-km-d-396-5-h-45-mn-3/6.html?utm_source=_ob_email&utm_medium=_ob_notification&utm_campaign=_ob_pushmail"}]
[{"$f":"AdrHyperlien(Randos!C286)","v":"http://ltd-rando68.over-blog.com/2019/11/michelbach-le-bas-du-cote-de-l-aeroport-r-292-17-2-km-d-178-5-h-45-mn-3/6.html?utm_source=_ob_email&utm_medium=_ob_notification&utm_campaign=_ob_pushmail"}]
[{"$f":"AdrHyperlien(Randos!C287)","v":"http://ltd-rando68.over-blog.com/2019/11/col-de-bussang-des-allemands-a-st-hubert-r-293-7-8-km-d-301-m-3-h-3/6.html?utm_source=_ob_email&utm_medium=_ob_notification&utm_campaign=_ob_pushmail"}]
[{"$f":"AdrHyperlien(Randos!C288)","v":"http://ltd-rando68.over-blog.com/2019/11/cernay-st-andre-erbenheim-ca-vous-parle-r-294-10-7-km-d-35-m-3-h-40-mn-2/6.html?utm_source=_ob_email&utm_medium=_ob_notification&utm_campaign=_ob_pushmail"}]
[{"$f":"AdrHyperlien(Randos!C289)","v":"http://ltd-rando68.over-blog.com/2019/11/roderen-le-tour-du-neuberg-r-295-8-4-km-d-177-m-2-h-2/6.html?utm_source=_ob_email&utm_medium=_ob_notification&utm_campaign=_ob_pushmail"}]
[{"$f":"AdrHyperlien(Randos!C290)","v":"http://ltd-rando68.over-blog.com/2019/12/col-du-boenlesgrab-le-petit-tour-du-petit-ballon-r-296-7-4-km-d-395-m-2-h-15-mn-3/6.html?utm_source=_ob_email&utm_medium=_ob_notification&utm_campaign=_ob_pushmail"}]
[{"$f":"AdrHyperlien(Randos!C291)","v":"http://ltd-rando68.over-blog.com/2019/12/mollau-essenbachkopf-et-rimbachkopf-r-297-15-2-km-d-750-m-4-h-30-mn-4/6.html?utm_source=_ob_email&utm_medium=_ob_notification&utm_campaign=_ob_pushmail"}]
[{"$f":"AdrHyperlien(Randos!C292)","v":"http://ltd-rando68.over-blog.com/2019/12/cernay-au-sud-autour-de-la-d-83-r-298-9-km-d-23-m-2-h-2/6.html?utm_source=_ob_email&utm_medium=_ob_notification&utm_campaign=_ob_pushmail"}]
[{"$f":"AdrHyperlien(Randos!C293)","v":"http://ltd-rando68.over-blog.com/2019/12/schweighouse-thann-le-baerenbach-sans-les-ours-r-299-7-8-km-d-34-m-1-h-45-2/6.html?utm_source=_ob_email&utm_medium=_ob_notification&utm_campaign=_ob_pushmail"}]
[{"$f":"AdrHyperlien(Randos!C294)","v":"http://ltd-rando68.over-blog.com/2019/12/morschwiller-le-bas-un-grand-circuit-r-300-21-0-km-d-111-m-4-h-45-3/6.html?utm_source=_ob_email&utm_medium=_ob_notification&utm_campaign=_ob_pushmail"}]
[{"$f":"AdrHyperlien(Randos!C295)","v":"http://ltd-rando68.over-blog.com/2019/12/wegscheid-le-nouveau-belvedere-du-fuchsfelsen-r-301-14-0-km-d-671-m-4-h-45-4/6.html?utm_source=_ob_email&utm_medium=_ob_notification&utm_campaign=_ob_pushmail"}]
[{"$f":"AdrHyperlien(Randos!C296)","v":"http://ltd-rando68.over-blog.com/2019/12/cernay-un-nouveau-petit-circuit-r-302-8-7-km-d-30-m-1-h-45-2/6.html?utm_source=_ob_email&utm_medium=_ob_notification&utm_campaign=_ob_pushmail"}]
[{"$f":"AdrHyperlien(Randos!C297)","v":"http://ltd-rando68.over-blog.com/2019/12/thann-petit-galop-d-essai-r-303-5-9-km-d-262-m-1-h-30-2/6.html?utm_source=_ob_email&utm_medium=_ob_notification&utm_campaign=_ob_pushmail"}]
[{"$f":"AdrHyperlien(Randos!C298)","v":"http://ltd-rando68.over-blog.com/2019/12/kruth-retour-au-lac-de-kruth-wildenstein-r-304-11-4-km-d-412-m-3-h-30-3/6.html?utm_source=_ob_email&utm_medium=_ob_notification&utm_campaign=_ob_pushmail"}]
[{"$f":"AdrHyperlien(Randos!C299)","v":"http://ltd-rando68.over-blog.com/2019/12/kruth-retour-au-lac-de-kruth-wildenstein-r-304-11-4-km-d-412-m-3-h-30-3/6.html?utm_source=_ob_email&utm_medium=_ob_notification&utm_campaign=_ob_pushmail"}]
[{"$f":"AdrHyperlien(Randos!C300)","v":"http://ltd-rando68.over-blog.com/2019/12/kruth-retour-au-lac-de-kruth-wildenstein-r-304-11-4-km-d-412-m-3-h-30-3/6.html?utm_source=_ob_email&utm_medium=_ob_notification&utm_campaign=_ob_pushmail"}]
[{"$f":"AdrHyperlien(Randos!C301)","v":"http://ltd-rando68.over-blog.com/2019/12/kruth-retour-au-lac-de-kruth-wildenstein-r-304-11-4-km-d-412-m-3-h-30-3/6.html?utm_source=_ob_email&utm_medium=_ob_notification&utm_campaign=_ob_pushmail"}]
[{"$f":"AdrHyperlien(Randos!C302)","v":"http://ltd-rando68.over-blog.com/2019/12/kruth-retour-au-lac-de-kruth-wildenstein-r-304-11-4-km-d-412-m-3-h-30-3/6.html?utm_source=_ob_email&utm_medium=_ob_notification&utm_campaign=_ob_pushmail"}]
[{"$f":"AdrHyperlien(Randos!C303)","v":"http://ltd-rando68.over-blog.com/2019/12/kruth-retour-au-lac-de-kruth-wildenstein-r-304-11-4-km-d-412-m-3-h-30-3/6.html?utm_source=_ob_email&utm_medium=_ob_notification&utm_campaign=_ob_pushmail"}]
[{"$f":"AdrHyperlien(Randos!C304)","v":"http://ltd-rando68.over-blog.com/2019/12/kruth-retour-au-lac-de-kruth-wildenstein-r-304-11-4-km-d-412-m-3-h-30-3/6.html?utm_source=_ob_email&utm_medium=_ob_notification&utm_campaign=_ob_pushmail"}]
[{"$f":"AdrHyperlien(Randos!C305)","v":"http://ltd-rando68.over-blog.com/2020/01/moosch-le-circuit-de-l-abri-du-faucon-crecerelle-r-311-15-3-km-d-757-m-4-h-25-mn-3/6.html?utm_source=_ob_email&utm_medium=_ob_notification&utm_campaign=_ob_pushmail"}]
[{"$f":"AdrHyperlien(Randos!C306)","v":"http://ltd-rando68.over-blog.com/2020/01/orschwihr-le-vignoble-en-hiver-jusqu-au-schauenberg-r-312-21-6-km-d-499-m-5-h-20-mn-3/6.html?utm_source=_ob_email&utm_medium=_ob_notification&utm_campaign=_ob_pushmail"}]
[{"$f":"AdrHyperlien(Randos!C307)","v":"http://ltd-rando68.over-blog.com/2020/02/col-du-schirm-le-tour-du-rossberg-r-313-13-7-km-d-587-m-4-h-15-mn-3/6.html?utm_source=_ob_email&utm_medium=_ob_notification&utm_campaign=_ob_pushmail"}]
[{"$f":"AdrHyperlien(Randos!C308)","v":"http://ltd-rando68.over-blog.com/2020/02/soultz-le-circuit-de-toutes-les-decouvertes-r-314-14-6-km-d-427-m-4-h-15-mn-3/6.html?utm_source=_ob_email&utm_medium=_ob_notification&utm_campaign=_ob_pushmail"}]
[{"$f":"AdrHyperlien(Randos!C309)","v":"http://ltd-rando68.over-blog.com/2020/02/illfurth-les-collines-des-cinq-communes-r-315-19-6-km-d-463-m-5-h-15-mn-3/6.html?utm_source=_ob_email&utm_medium=_ob_notification&utm_campaign=_ob_pushmail"}]
[{"$f":"AdrHyperlien(Randos!C310)","v":"http://ltd-rando68.over-blog.com/2020/02/lac-de-la-lauch-le-circuit-des-cols-r-316-13-9-km-d-695-m-5-h-30-mn-4/6.html?utm_source=_ob_email&utm_medium=_ob_notification&utm_campaign=_ob_pushmail"}]
[{"$f":"AdrHyperlien(Randos!C311)","v":"http://ltd-rando68.over-blog.com/2020/02/wattwiller-hwk-flanc-est-courbes-0-et-1-r-317-9-2-km-d-303-m-2-h-15-mn-2/6.html?utm_source=_ob_email&utm_medium=_ob_notification&utm_campaign=_ob_pushmail"}]
[{"$f":"AdrHyperlien(Randos!C312)","v":"http://ltd-rando68.over-blog.com/2020/03/reiningue-du-centre-penitentiaire-a-l-abbaye-r-318-14-3-km-d-49-m-3-h-10-mn-2/6.html?utm_source=_ob_email&utm_medium=_ob_notification&utm_campaign=_ob_pushmail"}]
[{"$f":"AdrHyperlien(Randos!C313)","v":"http://ltd-rando68.over-blog.com/2020/03/aspach-michelbach-paysages-agricoles-et-forestiers-r-319-13-6-km-d-218-m-2-h-45-mn-2/6.html?utm_source=_ob_email&utm_medium=_ob_notification&utm_campaign=_ob_pushmail"}]
[{"$f":"AdrHyperlien(Randos!C314)","v":"http://ltd-rando68.over-blog.com/2020/03/rimbach-pres-masevaux-neuweiher-bers-et-perches-r-320-11-5-km-d-623-m-4-h-15-mn-4/6.html?utm_source=_ob_email&utm_medium=_ob_notification&utm_campaign=_ob_pushmail"}]
[{"$f":"AdrHyperlien(Randos!C315)","v":"http://ltd-rando68.over-blog.com/2020/03/willer-sur-thur-l-arbre-totem-du-sattel-r-321-12-9-km-d-630-m-3-h-45-mn-3/6.html?utm_source=_ob_email&utm_medium=_ob_notification&utm_campaign=_ob_pushmail"}]
[{"$f":"AdrHyperlien(Randos!C316)","v":"http://ltd-rando68.over-blog.com/2020/03/dannemarie-casse-croute-a-notre-dame-de-bellefontaine-r-322-19-2-km-d-142-m-4-h-30-mn-3/6.html"}]
[{"$f":"AdrHyperlien(Randos!C317)","v":"http://ltd-rando68.over-blog.com/2020/05/altenach-le-grand-tour-des-etangs-du-sundgau-r-323-27-8-km-d-312-m-5-h-30-mn-3/6.html"}]
[{"$f":"AdrHyperlien(Randos!C318)","v":"http://ltd-rando68.over-blog.com/2020/05/steinbach-la-reprise-en-douceur-r-324-11-5-km-d-468-m-3-h-3/6.html?utm_source=_ob_email&utm_medium=_ob_notification&utm_campaign=_ob_pushmail"}]
[{"$f":"AdrHyperlien(Randos!C319)","v":"http://ltd-rando68.over-blog.com/2020/05/wattwiller-le-grand-huit-du-molkenrain-r-325-16-8-km-d-937-m-4-h-45-mn-4/6.html?utm_source=_ob_email&utm_medium=_ob_notification&utm_campaign=_ob_pushmail"}]
[{"$f":"AdrHyperlien(Randos!C320)","v":"http://ltd-rando68.over-blog.com/2020/05/husseren-wesserling-le-petit-circuit-du-chauvelin-r-326-6-km-d-267-m-2-h-10-mn-3/6.html?utm_source=_ob_email&utm_medium=_ob_notification&utm_campaign=_ob_pushmail"}]
[{"$f":"AdrHyperlien(Randos!C321)","v":"http://ltd-rando68.over-blog.com/2020/05/kruth-l-appel-des-cretes-r-327-15-8-km-d-746-m-4-h-20-mn-4/6.html"}]
[{"$f":"AdrHyperlien(Randos!C322)","v":"http://ltd-rando68.over-blog.com/2020/05/route-des-cretes-hohneck-sentier-des-roches-r-328-12-5-km-d-476-m-4-h-4/6.html"}]
[{"$f":"AdrHyperlien(Randos!C323)","v":"http://ltd-rando68.over-blog.com/2020/05/wattwiller-la-cascade-du-siehlbaechle-r-329-4-7-km-d-225-m-1-h-30-mn-2/6.html"}]
[{"$f":"AdrHyperlien(Randos!C324)","v":"http://ltd-rando68.over-blog.com/2020/06/valdoie-pour-faire-des-kilometres-r-330-18-9-km-d-127-m-4-h-30-mn-3/6.html?utm_source=_ob_email&utm_medium=_ob_notification&utm_campaign=_ob_pushmail"}]
[{"$f":"AdrHyperlien(Randos!C325)","v":"http://ltd-rando68.over-blog.com/2020/06/col-du-hundsruck-rossberg-vogelstein-fuchsfelsen-r-331-15-2-km-d-568-m-4-h-30-mn-3/6.html?utm_source=_ob_email&utm_medium=_ob_notification&utm_campaign=_ob_pushmail"}]
[{"$f":"AdrHyperlien(Randos!C326)","v":"http://ltd-rando68.over-blog.com/2020/06/thann-un-petit-tour-du-rangen-r-332-5-1-km-d-162-m-1-h-30-mn-2/6.html?utm_source=_ob_email&utm_medium=_ob_notification&utm_campaign=_ob_pushmail"}]
[{"$f":"AdrHyperlien(Randos!C327)","v":"http://ltd-rando68.over-blog.com/2020/06/orbey-du-domaine-des-lacs-au-creux-d-argent-r-333-15-9-km-d-658-m-1-h-30-mn-4/6.html?utm_source=_ob_email&utm_medium=_ob_notification&utm_campaign=_ob_pushmail"}]
[{"$f":"AdrHyperlien(Randos!C328)","v":"http://ltd-rando68.over-blog.com/2020/06/thann-petit-tour-sur-la-colline-du-staufen-r-334-4-3-km-d-177-m-1-h-15-mn-2/6.html"}]
[{"$f":"AdrHyperlien(Randos!C329)","v":"http://ltd-rando68.over-blog.com/2020/06/cernay-d-une-piste-cyclable-a-l-autre-r-335-16-2-km-d-71-m-3-h-05-mn-2/6.html?utm_source=_ob_email&utm_medium=_ob_notification&utm_campaign=_ob_pushmail"}]
[{"$f":"AdrHyperlien(Randos!C330)","v":"http://ltd-rando68.over-blog.com/2020/06/ferrette-villages-et-forets-du-sundgau-r-336-22-4-km-d-713-m-6-h-15-mn-4/6.html?utm_source=_ob_email&utm_medium=_ob_notification&utm_campaign=_ob_pushmail"}]
[{"$f":"AdrHyperlien(Randos!C331)","v":"http://ltd-rando68.over-blog.com/2020/06/rougemont-le-chateau-le-territoire-du-baerenkopf-r-337-19-6-km-d-711-m-6-h-4/6.html?utm_source=_ob_email&utm_medium=_ob_notification&utm_campaign=_ob_pushmail"}]
[{"$f":"AdrHyperlien(Randos!C332)","v":"http://ltd-rando68.over-blog.com/2020/06/aspach-gare-le-michelbach-autrement-r-338-7-9-km-d-104-m-1-h-50-mn-2/6.html?utm_source=_ob_email&utm_medium=_ob_notification&utm_campaign=_ob_pushmail"}]
[{"$f":"AdrHyperlien(Randos!C333)","v":"http://ltd-rando68.over-blog.com/2020/06/cernay-uffholtz-wattwiller-r-339-11-4-km-d-152-m-2-h-30-mn-2/6.html?utm_source=_ob_email&utm_medium=_ob_notification&utm_campaign=_ob_pushmail"}]
[{"$f":"AdrHyperlien(Randos!C334)","v":"http://ltd-rando68.over-blog.com/2020/07/sewen-le-tour-du-ballon-d-alsace-r-340-18-6-km-d-863-m-5-h-30-mn-4/6.html?utm_source=_ob_email&utm_medium=_ob_notification&utm_campaign=_ob_pushmail"}]
[{"$f":"AdrHyperlien(Randos!C335)","v":"http://ltd-rando68.over-blog.com/2020/07/willer-sur-thur-ostein-ostein-r-341-14-6-km-d-539-m-3-h-40-mn-3/6.html?utm_source=_ob_email&utm_medium=_ob_notification&utm_campaign=_ob_pushmail"}]
[{"$f":"AdrHyperlien(Randos!C336)","v":"http://ltd-rando68.over-blog.com/2020/07/fellering-le-treh-et-quelques-abris-r-342-15-5-km-d-795-m-5-h-4/6.html?utm_source=_ob_email&utm_medium=_ob_notification&utm_campaign=_ob_pushmail"}]
[{"$f":"AdrHyperlien(Randos!C337)","v":"http://ltd-rando68.over-blog.com/2020/07/vieux-thann-haida-a-retrouve-sa-place-r-343-5-8-km-d-246-m-1-h-40-mn-2/6.html?utm_source=_ob_email&utm_medium=_ob_notification&utm_campaign=_ob_pushmail"}]
[{"$f":"AdrHyperlien(Randos!C338)","v":"http://ltd-rando68.over-blog.com/2020/07/au-gaschney-sur-le-gr-531-mais-pas-que-r-344-18-7-km-d-620-m-5-h-15-mn-4/6.html?utm_source=_ob_email&utm_medium=_ob_notification&utm_campaign=_ob_pushmail"}]
[{"$f":"AdrHyperlien(Randos!C339)","v":"http://ltd-rando68.over-blog.com/2020/07/dolleren-schlumpf-et-graber-r-345-12-1-km-d-562-m-4-h-3/6.html?utm_source=_ob_email&utm_medium=_ob_notification&utm_campaign=_ob_pushmail"}]
[{"$f":"AdrHyperlien(Randos!C340)","v":"http://ltd-rando68.over-blog.com/2020/07/jungholtz-aller-retour-au-grand-ballon-version-2020-r-346-20-0-km-d-1-099-m-5-h-30-4/6.html?utm_source=_ob_email&utm_medium=_ob_notification&utm_campaign=_ob_pushmail"}]
[{"$f":"AdrHyperlien(Randos!C341)","v":"http://ltd-rando68.over-blog.com/2020/07/cernay-mon-circuit-turenne-et-herrenfluh-r-347-17-1-km-d-641-m-4-h-50-3/6.html?utm_source=_ob_email&utm_medium=_ob_notification&utm_campaign=_ob_pushmail"}]
[{"$f":"AdrHyperlien(Randos!C342)","v":"http://ltd-rando68.over-blog.com/2020/07/guebwiller-le-vignoble-jusqu-a-orschwihr-r-348-12-km-d-85-m-3-h-2/6.html?utm_source=_ob_email&utm_medium=_ob_notification&utm_campaign=_ob_pushmail"}]
[{"$f":"AdrHyperlien(Randos!C343)","v":"http://ltd-rando68.over-blog.com/2020/07/lac-de-kruth-wildenstein-un-circuit-en-2020-r-349-12-5-km-d-534-m-3-h-30-mn-2/6.html?utm_source=_ob_email&utm_medium=_ob_notification&utm_campaign=_ob_pushmail"}]
[{"$f":"AdrHyperlien(Randos!C344)","v":"http://ltd-rando68.over-blog.com/2020/08/col-de-la-schlucht-les-sentiers-des-rochers-r-350-22-9-km-d-783-m-7-h-5/6.html?utm_source=_ob_email&utm_medium=_ob_notification&utm_campaign=_ob_pushmail"}]
[{"$f":"AdrHyperlien(Randos!C345)","v":"http://ltd-rando68.over-blog.com/2020/08/col-du-page-autour-du-frere-joseph-r-351-18-1-km-d-455-m-5-h-3/6.html?utm_source=_ob_email&utm_medium=_ob_notification&utm_campaign=_ob_pushmail"}]
[{"$f":"AdrHyperlien(Randos!C346)","v":"http://ltd-rando68.over-blog.com/2020/08/col-du-herrenfluh-le-tour-du-molkenrain-r-352-9-2-km-d-387-m-3-h-2/6.html?utm_source=_ob_email&utm_medium=_ob_notification&utm_campaign=_ob_pushmail"}]
[{"$f":"AdrHyperlien(Randos!C347)","v":"http://ltd-rando68.over-blog.com/2020/08/travexin-la-foret-encore-la-foret-r-353-20-7-km-d-707-m-5-h-45mn-3/6.html?utm_source=_ob_email&utm_medium=_ob_notification&utm_campaign=_ob_pushmail"}]
[{"$f":"AdrHyperlien(Randos!C348)","v":"http://ltd-rando68.over-blog.com/2020/08/hagenthal-le-bas-r-354-21-3-km-d-321-m-5-h-30-mn-3/6.html?utm_source=_ob_email&utm_medium=_ob_notification&utm_campaign=_ob_pushmail"}]
[{"$f":"AdrHyperlien(Randos!C349)","v":"http://ltd-rando68.over-blog.com/2020/08/freundstein-la-face-cachee-du-molkenrain-r-355-6-5-km-d-355-m-2-h-15-mn-2/6.html?utm_source=_ob_email&utm_medium=_ob_notification&utm_campaign=_ob_pushmail"}]
[{"$f":"AdrHyperlien(Randos!C350)","v":"http://ltd-rando68.over-blog.com/2020/09/uffholtz-vignes-et-collines-sous-vosgiennes-r-356-9-km-d-200-m-2-h-2/6.html?utm_source=_ob_email&utm_medium=_ob_notification&utm_campaign=_ob_pushmail"}]
[{"$f":"AdrHyperlien(Randos!C351)","v":"http://ltd-rando68.over-blog.com/2020/09/kaysersberg-weibel-cras-et-wolfgang-r-357-18-4-km-d-740-m-5-h-45-mn-3/6.html?utm_source=_ob_email&utm_medium=_ob_notification&utm_campaign=_ob_pushmail"}]
[{"$f":"AdrHyperlien(Randos!C352)","v":"http://ltd-rando68.over-blog.com/2020/09/wattwiller-au-hartmannswillerkopf-r-358-11-4-km-d-577-m-4-h-3/6.html?utm_source=_ob_email&utm_medium=_ob_notification&utm_campaign=_ob_pushmail"}]
[{"$f":"AdrHyperlien(Randos!C353)","v":"http://ltd-rando68.over-blog.com/2020/09/cernay-comment-ca-va-la-thur-r-359-12-km-d-87-m-3-h-2/6.html?utm_sourchttp://ltd-rando68.over-blog.com/2020/09/cernay-comment-ca-va-la-thur-r-359-12-km-d-87-m-3-h-2/6.html?utm_source=_ob_email&utm_medium=_ob_notifi"}]
[{"$f":"AdrHyperlien(Randos!C354)","v":"http://ltd-rando68.over-blog.com/2020/09/col-de-bramont-machais-la-lande-et-blanchemer-r-360-18-7-km-d-778-m-5-h-30-mn-4/6.html?utm_source=_ob_email&utm_medium=_ob_notification&utm_campaign=_ob_pushmail"}]
[{"$f":"AdrHyperlien(Randos!C355)","v":"http://ltd-rando68.over-blog.com/2020/09/col-de-la-schlucht-lac-vert-et-hirschsteine-r-361-12-7-km-d-510-m-4-h-3/6.html?utm_source=_ob_email&utm_medium=_ob_notification&utm_campaign=_ob_pushmail"}]
[{"$f":"AdrHyperlien(Randos!C356)","v":"http://ltd-rando68.over-blog.com/2020/09/lachtelweiher-fennematt-et-baerenloch-r-362-11-5-km-d-400-m-3-h-45-mn-3/6.html?utm_source=_ob_email&utm_medium=_ob_notification&utm_campaign=_ob_pushmail"}]
[{"$f":"AdrHyperlien(Randos!C357)","v":"http://ltd-rando68.over-blog.com/2020/09/hartmannswillerkopf-dans-les-lignes-francaises-r-363-8-6-km-d-513-m-4-mn-3/6.html?utm_source=_ob_email&utm_medium=_ob_notification&utm_campaign=_ob_pushmail"}]
[{"$f":"AdrHyperlien(Randos!C358)","v":"http://ltd-rando68.over-blog.com/2020/09/boenlesgrab-le-tour-du-petit-ballon-r-364-10-6-km-d-465-m-3-h-30-mn-3/6.html?utm_source=_ob_email&utm_medium=_ob_notification&utm_campaign=_ob_pushmail"}]
[{"$f":"AdrHyperlien(Randos!C359)","v":"http://ltd-rando68.over-blog.com/2020/09/lac-de-michelbach-le-circuit-de-la-doller-r-365.html?utm_source=_ob_email&utm_medium=_ob_notification&utm_campaign=_ob_pushmail"}]
[{"$f":"AdrHyperlien(Randos!C360)","v":"http://ltd-rando68.over-blog.com/2020/09/cernay-les-chemins-de-defruitement-r-366-16-7-km-d-61-m-3-h-30-mn-2/6.html?utm_source=_ob_email&utm_medium=_ob_notification&utm_campaign=_ob_pushmail"}]
[{"$f":"AdrHyperlien(Randos!C361)","v":"http://ltd-rando68.over-blog.com/2020/10/carspach-au-coeur-du-sundgau-r-367-19-1-km-d-280-m-4-h-45-mn-3/6.html?utm_source=_ob_email&utm_medium=_ob_notification&utm_campaign=_ob_pushmail"}]
[{"$f":"AdrHyperlien(Randos!C362)","v":"http://ltd-rando68.over-blog.com/2020/10/feldbach-le-sundgau-agricole-et-religieux-r-368-19-8-km-d-279-m-5-h-15-mn-3/6.html?utm_source=_ob_email&utm_medium=_ob_notification&utm_campaign=_ob_pushmail"}]
[{"$f":"AdrHyperlien(Randos!C363)","v":"http://ltd-rando68.over-blog.com/2020/10/wahlbach-le-sundgau-et-ses-villages-r-369-21-8-km-d-254-m-4-h-30-mn-3/6.html?utm_source=_ob_email&utm_medium=_ob_notification&utm_campaign=_ob_pushmail"}]
[{"$f":"AdrHyperlien(Randos!C364)","v":"http://ltd-rando68.over-blog.com/2020/10/geishouse-le-col-du-haag-c-est-facile-r-370-11-7-km-d-580-m-3-h-15-mn-3/6.html?utm_source=_ob_email&utm_medium=_ob_notification&utm_campaign=_ob_pushmail"}]
[{"$f":"AdrHyperlien(Randos!C365)","v":"http://ltd-rando68.over-blog.com/2020/10/col-de-bussang-le-drumont-r-371-11-9-km-d-597-m-4-h-3/6.html?utm_source=_ob_email&utm_medium=_ob_notification&utm_campaign=_ob_pushmail"}]
[{"$f":"AdrHyperlien(Randos!C366)","v":"http://ltd-rando68.over-blog.com/2020/10/rougemont-le-chateau-trou-du-loup-et-tete-le-moine-r-372-16-km-d-600-m-4-h-30-mn-3/6.html?utm_source=_ob_email&utm_medium=_ob_notification&utm_campaign=_ob_pushmail"}]
[{"$f":"AdrHyperlien(Randos!C367)","v":"http://ltd-rando68.over-blog.com/2020/12/thann-le-circuit-de-la-rive-gauche-en-3-heures-r-373-10-4-km-d-454-m-2-h-45-mn-3/6.html?utm_source=_ob_email&utm_medium=_ob_notification&utm_campaign=_ob_pushmail"}]
[{"$f":"AdrHyperlien(Randos!C368)","v":"http://ltd-rando68.over-blog.com/2020/12/cernay-mon-petit-circuit-vers-vieux-thann-r-374-9-2-km-d-40-m-2-h-10-mn-2/6.html?utm_source=_ob_email&utm_medium=_ob_notification&utm_campaign=_ob_pushmail"}]
[{"$f":"AdrHyperlien(Randos!C369)","v":"http://ltd-rando68.over-blog.com/2020/12/col-du-hundsruck-le-petit-tour-du-thanner-hubel-r-375-7-3-km-d-405-m-2-h-15-mn-4/6.html?utm_source=_ob_email&utm_medium=_ob_notification&utm_campaign=_ob_pushmail"}]
[{"$f":"AdrHyperlien(Randos!C370)","v":"http://ltd-rando68.over-blog.com/2020/12/steinbach-cascade-pastetenplatz-et-hirnelestein-r-376-8-6-km-d-387-m-2-h-20-mn-3/6.html?utm_source=_ob_email&utm_medium=_ob_notification&utm_campaign=_ob_pushmail"}]
[{"$f":"AdrHyperlien(Randos!C371)","v":"http://ltd-rando68.over-blog.com/2020/12/cernay-un-petit-tour-jusqu-a-vieux-thann-r-377-12-0-km-d-97-m-2-h-30-mn-2/6.html?utm_source=_ob_email&utm_medium=_ob_notification&utm_campaign=_ob_pushmail"}]
[{"$f":"AdrHyperlien(Randos!C372)","v":"http://ltd-rando68.over-blog.com/2020/12/wintzfelden-plaine-de-rouffach-et-hirtzenstein-r-378-13-1-km-d-784-m-3-h-55-mn-3/6.html?utm_source=_ob_email&utm_medium=_ob_notification&utm_campaign=_ob_pushmail"}]
[{"$f":"AdrHyperlien(Randos!C373)","v":"http://ltd-rando68.over-blog.com/2020/12/cernay-petit-circuit-vers-wittelsheim-r-379-12-2-km-d-52-m-2-h-15-mn-2/6.html?utm_source=_ob_email&utm_medium=_ob_notification&utm_campaign=_ob_pushmail"}]
[{"$f":"AdrHyperlien(Randos!C374)","v":"http://ltd-rando68.over-blog.com/2021/01/schweighouse-le-diable-et-ses-chapelles-380-11-7-km-d-378-m-3-h-30-mn-3/6.html?utm_source=_ob_email&utm_medium=_ob_notification&utm_campaign=_ob_pushmail"}]
[{"$f":"AdrHyperlien(Randos!C375)","v":"http://ltd-rando68.over-blog.com/2021/01/carspach-kilianstollen-et-d-680-r-381-11-2-km-d-127-m-2-h-30-mn-2/6.html?utm_source=_ob_email&utm_medium=_ob_notification&utm_campaign=_ob_pushmail"}]
[{"$f":"AdrHyperlien(Randos!C376)","v":"http://ltd-rando68.over-blog.com/2021/01/en-raquettes-a-neige-autour-du-grand-ballon-r-382-9-6-km-d-463-m-4-h-4/6.html?utm_source=_ob_email&utm_medium=_ob_notification&utm_campaign=_ob_pushmail"}]
[{"$f":"AdrHyperlien(Randos!C377)","v":"http://ltd-rando68.over-blog.com/2021/01/cernay-avec-les-raquettes-dans-la-foret-de-steinbach-r-383-8-7-km-d-233-m-2-h-45-mn-3/6.html"}]
[{"$f":"AdrHyperlien(Randos!C378)","v":"http://ltd-rando68.over-blog.com/2021/01/rimbach-pres-masevaux-au-lac-des-perches-raquettes-aux-pieds-r-384-7-7-km-d-434-m-3-h-30-mn-4/6.html?utm_source=_ob_email&utm_medium=_ob_notification&utm_campaign=_ob_pushmail"}]
[{"$f":"AdrHyperlien(Randos!C379)","v":"http://ltd-rando68.over-blog.com/2021/01/winkel-au-neuneich-dans-la-neige-r-385-14-1-km-d-364-m-3-h-30-mn-3/6.html"}]
[{"$f":"AdrHyperlien(Randos!C380)","v":"http://ltd-rando68.over-blog.com/2021/02/orschwihr-un-chemin-de-croix-au-bollenberg-r-386-8-6-km-d-204-m-2-h-30-mn-2/6.html?utm_source=_ob_email&utm_medium=_ob_notification&utm_campaign=_ob_pushmail"}]
[{"$f":"AdrHyperlien(Randos!C381)","v":"http://ltd-rando68.over-blog.com/2021/02/wattwiller-boire-son-cafe-a-la-cantine-zeller-r-387-7-9-km-d-341-m-2-h-30-mn-3/6.html?utm_source=_ob_email&utm_medium=_ob_notification&utm_campaign=_ob_pushmail"}]
[{"$f":"AdrHyperlien(Randos!C382)","v":"http://ltd-rando68.over-blog.com/2021/02/guebwiller-col-du-dreibannstein-et-carrieres-de-bergholtz-r-388-8-8-km-d-333-m-3-h-3/6.html?utm_source=_ob_email&utm_medium=_ob_notification&utm_campaign=_ob_pushmail"}]
[{"$f":"AdrHyperlien(Randos!C383)","v":"http://ltd-rando68.over-blog.com/2021/02/moosch-dejeuner-au-faucon-crecerelle-r-389-11-5-km-d-617-m-3-h-30-mn-4/6.html?utm_source=_ob_email&utm_medium=_ob_notification&utm_campaign=_ob_pushmail"}]
[{"$f":"AdrHyperlien(Randos!C384)","v":"http://ltd-rando68.over-blog.com/2021/02/rammersmatt-le-petit-circuit-des-chapelles-r-390-6-9-km-d-229-m-2-h-15-mn-3/6.html?utm_source=_ob_email&utm_medium=_ob_notification&utm_campaign=_ob_pushmail"}]
[{"$f":"AdrHyperlien(Randos!C385)","v":"http://ltd-rando68.over-blog.com/2021/02/niederbruck-le-tour-des-fermes-auberges-r-391-12-8-km-d-636-m-4-h-15-mn-4/6.html?utm_source=_ob_email&utm_medium=_ob_notification&utm_campaign=_ob_pushmail"}]
[{"$f":"AdrHyperlien(Randos!C386)","v":"http://ltd-rando68.over-blog.com/2021/02/michelbach-le-lac-et-aspach-le-bas-r-392-10-6-km-d-119-m-2-h-30-mn-2/6.html?utm_source=_ob_email&utm_medium=_ob_notification&utm_campaign=_ob_pushmail"}]
[{"$f":"AdrHyperlien(Randos!C387)","v":"http://ltd-rando68.over-blog.com/2021/02/sondersdorf-le-sundgau-sublime-et-ses-croix-r-393-17-2-km-d-483-m-5-h-4/6.html?utm_source=_ob_email&utm_medium=_ob_notification&utm_campaign=_ob_pushmail"}]
[{"$f":"AdrHyperlien(Randos!C388)","v":"http://ltd-rando68.over-blog.com/2021/02/saint-amarin-le-haag-et-le-moorfeld-r-394-18-2-km-d-907-m-5-h-30-mn-4/6.html?utm_source=_ob_email&utm_medium=_ob_notification&utm_campaign=_ob_pushmail"}]
[{"$f":"AdrHyperlien(Randos!C389)","v":"http://ltd-rando68.over-blog.com/2021/02/rammersmatt-un-nouveau-variant-r-395-12-7-km-d-444-m-4-h-3/6.html?utm_source=_ob_email&utm_medium=_ob_notification&utm_campaign=_ob_pushmail"}]
[{"$f":"AdrHyperlien(Randos!C390)","v":"http://ltd-rando68.over-blog.com/2021/03/steinbach-erzenbach-et-schletzenbourg-r-396-6-7-km-d-208-m-2-h-15-mn-2/6.html?utm_source=_ob_email&utm_medium=_ob_notification&utm_campaign=_ob_pushmail"}]
[{"$f":"AdrHyperlien(Randos!C391)","v":"http://ltd-rando68.over-blog.com/2021/03/rimbach-pres-masevaux-le-tour-des-lacs-r-397-13-0-km-d-615-m-3-h-45-mn-3/6.html?utm_source=_ob_email&utm_medium=_ob_notification&utm_campaign=_ob_pushmail"}]
[{"$f":"AdrHyperlien(Randos!C392)","v":"http://ltd-rando68.over-blog.com/2021/03/cernay-petite-balade-autour-de-saint-andre-r-398-8-4-km-d-24-m-2-h-2/6.html?utm_source=_ob_email&utm_medium=_ob_notification&utm_campaign=_ob_pushmail"}]
[{"$f":"AdrHyperlien(Randos!C393)","v":"http://ltd-rando68.over-blog.com/2021/03/guebwiller-les-carrieres-de-bergholtz-r-399-8-5-km-d-277-m-2-h-30-mn-3/6.html?utm_source=_ob_email&utm_medium=_ob_notification&utm_campaign=_ob_pushmail"}]
[{"$f":"AdrHyperlien(Randos!C394)","v":"http://ltd-rando68.over-blog.com/2021/03/buethwiller-les-douces-collines-du-sundgau-r-400-14-5-km-d-117-m-3-h-45-mn-2/6.html?utm_source=_ob_email&utm_medium=_ob_notification&utm_campaign=_ob_pushmail"}]
[{"$f":"AdrHyperlien(Randos!C395)","v":"http://ltd-rando68.over-blog.com/2021/03/vieux-thann-waldkapelle-amselkopf-etc-r-401-8-5-km-d-313-m-3-h-2/6.html?utm_source=_ob_email&utm_medium=_ob_notification&utm_campaign=_ob_pushmail"}]
[{"$f":"AdrHyperlien(Randos!C396)","v":"http://ltd-rando68.over-blog.com/2021/03/masevaux-en-foret-communale-sur-le-chemin-maurice-cuny-r-402-12-2-km-d-430-m-3-h-15-mn-3/6.html?utm_source=_ob_email&utm_medium=_ob_notification&utm_campaign=_ob_pushmail"}]
[{"$f":"AdrHyperlien(Randos!C397)","v":"http://ltd-rando68.over-blog.com/2021/03/michelbach-un-nouveau-circuit-r-403-9-9-km-d-121-m-2-h-30-mn-2/6.html?utm_source=_ob_email&utm_medium=_ob_notification&utm_campaign=_ob_pushmail"}]
[{"$f":"AdrHyperlien(Randos!C398)","v":"http://ltd-rando68.over-blog.com/2021/03/altenach-mon-semi-marathon-dans-le-sundgau-r-404-27-9-km-d-242-m-6-h-3/6.html?utm_source=_ob_email&utm_medium=_ob_notification&utm_campaign=_ob_pushmail"}]
[{"$f":"AdrHyperlien(Randos!C399)","v":"http://ltd-rando68.over-blog.com/2021/03/oberbruck-col-de-rimbach-et-fuchsfelsen-r-405-17-2-km-d-634-m-5-h-4/6.html"}]
[{"$f":"AdrHyperlien(Randos!C400)","v":"http://ltd-rando68.over-blog.com/2021/04/sewen-aupres-de-mon-arbre-au-schlumpf-fennematt-r-406-12-9-km-d-530-m-3-h-45-mn-3/6.html?utm_source=_ob_email&utm_medium=_ob_notification&utm_campaign=_ob_pushmail"}]
[{"$f":"AdrHyperlien(Randos!C401)","v":"http://ltd-rando68.over-blog.com/2021/04/willer-sur-thur-freundstein-et-ostein-r-407-15-3-km-d-559-m-4-h-15-mn-3/6.html?utm_source=_ob_email&utm_medium=_ob_notification&utm_campaign=_ob_pushmail"}]
[{"$f":"AdrHyperlien(Randos!C402)","v":"http://ltd-rando68.over-blog.com/2021/04/leimbach-mon-circuit-touristique-r-408-14-6-km-d-304-m-3-h-45-mn-2-5/6.html?utm_source=_ob_email&utm_medium=_ob_notification&utm_campaign=_ob_pushmail"}]
[{"$f":"AdrHyperlien(Randos!C403)","v":"http://ltd-rando68.over-blog.com/2021/04/soultz-haut-rhin-autour-de-jungholtz-r-409-10-7-km-d-345-m-2-h-45-mn-2-5/6.html?utm_source=_ob_email&utm_medium=_ob_notification&utm_campaign=_ob_pushmail"}]
[{"$f":"AdrHyperlien(Randos!C404)","v":"http://ltd-rando68.over-blog.com/2021/04/wittelheim-en-foret-de-nonnenbruch-r-410-12-8-km-d-45-m-2-h-45-mn-2/6.html?utm_source=_ob_email&utm_medium=_ob_notification&utm_campaign=_ob_pushmail"}]
[{"$f":"AdrHyperlien(Randos!C405)","v":"http://ltd-rando68.over-blog.com/2021/04/thann-au-col-du-hundsruck-r-411-14-6-km-d-481-m-3-h-30-mn-3/6.html?utm_source=_ob_email&utm_medium=_ob_notification&utm_campaign=_ob_pushmail"}]
[{"$f":"AdrHyperlien(Randos!C406)","v":"http://ltd-rando68.over-blog.com/2021/04/aspach-le-haut-vers-bourbach-le-bas-r-412-13-8-km-d-217-m-3-h-2-5/6.html?utm_source=_ob_email&utm_medium=_ob_notification&utm_campaign=_ob_pushmail"}]
[{"$f":"AdrHyperlien(Randos!C407)","v":"http://ltd-rando68.over-blog.com/2021/04/schweighouse-thann-reiningue-et-oelenberg-r-413-14-6-km-d-56-m-3-h-2/6.html?utm_source=_ob_email&utm_medium=_ob_notification&utm_campaign=_ob_pushmail"}]
[{"$f":"AdrHyperlien(Randos!C408)","v":"http://ltd-rando68.over-blog.com/2021/04/berrwiller-cantine-zeller-et-rehfelsen-r-414-12-1-km-d-591-m-3-h-45-mn-3/6.html?utm_source=_ob_email&utm_medium=_ob_notification&utm_campaign=_ob_pushmail"}]
[{"$f":"AdrHyperlien(Randos!C409)","v":"http://ltd-rando68.over-blog.com/2021/04/col-amic-nouveau-circuit-en-foret-reculee-de-soultz-r-415-14-4-km-d-697-m-4-h-3/6.html?utm_source=_ob_email&utm_medium=_ob_notification&utm_campaign=_ob_pushmail"}]
[{"$f":"AdrHyperlien(Randos!C410)","v":"http://ltd-rando68.over-blog.com/2021/04/steinbach-sources-et-fontaines-r-416-11-1-km-d-453-m-3-h-15-mn-2-5/6.html?utm_source=_ob_email&utm_medium=_ob_notification&utm_campaign=_ob_pushmail"}]
[{"$f":"AdrHyperlien(Randos!C411)","v":"http://ltd-rando68.over-blog.com/2021/04/au-molkenrain-le-test-pour-des-chaussures-neuves-r-417-9-7-km-d-496-m-3-h-2-5/6.html?utm_source=_ob_email&utm_medium=_ob_notification&utm_campaign=_ob_pushmail"}]
[{"$f":"AdrHyperlien(Randos!C412)","v":"http://ltd-rando68.over-blog.com/2021/05/burnhaupt-le-bas-des-bunkers-mais-pas-que-r-418-19-1-km-d-159-m-4-h-30-mn-2-5/6.html?utm_source=_ob_email&utm_medium=_ob_notification&utm_campaign=_ob_pushmail"}]
[{"$f":"AdrHyperlien(Randos!C413)","v":"http://ltd-rando68.over-blog.com/2021/05/ranspach-nouveau-circuit-de-decouverte-du-dengelberg-r-419-5-8-km-d-190-m-2-h-2/6.html?utm_source=_ob_email&utm_medium=_ob_notification&utm_campaign=_ob_pushmail"}]
[{"$f":"AdrHyperlien(Randos!C414)","v":"http://ltd-rando68.over-blog.com/2021/05/bourbach-le-haut-le-grand-tour-du-rossberg-r-420-18-6-km-d-808-m-5-h-4/6.html?utm_source=_ob_email&utm_medium=_ob_notification&utm_campaign=_ob_pushmail"}]
[{"$f":"AdrHyperlien(Randos!C415)","v":"http://ltd-rando68.over-blog.com/2021/05/hagenbach-circuits-des-moissons-et-de-marguerite-r-421-18-2-km-d-152-m-4-h-30-mn-2-5/6.html?utm_source=_ob_email&utm_medium=_ob_notification&utm_campaign=_ob_pushmail"}]
[{"$f":"AdrHyperlien(Randos!C416)","v":"http://ltd-rando68.over-blog.com/2021/05/oderen-le-circuit-du-felsach-r-422-14-3-km-d-707-m-4-h-45-mn-4/6.html?utm_source=_ob_email&utm_medium=_ob_notification&utm_campaign=_ob_pushmail"}]
[{"$f":"AdrHyperlien(Randos!C417)","v":"http://ltd-rando68.over-blog.com/2021/05/feldbach-la-tournee-des-villages-r-423-18-9-km-d-369-m-4-h-30-mn-3/6.html?utm_source=_ob_email&utm_medium=_ob_notification&utm_campaign=_ob_pushmail"}]
[{"$f":"AdrHyperlien(Randos!C418)","v":"http://ltd-rando68.over-blog.com/2021/06/la-schlucht-sur-le-sentier-des-roches-version-2021-r-424-9-8-km-d-432-m-3-h-15-mn-4/6.html"}]
[{"$f":"AdrHyperlien(Randos!C419)","v":"http://ltd-rando68.over-blog.com/2021/06/husseren-wesserling-chauvelin-et-huselberg-r-425-10-0-km-d-454-m-3-h-30-mn-3/6.html?utm_source=_ob_email&utm_medium=_ob_notification&utm_campaign=_ob_pushmail"}]
[{"$f":"AdrHyperlien(Randos!C420)","v":"http://ltd-rando68.over-blog.com/2021/06/flaxlanden-balade-vers-bruebach-r-426-7-4-km-d-119-m-2-h-1/6.html?utm_source=_ob_email&utm_medium=_ob_notification&utm_campaign=_ob_pushmail"}]
[{"$f":"AdrHyperlien(Randos!C421)","v":"http://ltd-rando68.over-blog.com/2021/06/oberbruck-balade-sur-les-hauteurs-r-427-4-5-km-d-203-m-1-h-45-mn-2/6.html?utm_source=_ob_email&utm_medium=_ob_notification&utm_campaign=_ob_pushmail"}]
[{"$f":"AdrHyperlien(Randos!C422)","v":"http://ltd-rando68.over-blog.com/2021/06/lauw-balade-dans-l-oberwald-r-428-5-9-km-d-66-m-1-h-30-mn-1/6.html?utm_source=_ob_email&utm_medium=_ob_notification&utm_campaign=_ob_pushmail"}]
[{"$f":"AdrHyperlien(Randos!C423)","v":"http://ltd-rando68.over-blog.com/2021/06/le-markstein-balade-sur-les-chaumes-et-autour-du-trehkopf-r-429-7-4-km-d-188-m-2-h-15-mn-2/6.html?utm_source=_ob_email&utm_medium=_ob_notification&utm_campaign=_ob_pushmail"}]
[{"$f":"AdrHyperlien(Randos!C424)","v":"http://ltd-rando68.over-blog.com/2021/06/col-du-herrenfluh-balade-autour-du-molkenrain-r-430-7-5-km-d-315-m-2-h-15-mn-2-5/6.html?utm_source=_ob_email&utm_medium=_ob_notification&utm_campaign=_ob_pushmail"}]
[{"$f":"AdrHyperlien(Randos!C425)","v":"http://ltd-rando68.over-blog.com/2021/06/thann-balade-a-la-roche-albert-r-431-8-8-km-d-354-m-2-h-45-mn-2-5/6.html?utm_source=_ob_email&utm_medium=_ob_notification&utm_campaign=_ob_pushmail"}]
[{"$f":"AdrHyperlien(Randos!C426)","v":"http://ltd-rando68.over-blog.com/2021/06/luemschwiller-balade-vers-steinbrunn-r-432-11-7-km-d-238-m-3-h-15-mn-2/6.html?utm_source=_ob_email&utm_medium=_ob_notification&utm_campaign=_ob_pushmail"}]
[{"$f":"AdrHyperlien(Randos!C427)","v":"http://ltd-rando68.over-blog.com/2021/06/storckensohn-circuit-du-gazon-vert-r-433-10-6-km-d-560-m-3-h-30-mn-3/6.html?utm_source=_ob_email&utm_medium=_ob_notification&utm_campaign=_ob_pushmail"}]
[{"$f":"AdrHyperlien(Randos!C428)","v":"http://ltd-rando68.over-blog.com/2021/07/ligsdorf-le-grand-tour-du-glaserberg-r-434-16-6-km-d-623-m-5-h-30-mn-3/6.html?utm_source=_ob_email&utm_medium=_ob_notification&utm_campaign=_ob_pushmail"}]
[{"$f":"AdrHyperlien(Randos!C429)","v":"http://ltd-rando68.over-blog.com/2021/07/ballersdorf-le-circuit-du-viaduc-r-435-6-1-km-d-83-m-1-h-45-mn-1/6.html?utm_source=_ob_email&utm_medium=_ob_notification&utm_campaign=_ob_pushmail"}]
[{"$f":"AdrHyperlien(Randos!C430)","v":"http://ltd-rando68.over-blog.com/2021/07/liebsdorf-le-circuit-du-plan-d-eau-r-436-9-5-km-d-187-m-2-h-30-mn-2/6.html?utm_source=_ob_email&utm_medium=_ob_notification&utm_campaign=_ob_pushmail"}]
[{"$f":"AdrHyperlien(Randos!C431)","v":"http://ltd-rando68.over-blog.com/2021/07/moosch-la-vue-de-geishouse-r-437-10-0-km-d-472-m-3-h-3/6.html?utm_source=_ob_email&utm_medium=_ob_notification&utm_campaign=_ob_pushmail"}]
[{"$f":"AdrHyperlien(Randos!C432)","v":"http://ltd-rando68.over-blog.com/2021/07/orschwihr-le-bollenberg-sans-mystere-r-438-7-8-km-d-157-m-2-h-15-mn-2/6.html"}]
[{"$f":"AdrHyperlien(Randos!C433)","v":"http://ltd-rando68.over-blog.com/2021/07/kruth-le-tour-du-lac-version-2021-r-439-8-5-km-d-394-m-3-h-3/6.html"}]
[{"$f":"AdrHyperlien(Randos!C434)","v":"http://ltd-rando68.over-blog.com/2021/07/la-schlucht-hirschsteine-et-lac-vert-r-440-12-5-km-d-501-m-4-h-3/6.html"}]
["http://ltd-rando68.over-blog.com/2021/07/ferrette-le-circuit-des-belvederes-r-441-12-8-km-d-437-m-5-h-3/6.html?utm_source=_ob_email&utm_medium=_ob_notification&utm_campaign=_ob_pushmail"]
["http://ltd-rando68.over-blog.com/2021/08/bollwiller-de-la-plaine-au-vignoble-r-442-9-3-km-d-93-m-2-h-15-mn-2/6.html?utm_source=_ob_email&utm_medium=_ob_notification&utm_campaign=_ob_pushmail"]
["http://ltd-rando68.over-blog.com/2021/08/thann-le-grand-circuit-du-belacker-r-443-27-5-km-d-1004-m-7-h-4/6.html"]
["http://ltd-rando68.over-blog.com/2021/08/kaysersberg-forets-et-chapelles-r-444-11-0-km-d-444-m-3-h-3/6.html"]
["http://ltd-rando68.over-blog.com/2021/08/moosch-le-grand-ballon-et-le-storkenkopf-r-444-23-8-km-d-1203-m-8-h-5/6.html"]
["http://ltd-rando68.over-blog.com/2021/08/sentheim-la-doller-et-la-geologie-r-446-11-2-km-d-108-m-3-h-2/6.html"]
["http://ltd-rando68.over-blog.com/2021/08/ammertzwiller-le-circuit-de-la-memoire-r-447-10-5-km-d-183-m-2-h-30-2/6.html"]
["http://ltd-rando68.over-blog.com/2021/09/rimbach-pres-masevaux-perches-et-neuweiher-r-448-12-7-km-d-685-m-4-h-15-mn-4/6.html"]
["http://ltd-rando68.over-blog.com/2021/09/carspach-circuit-st-glucker-r-449-10-8-km-d-200-m-2-h-45-mn-2/6.html"]
["http://ltd-rando68.over-blog.com/2021/09/sentheim-circuit-de-la-chapelle-des-mineurs-r-450-7-5-km-d-132-m-2-h-2/6.html"]
["http://ltd-rando68.over-blog.com/2021/09/grand-ballon-le-circuit-des-sommets-r-451-16-3-km-d-649-m-5-h-4/6.html?utm_source=_ob_email&utm_medium=_ob_notification&utm_campaign=_ob_pushmail"]
["http://ltd-rando68.over-blog.com/2021/09/le-markstein-le-circuit-du-lac-de-la-lauch-r-452-13-4-km-d-477-m-3-h-45-mn-3/6.html"]
["http://ltd-rando68.over-blog.com/2021/09/lautenbach-le-chaudron-du-diable-r-453-7-km-d-275-m-2-h-15-mn-2-5/6.html"]
["http://ltd-rando68.over-blog.com/2021/09/kirchberg-lochberg-wissgrut-et-fennematt-r-454-17-3-km-d-660-m-5-h-4/6.html"]
["http://ltd-rando68.over-blog.com/2021/09/mortzwiller-circuit-du-haut-soultzbach-r-455-7-3-km-d-78-m-2-h-2/6.html"]
["http://ltd-rando68.over-blog.com/2021/10/bettendorf-autour-de-la-voie-romaine-r-456-18-3-km-d-257-m-4-h-30-mn-3/6.html?utm_source=_ob_email&utm_medium=_ob_notification&utm_campaign=_ob_pushmail"]
["http://ltd-rando68.over-blog.com/2021/10/galfingue-circuit-intercommunal-r-457-9-9-km-d-68-m-2-h-30-mn-2-5/6.html?utm_source=_ob_email&utm_medium=_ob_notification&utm_campaign=_ob_pushmail"]
["http://ltd-rando68.over-blog.com/2021/10/le-hohneck-frankenthal-schiessrothried-et-wormspel-r-458-11-7-km-d-630-m-4-h-4/6.html?utm_source=_ob_email&utm_medium=_ob_notification&utm_campaign=_ob_pushmail"]
["http://ltd-rando68.over-blog.com/2021/10/grandvillars-une-promenade-et-un-peu-d-histoire-r-459-7-2-km-d-73-m-2-h-1/6.html?utm_source=_ob_email&utm_medium=_ob_notification&utm_campaign=_ob_pushmail"]
["http://ltd-rando68.over-blog.com/2021/10/linthal-le-grand-tour-du-petit-ballon-r-460-15-3-km-d-679-m-5-h-4/6.html?utm_source=_ob_email&utm_medium=_ob_notification&utm_campaign=_ob_pushmail"]
["http://ltd-rando68.over-blog.com/2021/10/ballon-d-alsace-dejeuner-en-paix-a-la-petite-chaume-r-461-15-5-km-d-732-m-5-h-4/6.html?utm_source=_ob_email&utm_medium=_ob_notification&utm_campaign=_ob_pushmail"]
["http://ltd-rando68.over-blog.com/2021/10/col-du-hundsruck-le-petit-8-du-thanner-hubel-r-462-7-6-km-d-389-m-2-h-15-mn-3/6.html?utm_source=_ob_email&utm_medium=_ob_notification&utm_campaign=_ob_pushmail"]
["http://ltd-rando68.over-blog.com/2021/10/masevaux-le-sentier-historique-du-montori-r-463-11-km-d-499-m-3-h-30-mn-3/6.html?utm_source=_ob_email&utm_medium=_ob_notification&utm_campaign=_ob_pushmail"]
["http://ltd-rando68.over-blog.com/2021/10/wegscheid-circuit-du-belvere-du-fuchsfelsen-r-464-14-3-km-d-748-m-5-h-30-mn-5/6.html?utm_source=_ob_email&utm_medium=_ob_notification&utm_campaign=_ob_pushmail"]
["http://ltd-rando68.over-blog.com/2021/10/hartmannswiller-ollwiller-et-wuenheim-r-465-5-7-km-d-85-m-1-h-45-mn-2/6.html?utm_source=_ob_email&utm_medium=_ob_notification&utm_campaign=_ob_pushmail"]
["http://ltd-rando68.over-blog.com/2021/11/saint-amarin-monter-au-belacker-r-466-14-8-km-d-731-m-4-h-30-mn-3/6.html?utm_source=_ob_email&utm_medium=_ob_notification&utm_campaign=_ob_pushmail"]
["http://ltd-rando68.over-blog.com/2021/11/rammersmatt-la-tournee-des-popotes-r-467-7-3-km-d-288-m-2-h-15-mn-2-5/6.html?utm_source=_ob_email&utm_medium=_ob_notification&utm_campaign=_ob_pushmail"]
["http://ltd-rando68.over-blog.com/2021/11/le-hohneck-gaschney-et-frankenthal-r-468-14-6-km-d-554-m-4-h-30-mn-3/6.html?utm_source=_ob_email&utm_medium=_ob_notification&utm_campaign=_ob_pushmail"]
["http://ltd-rando68.over-blog.com/2021/11/wihr-au-val-croix-de-wihr-et-walbach-r-469-13-8-km-d-611-m-4-h-10-mn-3/6.html?utm_source=_ob_email&utm_medium=_ob_notification&utm_campaign=_ob_pushmail"]
["http://ltd-rando68.over-blog.com/2021/11/col-de-bussang-le-drumont-et-la-hutte-r-470-13-km-d-545-m-3-h-45-mn-3/6.html?utm_source=_ob_email&utm_medium=_ob_notification&utm_campaign=_ob_pushmail"]
["http://ltd-rando68.over-blog.com/2021/11/geishouse-un-faucon-pour-la-fete-des-peres-r-471-7-8-km-d-363-m-3-h-3/6.html?utm_source=_ob_email&utm_medium=_ob_notification&utm_campaign=_ob_pushmail"]
["http://ltd-rando68.over-blog.com/2021/12/fontaine-que-d-eau-dans-ce-territoire-r-472-12-9-km-d-136-m-3-h-2-5/6.html?utm_source=_ob_email&utm_medium=_ob_notification&utm_campaign=_ob_pushmail"]
["http://ltd-rando68.over-blog.com/2021/12/geishouse-mon-chemin-de-croix-au-haag-r-473-10-7-km-d-519-m-3-h-30-mn-3/6.html?utm_source=_ob_email&utm_medium=_ob_notification&utm_campaign=_ob_pushmail"]
["http://ltd-rando68.over-blog.com/2021/12/carspach-un-petit-circuit-dans-mon-cher-sundgau-r-474-13-2-km-d-247-m-3-h-15-mn-2-5/6.html?utm_source=_ob_email&utm_medium=_ob_notification&utm_campaign=_ob_pushmail"]
["http://ltd-rando68.over-blog.com/2021/12/sewen-la-petite-chaume-enneigee-r-475-14-7-km-d-611-m-5-h-15-mn-5/6.html?utm_source=_ob_email&utm_medium=_ob_notification&utm_campaign=_ob_pushmail"]
["http://ltd-rando68.over-blog.com/2021/12/autour-du-markstein-en-raquettes-a-neige-r-476-7-7-km-d-167m-2-h-15-mn-3/6.html?utm_source=_ob_email&utm_medium=_ob_notification&utm_campaign=_ob_pushmail"]
["http://ltd-rando68.over-blog.com/2021/12/raquettes-au-lachtelweiher-lochberg-graber-et-fennematt-r-477-8-2-km-d-298m-3-h-3/6.html?utm_source=_ob_email&utm_medium=_ob_notification&utm_campaign=_ob_pushmail"]